{"text_format":"1","workbook":"xlsx","n_sheets":8,"sheets":["PLANILLA#3 (33-48)","PLANILLA#4 (49-64)","PLANILLA#1 (1-25)","PLANILLA#2 (26-50)","BDATOS","LIGAS","CLUBES","RAMAS"],"not_rendered":{"charts":0,"images":5,"macros":1,"external_links":0,"defined_names":6,"comments":0,"pivot_tables":0},"unopened":[],"bounds":{"document_bytes":16777216,"sheet_cells":100000,"rows_first":2000,"rows_last":500,"rows_between":2000,"halvings":0,"cell_chars":16384,"cell_head_chars":4096},"cells_cut":0,"cells_raw":0,"read":"whole","date_system":"1900"}

{"sheet":"PLANILLA#3 (33-48)","index":0,"n_rows":37,"n_cols":21,"rows_kept":37,"cut":false,"hidden":true,"merged":[[7,16,7,18],[8,9,8,13],[8,14,8,17],[8,1,9,1],[8,2,9,2],[8,4,8,5],[7,1,7,2],[7,3,7,4],[7,6,7,8],[8,7,8,8],[7,11,7,13],[7,14,7,15],[8,6,9,6],[4,16,4,18],[5,16,5,18],[6,1,6,2],[6,3,6,4],[6,6,6,8],[6,11,6,13],[6,14,6,15],[6,16,6,18],[5,1,5,2],[5,3,5,4],[5,6,5,8],[5,11,5,13],[5,14,5,15],[4,1,4,2],[4,3,4,4],[4,6,4,8],[4,11,4,13],[4,14,4,15],[3,14,3,15],[0,4,0,14],[1,4,1,14],[2,4,2,14],[3,16,3,18],[0,1,2,3],[3,1,3,2],[3,3,3,4],[3,6,3,8],[3,11,3,13]]}
[null,null,null,null,{"$f":"'PLANILLA#1 (1-25)'!D1:R1","v":0}]
[null,null,null,null,{"$f":"_xlfn.SINGLE('PLANILLA#1 (1-25)'!#REF!)","v":{"$error":"#REF!"}},null,null,null,null,null,null,null,null,null,null,{"$f":"'PLANILLA#1 (1-25)'!#REF!","v":{"$error":"#REF!"}}]
[null,null,null,null,"PLANILLA ÚNICA DE INSCRIPCIÓN - CATEGORIAS MAYORES"]
[null,"NOMBRE DEL EVENTO",null,{"$f":"'PLANILLA#1 (1-25)'!D2:E2","v":"Sexta Válida Nacional Puntubale "},null,"SEDE EVENTO",{"$f":"'PLANILLA#1 (1-25)'!G2:I2","v":"Manizales "},null,null,"LIGA",null,{"$f":"'PLANILLA#1 (1-25)'!L2:M2","v":"Caldas"},null,null,"FECHA EVENTO",null,{"$f":"'PLANILLA#1 (1-25)'!P2:R2","v":"00:00:00"}]
[null,"NOMBRE CLUB/LIGA/NACION",null,{"$f":"'PLANILLA#1 (1-25)'!D3:E3","v":0},null,"LIGA PERTENECE",{"$f":"'PLANILLA#1 (1-25)'!G3:I3","v":0},null,null,"DIRECCIÓN",null,{"$f":"'PLANILLA#1 (1-25)'!L3:M3","v":0},null,null,"TELÉFONO",null,{"$f":"'PLANILLA#1 (1-25)'!Q3:R3","v":0}]
[null,"NOMBRE PRESIDENTE",null,{"$f":"'PLANILLA#1 (1-25)'!D4:E4","v":0},null,"CEDULA PRESIDENTE",{"$f":"'PLANILLA#1 (1-25)'!G4:I4","v":""},null,null,"DELEGADO",null,{"$f":"'PLANILLA#1 (1-25)'!L4:M4","v":0},null,null,"CEDULA",null,{"$f":"'PLANILLA#1 (1-25)'!Q4:R4","v":0}]
[null,"MEDICO",null,{"$f":"'PLANILLA#1 (1-25)'!D5:E5","v":0},null,"TEL / CEL",{"$f":"'PLANILLA#1 (1-25)'!G5:I5","v":0},null,null,"TECNICO",null,{"$f":"'PLANILLA#1 (1-25)'!L5:M5","v":0},null,null,"ASISTENTE",null,{"$f":"'PLANILLA#1 (1-25)'!Q5:R5","v":0}]
[]
[null,"NRO","NOMBRES Y APELLIDOS","FECHA NAC.","DOCUMENTO IDENTIDAD",null,"CATEGORIA","RAMA",null,{"$f":"'PLANILLA#1 (1-25)'!I7:M7","v":0},null,null,null,null,"FONDO ",null,null,null,null,null,"EDAD AL"]
[null,null,null,"DD/MM/AA","TIPO","NÚMERO",null,"D","V",{"$f":"'PLANILLA#1 (1-25)'!J8","v":"500 M + D Pista "},{"$f":"'PLANILLA#1 (1-25)'!K8","v":"1.000 Metros Sprint "},{"$f":"'PLANILLA#1 (1-25)'!L8","v":"100 Metros Carriles Circuito"},{"$f":"'PLANILLA#1 (1-25)'!M8","v":"Vuelta Al Cirucito "},{"$f":"'PLANILLA#1 (1-25)'!#REF!","v":{"$error":"#REF!"}},{"$f":"'PLANILLA#1 (1-25)'!N8","v":"5.000 Metros Puntos Pista "},{"$f":"'PLANILLA#1 (1-25)'!O8","v":"Eliminación Pista 10.000 Metros"},{"$f":"'PLANILLA#1 (1-25)'!Q8","v":"Puntos Circuito 10.000 Metros"},{"$f":"'PLANILLA#1 (1-25)'!R8","v":"No Aplica "},{"$f":"'PLANILLA#1 (1-25)'!#REF!","v":{"$error":"#REF!"}},null,"2020-07-01"]
[null,33,null,null,null,null,{"$f":"IF(U11=\"\",\"\",IF(U11=14,\"PREJUVENIL\",IF(OR(U11=15,U11=16),\"JUVENIL\",IF(U11>=17,\"MAYORES\",\"Check FN\"))))","v":""},null,null,null,null,null,null,null,null,null,null,null,null,null,{"$f":"IF(D11=\"\",\"\",DATEDIF(D11,$U$10,\"y\"))","v":""}]
[null,34,null,null,null,null,{"$f":"IF(U12=\"\",\"\",IF(U12=14,\"PREJUVENIL\",IF(OR(U12=15,U12=16),\"JUVENIL\",IF(U12>=17,\"MAYORES\",\"Check FN\"))))","v":""},null,null,null,null,null,null,null,null,null,null,null,null,null,{"$f":"IF(D12=\"\",\"\",DATEDIF(D12,$U$10,\"y\"))","v":""}]
[null,35,null,null,null,null,"",null,null,null,null,null,null,null,null,null,null,null,null,null,""]
[null,36,null,null,null,null,"",null,null,null,null,null,null,null,null,null,null,null,null,null,""]
[null,37,null,null,null,null,"",null,null,null,null,null,null,null,null,null,null,null,null,null,""]
[null,38,null,null,null,null,"",null,null,null,null,null,null,null,null,null,null,null,null,null,""]
[null,39,null,null,null,null,"",null,null,null,null,null,null,null,null,null,null,null,null,null,""]
[null,40,null,null,null,null,"",null,null,null,null,null,null,null,null,null,null,null,null,null,""]
[null,41,null,null,null,null,"",null,null,null,null,null,null,null,null,null,null,null,null,null,""]
[null,42,null,null,null,null,"",null,null,null,null,null,null,null,null,null,null,null,null,null,""]
[null,43,null,null,null,null,"",null,null,null,null,null,null,null,null,null,null,null,null,null,""]
[null,44,null,null,null,null,"",null,null,null,null,null,null,null,null,null,null,null,null,null,""]
[null,45,null,null,null,null,"",null,null,null,null,null,null,null,null,null,null,null,null,null,""]
[null,46,null,null,null,null,"",null,null,null,null,null,null,null,null,null,null,null,null,null,""]
[null,47,null,null,null,null,"",null,null,null,null,null,null,null,null,null,null,null,null,null,""]
[null,48,null,null,null,null,{"$f":"IF(U26=\"\",\"\",IF(U26=14,\"PREJUVENIL\",IF(OR(U26=15,U26=16),\"JUVENIL\",IF(U26>=17,\"MAYORES\",\"Check FN\"))))","v":""},null,null,null,null,null,null,null,null,null,null,null,null,null,""]
[]
[]
[]
[]
[null,null,null,"FIRMA DELEGADO DEL CLUB",null,null,null,null,null,null,null,null,"FIRMA APROBACION DE LA LIGA"]
[]
[]
[]
[]
[]
[null,null,null,"VOBO.  COMISIÓN NACIONAL",null,null,null,null,null,null,null,"VOBO. FEDERACIÓN COLOMBIANA DE PATINAJE"]

{"sheet":"PLANILLA#4 (49-64)","index":1,"n_rows":37,"n_cols":21,"rows_kept":37,"cut":false,"hidden":true,"merged":[[7,16,7,18],[7,6,7,8],[8,7,8,8],[7,11,7,13],[7,14,7,15],[8,6,9,6],[8,9,8,13],[8,14,8,17],[8,1,9,1],[8,2,9,2],[8,4,8,5],[7,1,7,2],[7,3,7,4],[4,16,4,18],[5,16,5,18],[6,1,6,2],[6,3,6,4],[6,6,6,8],[6,11,6,13],[6,14,6,15],[6,16,6,18],[5,1,5,2],[5,3,5,4],[5,6,5,8],[5,11,5,13],[5,14,5,15],[4,1,4,2],[4,3,4,4],[4,6,4,8],[4,11,4,13],[4,14,4,15],[3,14,3,15],[0,4,0,14],[1,4,1,14],[2,4,2,14],[3,16,3,18],[0,1,2,3],[3,1,3,2],[3,3,3,4],[3,6,3,8],[3,11,3,13]]}
[null,null,null,null,{"$f":"'PLANILLA#1 (1-25)'!D1:R1","v":0}]
[null,null,null,null,{"$f":"_xlfn.SINGLE('PLANILLA#1 (1-25)'!#REF!)","v":{"$error":"#REF!"}},null,null,null,null,null,null,null,null,null,null,{"$f":"'PLANILLA#1 (1-25)'!#REF!","v":{"$error":"#REF!"}}]
[null,null,null,null,"PLANILLA ÚNICA DE INSCRIPCIÓN - CATEGORIAS MAYORES"]
[null,"NOMBRE DEL EVENTO",null,{"$f":"'PLANILLA#1 (1-25)'!D2:E2","v":"Sexta Válida Nacional Puntubale "},null,"SEDE EVENTO",{"$f":"'PLANILLA#1 (1-25)'!G2:I2","v":"Manizales "},null,null,"LIGA",null,{"$f":"'PLANILLA#1 (1-25)'!L2:M2","v":"Caldas"},null,null,"FECHA EVENTO",null,{"$f":"'PLANILLA#1 (1-25)'!P2:R2","v":"00:00:00"}]
[null,"NOMBRE CLUB/LIGA/NACION",null,{"$f":"'PLANILLA#1 (1-25)'!D3:E3","v":0},null,"LIGA PERTENECE",{"$f":"'PLANILLA#1 (1-25)'!G3:I3","v":0},null,null,"DIRECCIÓN",null,{"$f":"'PLANILLA#1 (1-25)'!L3:M3","v":0},null,null,"TELÉFONO",null,{"$f":"'PLANILLA#1 (1-25)'!Q3:R3","v":0}]
[null,"NOMBRE PRESIDENTE",null,{"$f":"'PLANILLA#1 (1-25)'!D4:E4","v":0},null,"CEDULA PRESIDENTE",{"$f":"'PLANILLA#1 (1-25)'!G4:I4","v":""},null,null,"DELEGADO",null,{"$f":"'PLANILLA#1 (1-25)'!L4:M4","v":0},null,null,"CEDULA",null,{"$f":"'PLANILLA#1 (1-25)'!Q4:R4","v":0}]
[null,"MEDICO",null,{"$f":"'PLANILLA#1 (1-25)'!D5:E5","v":0},null,"TEL / CEL",{"$f":"'PLANILLA#1 (1-25)'!G5:I5","v":0},null,null,"TECNICO",null,{"$f":"'PLANILLA#1 (1-25)'!L5:M5","v":0},null,null,"ASISTENTE",null,{"$f":"'PLANILLA#1 (1-25)'!Q5:R5","v":0}]
[]
[null,"NRO","NOMBRES Y APELLIDOS","FECHA NAC.","DOCUMENTO IDENTIDAD",null,"CATEGORIA","RAMA",null,{"$f":"'PLANILLA#1 (1-25)'!I7:M7","v":0},null,null,null,null,"FONDO",null,null,null,null,null,"EDAD AL"]
[null,null,null,"DD/MM/AA","TIPO","NÚMERO",null,"D","V",{"$f":"'PLANILLA#1 (1-25)'!J8","v":"500 M + D Pista "},{"$f":"'PLANILLA#1 (1-25)'!K8","v":"1.000 Metros Sprint "},{"$f":"'PLANILLA#1 (1-25)'!L8","v":"100 Metros Carriles Circuito"},{"$f":"'PLANILLA#1 (1-25)'!M8","v":"Vuelta Al Cirucito "},{"$f":"'PLANILLA#1 (1-25)'!#REF!","v":{"$error":"#REF!"}},{"$f":"'PLANILLA#1 (1-25)'!N8","v":"5.000 Metros Puntos Pista "},{"$f":"'PLANILLA#1 (1-25)'!O8","v":"Eliminación Pista 10.000 Metros"},{"$f":"'PLANILLA#1 (1-25)'!Q8","v":"Puntos Circuito 10.000 Metros"},{"$f":"'PLANILLA#1 (1-25)'!R8","v":"No Aplica "},{"$f":"'PLANILLA#1 (1-25)'!#REF!","v":{"$error":"#REF!"}},null,"2020-07-01"]
[null,49,null,null,null,null,{"$f":"IF(U11=\"\",\"\",IF(U11=14,\"PREJUVENIL\",IF(OR(U11=15,U11=16),\"JUVENIL\",IF(U11>=17,\"MAYORES\",\"Check FN\"))))","v":""},null,null,null,null,null,null,null,null,null,null,null,null,null,{"$f":"IF(D11=\"\",\"\",DATEDIF(D11,$U$10,\"y\"))","v":""}]
[null,50,null,null,null,null,{"$f":"IF(U12=\"\",\"\",IF(U12=14,\"PREJUVENIL\",IF(OR(U12=15,U12=16),\"JUVENIL\",IF(U12>=17,\"MAYORES\",\"Check FN\"))))","v":""},null,null,null,null,null,null,null,null,null,null,null,null,null,{"$f":"IF(D12=\"\",\"\",DATEDIF(D12,$U$10,\"y\"))","v":""}]
[null,51,null,null,null,null,"",null,null,null,null,null,null,null,null,null,null,null,null,null,""]
[null,52,null,null,null,null,"",null,null,null,null,null,null,null,null,null,null,null,null,null,""]
[null,53,null,null,null,null,"",null,null,null,null,null,null,null,null,null,null,null,null,null,""]
[null,54,null,null,null,null,"",null,null,null,null,null,null,null,null,null,null,null,null,null,""]
[null,55,null,null,null,null,"",null,null,null,null,null,null,null,null,null,null,null,null,null,""]
[null,56,null,null,null,null,"",null,null,null,null,null,null,null,null,null,null,null,null,null,""]
[null,57,null,null,null,null,"",null,null,null,null,null,null,null,null,null,null,null,null,null,""]
[null,58,null,null,null,null,"",null,null,null,null,null,null,null,null,null,null,null,null,null,""]
[null,59,null,null,null,null,"",null,null,null,null,null,null,null,null,null,null,null,null,null,""]
[null,60,null,null,null,null,"",null,null,null,null,null,null,null,null,null,null,null,null,null,""]
[null,61,null,null,null,null,"",null,null,null,null,null,null,null,null,null,null,null,null,null,""]
[null,62,null,null,null,null,"",null,null,null,null,null,null,null,null,null,null,null,null,null,""]
[null,63,null,null,null,null,"",null,null,null,null,null,null,null,null,null,null,null,null,null,""]
[null,64,null,null,null,null,"",null,null,null,null,null,null,null,null,null,null,null,null,null,""]
[]
[]
[]
[]
[null,null,null,"FIRMA DELEGADO DEL CLUB",null,null,null,null,null,null,null,null,"FIRMA APROBACION DE LA LIGA"]
[]
[]
[]
[]
[]
[null,null,null,"VOBO.  COMISIÓN NACIONAL",null,null,null,null,null,null,null,"VOBO. FEDERACIÓN COLOMBIANA DE PATINAJE"]

{"sheet":"PLANILLA#1 (1-25)","index":2,"n_rows":1826,"n_cols":20,"rows_kept":1826,"cut":false,"hidden":false,"merged":[[3,1,3,2],[4,11,4,12],[4,6,4,8],[4,3,4,4],[4,1,4,2],[3,3,3,4],[3,6,3,8],[3,9,3,10],[4,9,4,10],[1,1,1,2],[2,1,2,2],[1,3,1,4],[1,11,1,12],[2,11,2,12],[1,6,1,8],[2,3,2,4],[2,6,2,8],[0,13,0,14],[1,9,1,10],[2,9,2,10],[3,13,3,14],[1,13,1,14],[2,13,2,14],[3,11,3,12],[0,5,0,12],[1,15,1,17],[2,15,2,17],[3,15,3,17],[4,15,4,17],[4,13,4,14],[6,1,7,1],[5,1,5,2],[5,15,5,17],[6,6,7,6],[6,2,7,2],[6,4,6,5],[6,7,7,7],[6,8,6,12],[6,13,6,17],[5,4,5,5],[5,7,5,8],[5,9,5,10],[5,11,5,12],[42,6,42,8],[43,6,43,8],[44,2,44,5],[44,6,44,8],[41,4,41,5],[42,4,42,5],[43,4,43,5],[39,4,39,5],[40,4,40,5],[39,6,39,8],[40,6,40,8],[41,6,41,8]]}
[null,null,null,null,null,"Federación Colombiana De Patinaje - Planilla Única De Inscripción - Mayores",null,null,null,null,null,null,null,"Temporada 2023-2024"]
[null,"Nombre Del Evento",null,"Sexta Válida Nacional Puntubale ",null,"Sede Evento","Manizales ",null,null,"Liga ",null,"Caldas",null,"Fecha Evento",null,"Del 24 Al 28 De Abril De 2024"]
[null,"Nombre Club/Nacion",null,null,null,"Liga Pertenece",null,null,null,"Dirección",null,null,null,"Teléfono"]
[null,"Nombre Presidente",null,null,null,"Cedula Presidente","",null,null,"Delegado",null,null,null,"Cédula"]
[null,"Médico",null,null,null,"Tel/Cel",null,null,null,"Técnico",null,null,null,"Zonal "]
[null,"Total Deportistas Inscripción Ordinaria ",null,null,"Total Deportistas Inscripción Extraordinaria ",null,null," Inscripción Ordinaria Club Marque 1 ",null,null,null,"Valor Inscripción Extraordinaria Club Marque 1",null,null,"Valor Total A Transferir ",{"$f":"G45","v":0}]
[null,"NO.","NOMBRES Y APELLIDOS","FECHA NAC.","DOCUMENTO IDENTIDAD",null,"CATEGORIA","RAMA","Pruebas De Velocidad Individual Y Grupal",null,null,null,null,"Pruebas De Fondo",null,null,null,null,null,"EDAD AL"]
[null,null,null,"DD/MM/AA","TIPO","NÚMERO",null,null,"200 Metros Meta Contra Meta Pista","500 M + D Pista ","1.000 Metros Sprint ","100 Metros Carriles Circuito","Vuelta Al Cirucito ","5.000 Metros Puntos Pista ","Eliminación Pista 10.000 Metros","Eliminación Circuito 15.000 Metros","Puntos Circuito 10.000 Metros","No Aplica ",null,"2023-07-01"]
[null,1,null,null,null,null,{"$f":"IF(T9=\"\",\"\",IF(T9=14,\"PREJUVENIL\",IF(OR(T9=15,T9=16,T9=17),\"JUVENIL\",IF(T9>=18,\"MAYORES\",\"Check FN\"))))","v":""},null,null,null,null,null,null,null,null,null,null,null,null,{"$f":"IF(D9=\"\",\"\",DATEDIF(D9,$T$8,\"y\"))","v":""}]
[null,2,null,null,null,null,{"$f":"IF(T10=\"\",\"\",IF(T10=14,\"PREJUVENIL\",IF(OR(T10=15,T10=16,T10=17),\"JUVENIL\",IF(T10>=18,\"MAYORES\",\"Check FN\"))))","v":""},null,null,null,null,null,null,null,null,null,null,null,null,""]
[null,3,null,null,null,null,"",null,null,null,null,null,null,null,null,null,null,null,null,""]
[null,4,null,null,null,null,"",null,null,null,null,null,null,null,null,null,null,null,null,""]
[null,5,null,null,null,null,"",null,null,null,null,null,null,null,null,null,null,null,null,""]
[null,6,null,null,null,null,"",null,null,null,null,null,null,null,null,null,null,null,null,""]
[null,7,null,null,null,null,"",null,null,null,null,null,null,null,null,null,null,null,null,""]
[null,8,null,null,null,null,"",null,null,null,null,null,null,null,null,null,null,null,null,""]
[null,9,null,null,null,null,"",null,null,null,null,null,null,null,null,null,null,null,null,""]
[null,10,null,null,null,null,"",null,null,null,null,null,null,null,null,null,null,null,null,""]
[null,11,null,null,null,null,"",null,null,null,null,null,null,null,null,null,null,null,null,""]
[null,12,null,null,null,null,"",null,null,null,null,null,null,null,null,null,null,null,null,""]
[null,13,null,null,null,null,"",null,null,null,null,null,null,null,null,null,null,null,null,""]
[null,14,null,null,null,null,"",null,null,null,null,null,null,null,null,null,null,null,null,""]
[null,15,null,null,null,null,"",null,null,null,null,null,null,null,null,null,null,null,null,""]
[null,16,null,null,null,null,"",null,null,null,null,null,null,null,null,null,null,null,null,""]
[null,17,null,null,null,null,"",null,null,null,null,null,null,null,null,null,null,null,null,""]
[null,18,null,null,null,null,"",null,null,null,null,null,null,null,null,null,null,null,null,""]
[null,19,null,null,null,null,"",null,null,null,null,null,null,null,null,null,null,null,null,""]
[null,20,null,null,null,null,"",null,null,null,null,null,null,null,null,null,null,null,null,""]
[null,21,null,null,null,null,"",null,null,null,null,null,null,null,null,null,null,null,null,""]
[null,22,null,null,null,null,"",null,null,null,null,null,null,null,null,null,null,null,null,""]
[null,23,null,null,null,null,"",null,null,null,null,null,null,null,null,null,null,null,null,""]
[null,24,null,null,null,null,"",null,null,null,null,null,null,null,null,null,null,null,null,""]
[null,25,null,null,null,null,"",null,null,null,null,null,null,null,null,null,null,null,null,""]
[]
[]
[]
[]
[null,null,"FIRMA DEL DELGADO CLUB ",null,null,"FIRMA COMISIÓN NACIONAL ",null,null,null,null,null,null,"FIRMA APROBACION DE LA LIGA"]
[]
[null,null,"DESCRIPCIÓN ","Establecido En Resolución 001- 2023","NUMERO DE DEPORTISTAS ",null,"VALOR A TRANSFERIR",null,null,"Nota: El Valor De La Reclamación En Un Evento Tendrá Un Costo De $331.000.00 Resolución 001 De 2023 (Enero)"]
[null,null,"Valor Inscripción Club Ordinaria",260000,{"$f":"J6","v":0},null,{"$f":"D41*E41","v":0}]
[null,null,"Valor Inscripción Club Extraordinaria ",392000,{"$f":"N6","v":0},null,{"$f":"D42*E42","v":0}]
[null,null,"Valor Deportista Ordinaria",103000,{"$f":"D6","v":0},null,{"$f":"D43*E43","v":0}]
[null,null,"Valor Deportista Extraordinaria ",156000,{"$f":"G6","v":0},null,{"$f":"D44*E44","v":0},null,null,null,null,"VOBO. FEDERACIÓN COLOMBIANA DE PATINAJE"]
[null,null,"Valor Total A Tranferir Por El Club ",null,null,null,{"$f":"SUM(G41:I44)","v":0}]
[null,null,123]
[null,null,null,null,null,null,{"$f":"IF(T47=\"\",\"\",IF(T47=14,\"PREJUVENIL\",IF(OR(T47=15,T47=16),\"JUVENIL\",IF(T47>=17,\"MAYORES\",IF(OR(T47=13,D47=\"31/05/2004\"),\"Check FN\",\"n/a\")))))","v":""}]
[null,null,null,null,null,null,""]
[null,null,null,null,null,null,""]
[null,null,null,null,null,null,""]
[null,null,null,null,null,null,""]
[null,null,null,null,null,null,""]
[null,null,null,null,null,null,""]
[null,null,null,null,null,null,""]
[null,null,null,null,null,null,""]
[null,null,null,null,null,null,""]
[null,null,null,null,null,null,""]
[null,null,null,null,null,null,""]
[null,null,null,null,null,null,""]
[null,null,null,null,null,null,""]
[null,null,null,null,null,null,""]
[null,null,null,null,null,null,""]
[null,null,null,null,null,null,""]
[null,null,null,null,null,null,""]
[null,null,null,null,null,null,""]
[null,null,null,null,null,null,""]
[null,null,null,null,null,null,""]
[null,null,null,null,null,null,""]
[null,null,null,null,null,null,""]
[null,null,null,null,null,null,""]
[null,null,null,null,null,null,""]
[null,null,null,null,null,null,""]
[null,null,null,null,null,null,""]
[null,null,null,null,null,null,""]
[null,null,null,null,null,null,""]
[null,null,null,null,null,null,""]
[null,null,null,null,null,null,""]
[null,null,null,null,null,null,""]
[null,null,null,null,null,null,""]
[null,null,null,null,null,null,""]
[null,null,null,null,null,null,""]
[null,null,null,null,null,null,""]
[null,null,null,null,null,null,""]
[null,null,null,null,null,null,""]
[null,null,null,null,null,null,""]
[null,null,null,null,null,null,""]
[null,null,null,null,null,null,""]
[null,null,null,null,null,null,""]
[null,null,null,null,null,null,""]
[null,null,null,null,null,null,""]
[null,null,null,null,null,null,""]
[null,null,null,null,null,null,""]
[null,null,null,null,null,null,""]
[null,null,null,null,null,null,""]
[null,null,null,null,null,null,""]
[null,null,null,null,null,null,""]
[null,null,null,null,null,null,""]
[null,null,null,null,null,null,""]
[null,null,null,null,null,null,""]
[null,null,null,null,null,null,""]
[null,null,null,null,null,null,""]
[null,null,null,null,null,null,""]
[null,null,null,null,null,null,""]
[null,null,null,null,null,null,""]
[null,null,null,null,null,null,""]
[null,null,null,null,null,null,""]
[null,null,null,null,null,null,""]
[null,null,null,null,null,null,""]
[null,null,null,null,null,null,""]
[null,null,null,null,null,null,""]
[null,null,null,null,null,null,{"$f":"IF(T111=\"\",\"\",IF(T111=14,\"PREJUVENIL\",IF(OR(T111=15,T111=16),\"JUVENIL\",IF(T111>=17,\"MAYORES\",IF(OR(T111=13,D111=\"31/05/2004\"),\"Check FN\",\"n/a\")))))","v":""}]
[null,null,null,null,null,null,""]
[null,null,null,null,null,null,""]
[null,null,null,null,null,null,""]
[null,null,null,null,null,null,""]
[null,null,null,null,null,null,""]
[null,null,null,null,null,null,""]
[null,null,null,null,null,null,""]
[null,null,null,null,null,null,""]
[null,null,null,null,null,null,""]
[null,null,null,null,null,null,""]
[null,null,null,null,null,null,""]
[null,null,null,null,null,null,""]
[null,null,null,null,null,null,""]
[null,null,null,null,null,null,""]
[null,null,null,null,null,null,""]
[null,null,null,null,null,null,""]
[null,null,null,null,null,null,""]
[null,null,null,null,null,null,""]
[null,null,null,null,null,null,""]
[null,null,null,null,null,null,""]
[null,null,null,null,null,null,""]
[null,null,null,null,null,null,""]
[null,null,null,null,null,null,""]
[null,null,null,null,null,null,""]
[null,null,null,null,null,null,""]
[null,null,null,null,null,null,""]
[null,null,null,null,null,null,""]
[null,null,null,null,null,null,""]
[null,null,null,null,null,null,""]
[null,null,null,null,null,null,""]
[null,null,null,null,null,null,""]
[null,null,null,null,null,null,""]
[null,null,null,null,null,null,""]
[null,null,null,null,null,null,""]
[null,null,null,null,null,null,""]
[null,null,null,null,null,null,""]
[null,null,null,null,null,null,""]
[null,null,null,null,null,null,""]
[null,null,null,null,null,null,""]
[null,null,null,null,null,null,""]
[null,null,null,null,null,null,""]
[null,null,null,null,null,null,""]
[null,null,null,null,null,null,""]
[null,null,null,null,null,null,""]
[null,null,null,null,null,null,""]
[null,null,null,null,null,null,""]
[null,null,null,null,null,null,""]
[null,null,null,null,null,null,""]
[null,null,null,null,null,null,""]
[null,null,null,null,null,null,""]
[null,null,null,null,null,null,""]
[null,null,null,null,null,null,""]
[null,null,null,null,null,null,""]
[null,null,null,null,null,null,""]
[null,null,null,null,null,null,""]
[null,null,null,null,null,null,""]
[null,null,null,null,null,null,""]
[null,null,null,null,null,null,""]
[null,null,null,null,null,null,""]
[null,null,null,null,null,null,""]
[null,null,null,null,null,null,""]
[null,null,null,null,null,null,""]
[null,null,null,null,null,null,""]
[null,null,null,null,null,null,{"$f":"IF(T175=\"\",\"\",IF(T175=14,\"PREJUVENIL\",IF(OR(T175=15,T175=16),\"JUVENIL\",IF(T175>=17,\"MAYORES\",IF(OR(T175=13,D175=\"31/05/2004\"),\"Check FN\",\"n/a\")))))","v":""}]
[null,null,null,null,null,null,""]
[null,null,null,null,null,null,""]
[null,null,null,null,null,null,""]
[null,null,null,null,null,null,""]
[null,null,null,null,null,null,""]
[null,null,null,null,null,null,""]
[null,null,null,null,null,null,""]
[null,null,null,null,null,null,""]
[null,null,null,null,null,null,""]
[null,null,null,null,null,null,""]
[null,null,null,null,null,null,""]
[null,null,null,null,null,null,""]
[null,null,null,null,null,null,""]
[null,null,null,null,null,null,""]
[null,null,null,null,null,null,""]
[null,null,null,null,null,null,""]
[null,null,null,null,null,null,""]
[null,null,null,null,null,null,""]
[null,null,null,null,null,null,""]
[null,null,null,null,null,null,""]
[null,null,null,null,null,null,""]
[null,null,null,null,null,null,""]
[null,null,null,null,null,null,""]
[null,null,null,null,null,null,""]
[null,null,null,null,null,null,""]
[null,null,null,null,null,null,""]
[null,null,null,null,null,null,""]
[null,null,null,null,null,null,""]
[null,null,null,null,null,null,""]
[null,null,null,null,null,null,""]
[null,null,null,null,null,null,""]
[null,null,null,null,null,null,""]
[null,null,null,null,null,null,""]
[null,null,null,null,null,null,""]
[null,null,null,null,null,null,""]
[null,null,null,null,null,null,""]
[null,null,null,null,null,null,""]
[null,null,null,null,null,null,""]
[null,null,null,null,null,null,""]
[null,null,null,null,null,null,""]
[null,null,null,null,null,null,""]
[null,null,null,null,null,null,""]
[null,null,null,null,null,null,""]
[null,null,null,null,null,null,""]
[null,null,null,null,null,null,""]
[null,null,null,null,null,null,""]
[null,null,null,null,null,null,""]
[null,null,null,null,null,null,""]
[null,null,null,null,null,null,""]
[null,null,null,null,null,null,""]
[null,null,null,null,null,null,""]
[null,null,null,null,null,null,""]
[null,null,null,null,null,null,""]
[null,null,null,null,null,null,""]
[null,null,null,null,null,null,""]
[null,null,null,null,null,null,""]
[null,null,null,null,null,null,""]
[null,null,null,null,null,null,""]
[null,null,null,null,null,null,""]
[null,null,null,null,null,null,""]
[null,null,null,null,null,null,""]
[null,null,null,null,null,null,""]
[null,null,null,null,null,null,""]
[null,null,null,null,null,null,{"$f":"IF(T239=\"\",\"\",IF(T239=14,\"PREJUVENIL\",IF(OR(T239=15,T239=16),\"JUVENIL\",IF(T239>=17,\"MAYORES\",IF(OR(T239=13,D239=\"31/05/2004\"),\"Check FN\",\"n/a\")))))","v":""}]
[null,null,null,null,null,null,""]
[null,null,null,null,null,null,""]
[null,null,null,null,null,null,""]
[null,null,null,null,null,null,""]
[null,null,null,null,null,null,""]
[null,null,null,null,null,null,""]
[null,null,null,null,null,null,""]
[null,null,null,null,null,null,""]
[null,null,null,null,null,null,""]
[null,null,null,null,null,null,""]
[null,null,null,null,null,null,""]
[null,null,null,null,null,null,""]
[null,null,null,null,null,null,""]
[null,null,null,null,null,null,""]
[null,null,null,null,null,null,""]
[null,null,null,null,null,null,""]
[null,null,null,null,null,null,""]
[null,null,null,null,null,null,""]
[null,null,null,null,null,null,""]
[null,null,null,null,null,null,""]
[null,null,null,null,null,null,""]
[null,null,null,null,null,null,""]
[null,null,null,null,null,null,""]
[null,null,null,null,null,null,""]
[null,null,null,null,null,null,""]
[null,null,null,null,null,null,""]
[null,null,null,null,null,null,""]
[null,null,null,null,null,null,""]
[null,null,null,null,null,null,""]
[null,null,null,null,null,null,""]
[null,null,null,null,null,null,""]
[null,null,null,null,null,null,""]
[null,null,null,null,null,null,""]
[null,null,null,null,null,null,""]
[null,null,null,null,null,null,""]
[null,null,null,null,null,null,""]
[null,null,null,null,null,null,""]
[null,null,null,null,null,null,""]
[null,null,null,null,null,null,""]
[null,null,null,null,null,null,""]
[null,null,null,null,null,null,""]
[null,null,null,null,null,null,""]
[null,null,null,null,null,null,""]
[null,null,null,null,null,null,""]
[null,null,null,null,null,null,""]
[null,null,null,null,null,null,""]
[null,null,null,null,null,null,""]
[null,null,null,null,null,null,""]
[null,null,null,null,null,null,""]
[null,null,null,null,null,null,""]
[null,null,null,null,null,null,""]
[null,null,null,null,null,null,""]
[null,null,null,null,null,null,""]
[null,null,null,null,null,null,""]
[null,null,null,null,null,null,""]
[null,null,null,null,null,null,""]
[null,null,null,null,null,null,""]
[null,null,null,null,null,null,""]
[null,null,null,null,null,null,""]
[null,null,null,null,null,null,""]
[null,null,null,null,null,null,""]
[null,null,null,null,null,null,""]
[null,null,null,null,null,null,""]
[null,null,null,null,null,null,{"$f":"IF(T303=\"\",\"\",IF(T303=14,\"PREJUVENIL\",IF(OR(T303=15,T303=16),\"JUVENIL\",IF(T303>=17,\"MAYORES\",IF(OR(T303=13,D303=\"31/05/2004\"),\"Check FN\",\"n/a\")))))","v":""}]
[null,null,null,null,null,null,""]
[null,null,null,null,null,null,""]
[null,null,null,null,null,null,""]
[null,null,null,null,null,null,""]
[null,null,null,null,null,null,""]
[null,null,null,null,null,null,""]
[null,null,null,null,null,null,""]
[null,null,null,null,null,null,""]
[null,null,null,null,null,null,""]
[null,null,null,null,null,null,""]
[null,null,null,null,null,null,""]
[null,null,null,null,null,null,""]
[null,null,null,null,null,null,""]
[null,null,null,null,null,null,""]
[null,null,null,null,null,null,""]
[null,null,null,null,null,null,""]
[null,null,null,null,null,null,""]
[null,null,null,null,null,null,""]
[null,null,null,null,null,null,""]
[null,null,null,null,null,null,""]
[null,null,null,null,null,null,""]
[null,null,null,null,null,null,""]
[null,null,null,null,null,null,""]
[null,null,null,null,null,null,""]
[null,null,null,null,null,null,""]
[null,null,null,null,null,null,""]
[null,null,null,null,null,null,""]
[null,null,null,null,null,null,""]
[null,null,null,null,null,null,""]
[null,null,null,null,null,null,""]
[null,null,null,null,null,null,""]
[null,null,null,null,null,null,""]
[null,null,null,null,null,null,""]
[null,null,null,null,null,null,""]
[null,null,null,null,null,null,""]
[null,null,null,null,null,null,""]
[null,null,null,null,null,null,""]
[null,null,null,null,null,null,""]
[null,null,null,null,null,null,""]
[null,null,null,null,null,null,""]
[null,null,null,null,null,null,""]
[null,null,null,null,null,null,""]
[null,null,null,null,null,null,""]
[null,null,null,null,null,null,""]
[null,null,null,null,null,null,""]
[null,null,null,null,null,null,""]
[null,null,null,null,null,null,""]
[null,null,null,null,null,null,""]
[null,null,null,null,null,null,""]
[null,null,null,null,null,null,""]
[null,null,null,null,null,null,""]
[null,null,null,null,null,null,""]
[null,null,null,null,null,null,""]
[null,null,null,null,null,null,""]
[null,null,null,null,null,null,""]
[null,null,null,null,null,null,""]
[null,null,null,null,null,null,""]
[null,null,null,null,null,null,""]
[null,null,null,null,null,null,""]
[null,null,null,null,null,null,""]
[null,null,null,null,null,null,""]
[null,null,null,null,null,null,""]
[null,null,null,null,null,null,""]
[null,null,null,null,null,null,{"$f":"IF(T367=\"\",\"\",IF(T367=14,\"PREJUVENIL\",IF(OR(T367=15,T367=16),\"JUVENIL\",IF(T367>=17,\"MAYORES\",IF(OR(T367=13,D367=\"31/05/2004\"),\"Check FN\",\"n/a\")))))","v":""}]
[null,null,null,null,null,null,""]
[null,null,null,null,null,null,""]
[null,null,null,null,null,null,""]
[null,null,null,null,null,null,""]
[null,null,null,null,null,null,""]
[null,null,null,null,null,null,""]
[null,null,null,null,null,null,""]
[null,null,null,null,null,null,""]
[null,null,null,null,null,null,""]
[null,null,null,null,null,null,""]
[null,null,null,null,null,null,""]
[null,null,null,null,null,null,""]
[null,null,null,null,null,null,""]
[null,null,null,null,null,null,""]
[null,null,null,null,null,null,""]
[null,null,null,null,null,null,""]
[null,null,null,null,null,null,""]
[null,null,null,null,null,null,""]
[null,null,null,null,null,null,""]
[null,null,null,null,null,null,""]
[null,null,null,null,null,null,""]
[null,null,null,null,null,null,""]
[null,null,null,null,null,null,""]
[null,null,null,null,null,null,""]
[null,null,null,null,null,null,""]
[null,null,null,null,null,null,""]
[null,null,null,null,null,null,""]
[null,null,null,null,null,null,""]
[null,null,null,null,null,null,""]
[null,null,null,null,null,null,""]
[null,null,null,null,null,null,""]
[null,null,null,null,null,null,""]
[null,null,null,null,null,null,""]
[null,null,null,null,null,null,""]
[null,null,null,null,null,null,""]
[null,null,null,null,null,null,""]
[null,null,null,null,null,null,""]
[null,null,null,null,null,null,""]
[null,null,null,null,null,null,""]
[null,null,null,null,null,null,""]
[null,null,null,null,null,null,""]
[null,null,null,null,null,null,""]
[null,null,null,null,null,null,""]
[null,null,null,null,null,null,""]
[null,null,null,null,null,null,""]
[null,null,null,null,null,null,""]
[null,null,null,null,null,null,""]
[null,null,null,null,null,null,""]
[null,null,null,null,null,null,""]
[null,null,null,null,null,null,""]
[null,null,null,null,null,null,""]
[null,null,null,null,null,null,""]
[null,null,null,null,null,null,""]
[null,null,null,null,null,null,""]
[null,null,null,null,null,null,""]
[null,null,null,null,null,null,""]
[null,null,null,null,null,null,""]
[null,null,null,null,null,null,""]
[null,null,null,null,null,null,""]
[null,null,null,null,null,null,""]
[null,null,null,null,null,null,""]
[null,null,null,null,null,null,""]
[null,null,null,null,null,null,""]
[null,null,null,null,null,null,{"$f":"IF(T431=\"\",\"\",IF(T431=14,\"PREJUVENIL\",IF(OR(T431=15,T431=16),\"JUVENIL\",IF(T431>=17,\"MAYORES\",IF(OR(T431=13,D431=\"31/05/2004\"),\"Check FN\",\"n/a\")))))","v":""}]
[null,null,null,null,null,null,""]
[null,null,null,null,null,null,""]
[null,null,null,null,null,null,""]
[null,null,null,null,null,null,""]
[null,null,null,null,null,null,""]
[null,null,null,null,null,null,""]
[null,null,null,null,null,null,""]
[null,null,null,null,null,null,""]
[null,null,null,null,null,null,""]
[null,null,null,null,null,null,""]
[null,null,null,null,null,null,""]
[null,null,null,null,null,null,""]
[null,null,null,null,null,null,""]
[null,null,null,null,null,null,""]
[null,null,null,null,null,null,""]
[null,null,null,null,null,null,""]
[null,null,null,null,null,null,""]
[null,null,null,null,null,null,""]
[null,null,null,null,null,null,""]
[null,null,null,null,null,null,""]
[null,null,null,null,null,null,""]
[null,null,null,null,null,null,""]
[null,null,null,null,null,null,""]
[null,null,null,null,null,null,""]
[null,null,null,null,null,null,""]
[null,null,null,null,null,null,""]
[null,null,null,null,null,null,""]
[null,null,null,null,null,null,""]
[null,null,null,null,null,null,""]
[null,null,null,null,null,null,""]
[null,null,null,null,null,null,""]
[null,null,null,null,null,null,""]
[null,null,null,null,null,null,""]
[null,null,null,null,null,null,""]
[null,null,null,null,null,null,""]
[null,null,null,null,null,null,""]
[null,null,null,null,null,null,""]
[null,null,null,null,null,null,""]
[null,null,null,null,null,null,""]
[null,null,null,null,null,null,""]
[null,null,null,null,null,null,""]
[null,null,null,null,null,null,""]
[null,null,null,null,null,null,""]
[null,null,null,null,null,null,""]
[null,null,null,null,null,null,""]
[null,null,null,null,null,null,""]
[null,null,null,null,null,null,""]
[null,null,null,null,null,null,""]
[null,null,null,null,null,null,""]
[null,null,null,null,null,null,""]
[null,null,null,null,null,null,""]
[null,null,null,null,null,null,""]
[null,null,null,null,null,null,""]
[null,null,null,null,null,null,""]
[null,null,null,null,null,null,""]
[null,null,null,null,null,null,""]
[null,null,null,null,null,null,""]
[null,null,null,null,null,null,""]
[null,null,null,null,null,null,""]
[null,null,null,null,null,null,""]
[null,null,null,null,null,null,""]
[null,null,null,null,null,null,""]
[null,null,null,null,null,null,""]
[null,null,null,null,null,null,{"$f":"IF(T495=\"\",\"\",IF(T495=14,\"PREJUVENIL\",IF(OR(T495=15,T495=16),\"JUVENIL\",IF(T495>=17,\"MAYORES\",IF(OR(T495=13,D495=\"31/05/2004\"),\"Check FN\",\"n/a\")))))","v":""}]
[null,null,null,null,null,null,""]
[null,null,null,null,null,null,""]
[null,null,null,null,null,null,""]
[null,null,null,null,null,null,""]
[null,null,null,null,null,null,""]
[null,null,null,null,null,null,""]
[null,null,null,null,null,null,""]
[null,null,null,null,null,null,""]
[null,null,null,null,null,null,""]
[null,null,null,null,null,null,""]
[null,null,null,null,null,null,""]
[null,null,null,null,null,null,""]
[null,null,null,null,null,null,""]
[null,null,null,null,null,null,""]
[null,null,null,null,null,null,""]
[null,null,null,null,null,null,""]
[null,null,null,null,null,null,""]
[null,null,null,null,null,null,""]
[null,null,null,null,null,null,""]
[null,null,null,null,null,null,""]
[null,null,null,null,null,null,""]
[null,null,null,null,null,null,""]
[null,null,null,null,null,null,""]
[null,null,null,null,null,null,""]
[null,null,null,null,null,null,""]
[null,null,null,null,null,null,""]
[null,null,null,null,null,null,""]
[null,null,null,null,null,null,""]
[null,null,null,null,null,null,""]
[null,null,null,null,null,null,""]
[null,null,null,null,null,null,""]
[null,null,null,null,null,null,""]
[null,null,null,null,null,null,""]
[null,null,null,null,null,null,""]
[null,null,null,null,null,null,""]
[null,null,null,null,null,null,""]
[null,null,null,null,null,null,""]
[null,null,null,null,null,null,""]
[null,null,null,null,null,null,""]
[null,null,null,null,null,null,""]
[null,null,null,null,null,null,""]
[null,null,null,null,null,null,""]
[null,null,null,null,null,null,""]
[null,null,null,null,null,null,""]
[null,null,null,null,null,null,""]
[null,null,null,null,null,null,""]
[null,null,null,null,null,null,""]
[null,null,null,null,null,null,""]
[null,null,null,null,null,null,""]
[null,null,null,null,null,null,""]
[null,null,null,null,null,null,""]
[null,null,null,null,null,null,""]
[null,null,null,null,null,null,""]
[null,null,null,null,null,null,""]
[null,null,null,null,null,null,""]
[null,null,null,null,null,null,""]
[null,null,null,null,null,null,""]
[null,null,null,null,null,null,""]
[null,null,null,null,null,null,""]
[null,null,null,null,null,null,""]
[null,null,null,null,null,null,""]
[null,null,null,null,null,null,""]
[null,null,null,null,null,null,""]
[null,null,null,null,null,null,{"$f":"IF(T559=\"\",\"\",IF(T559=14,\"PREJUVENIL\",IF(OR(T559=15,T559=16),\"JUVENIL\",IF(T559>=17,\"MAYORES\",IF(OR(T559=13,D559=\"31/05/2004\"),\"Check FN\",\"n/a\")))))","v":""}]
[null,null,null,null,null,null,""]
[null,null,null,null,null,null,""]
[null,null,null,null,null,null,""]
[null,null,null,null,null,null,""]
[null,null,null,null,null,null,""]
[null,null,null,null,null,null,""]
[null,null,null,null,null,null,""]
[null,null,null,null,null,null,""]
[null,null,null,null,null,null,""]
[null,null,null,null,null,null,""]
[null,null,null,null,null,null,""]
[null,null,null,null,null,null,""]
[null,null,null,null,null,null,""]
[null,null,null,null,null,null,""]
[null,null,null,null,null,null,""]
[null,null,null,null,null,null,""]
[null,null,null,null,null,null,""]
[null,null,null,null,null,null,""]
[null,null,null,null,null,null,""]
[null,null,null,null,null,null,""]
[null,null,null,null,null,null,""]
[null,null,null,null,null,null,""]
[null,null,null,null,null,null,""]
[null,null,null,null,null,null,""]
[null,null,null,null,null,null,""]
[null,null,null,null,null,null,""]
[null,null,null,null,null,null,""]
[null,null,null,null,null,null,""]
[null,null,null,null,null,null,""]
[null,null,null,null,null,null,""]
[null,null,null,null,null,null,""]
[null,null,null,null,null,null,""]
[null,null,null,null,null,null,""]
[null,null,null,null,null,null,""]
[null,null,null,null,null,null,""]
[null,null,null,null,null,null,""]
[null,null,null,null,null,null,""]
[null,null,null,null,null,null,""]
[null,null,null,null,null,null,""]
[null,null,null,null,null,null,""]
[null,null,null,null,null,null,""]
[null,null,null,null,null,null,""]
[null,null,null,null,null,null,""]
[null,null,null,null,null,null,""]
[null,null,null,null,null,null,""]
[null,null,null,null,null,null,""]
[null,null,null,null,null,null,""]
[null,null,null,null,null,null,""]
[null,null,null,null,null,null,""]
[null,null,null,null,null,null,""]
[null,null,null,null,null,null,""]
[null,null,null,null,null,null,""]
[null,null,null,null,null,null,""]
[null,null,null,null,null,null,""]
[null,null,null,null,null,null,""]
[null,null,null,null,null,null,""]
[null,null,null,null,null,null,""]
[null,null,null,null,null,null,""]
[null,null,null,null,null,null,""]
[null,null,null,null,null,null,""]
[null,null,null,null,null,null,""]
[null,null,null,null,null,null,""]
[null,null,null,null,null,null,""]
[null,null,null,null,null,null,{"$f":"IF(T623=\"\",\"\",IF(T623=14,\"PREJUVENIL\",IF(OR(T623=15,T623=16),\"JUVENIL\",IF(T623>=17,\"MAYORES\",IF(OR(T623=13,D623=\"31/05/2004\"),\"Check FN\",\"n/a\")))))","v":""}]
[null,null,null,null,null,null,""]
[null,null,null,null,null,null,""]
[null,null,null,null,null,null,""]
[null,null,null,null,null,null,""]
[null,null,null,null,null,null,""]
[null,null,null,null,null,null,""]
[null,null,null,null,null,null,""]
[null,null,null,null,null,null,""]
[null,null,null,null,null,null,""]
[null,null,null,null,null,null,""]
[null,null,null,null,null,null,""]
[null,null,null,null,null,null,""]
[null,null,null,null,null,null,""]
[null,null,null,null,null,null,""]
[null,null,null,null,null,null,""]
[null,null,null,null,null,null,""]
[null,null,null,null,null,null,""]
[null,null,null,null,null,null,""]
[null,null,null,null,null,null,""]
[null,null,null,null,null,null,""]
[null,null,null,null,null,null,""]
[null,null,null,null,null,null,""]
[null,null,null,null,null,null,""]
[null,null,null,null,null,null,""]
[null,null,null,null,null,null,""]
[null,null,null,null,null,null,""]
[null,null,null,null,null,null,""]
[null,null,null,null,null,null,""]
[null,null,null,null,null,null,""]
[null,null,null,null,null,null,""]
[null,null,null,null,null,null,""]
[null,null,null,null,null,null,""]
[null,null,null,null,null,null,""]
[null,null,null,null,null,null,""]
[null,null,null,null,null,null,""]
[null,null,null,null,null,null,""]
[null,null,null,null,null,null,""]
[null,null,null,null,null,null,""]
[null,null,null,null,null,null,""]
[null,null,null,null,null,null,""]
[null,null,null,null,null,null,""]
[null,null,null,null,null,null,""]
[null,null,null,null,null,null,""]
[null,null,null,null,null,null,""]
[null,null,null,null,null,null,""]
[null,null,null,null,null,null,""]
[null,null,null,null,null,null,""]
[null,null,null,null,null,null,""]
[null,null,null,null,null,null,""]
[null,null,null,null,null,null,""]
[null,null,null,null,null,null,""]
[null,null,null,null,null,null,""]
[null,null,null,null,null,null,""]
[null,null,null,null,null,null,""]
[null,null,null,null,null,null,""]
[null,null,null,null,null,null,""]
[null,null,null,null,null,null,""]
[null,null,null,null,null,null,""]
[null,null,null,null,null,null,""]
[null,null,null,null,null,null,""]
[null,null,null,null,null,null,""]
[null,null,null,null,null,null,""]
[null,null,null,null,null,null,""]
[null,null,null,null,null,null,{"$f":"IF(T687=\"\",\"\",IF(T687=14,\"PREJUVENIL\",IF(OR(T687=15,T687=16),\"JUVENIL\",IF(T687>=17,\"MAYORES\",IF(OR(T687=13,D687=\"31/05/2004\"),\"Check FN\",\"n/a\")))))","v":""}]
[null,null,null,null,null,null,""]
[null,null,null,null,null,null,""]
[null,null,null,null,null,null,""]
[null,null,null,null,null,null,""]
[null,null,null,null,null,null,""]
[null,null,null,null,null,null,""]
[null,null,null,null,null,null,""]
[null,null,null,null,null,null,""]
[null,null,null,null,null,null,""]
[null,null,null,null,null,null,""]
[null,null,null,null,null,null,""]
[null,null,null,null,null,null,""]
[null,null,null,null,null,null,""]
[null,null,null,null,null,null,""]
[null,null,null,null,null,null,""]
[null,null,null,null,null,null,""]
[null,null,null,null,null,null,""]
[null,null,null,null,null,null,""]
[null,null,null,null,null,null,""]
[null,null,null,null,null,null,""]
[null,null,null,null,null,null,""]
[null,null,null,null,null,null,""]
[null,null,null,null,null,null,""]
[null,null,null,null,null,null,""]
[null,null,null,null,null,null,""]
[null,null,null,null,null,null,""]
[null,null,null,null,null,null,""]
[null,null,null,null,null,null,""]
[null,null,null,null,null,null,""]
[null,null,null,null,null,null,""]
[null,null,null,null,null,null,""]
[null,null,null,null,null,null,""]
[null,null,null,null,null,null,""]
[null,null,null,null,null,null,""]
[null,null,null,null,null,null,""]
[null,null,null,null,null,null,""]
[null,null,null,null,null,null,""]
[null,null,null,null,null,null,""]
[null,null,null,null,null,null,""]
[null,null,null,null,null,null,""]
[null,null,null,null,null,null,""]
[null,null,null,null,null,null,""]
[null,null,null,null,null,null,""]
[null,null,null,null,null,null,""]
[null,null,null,null,null,null,""]
[null,null,null,null,null,null,""]
[null,null,null,null,null,null,""]
[null,null,null,null,null,null,""]
[null,null,null,null,null,null,""]
[null,null,null,null,null,null,""]
[null,null,null,null,null,null,""]
[null,null,null,null,null,null,""]
[null,null,null,null,null,null,""]
[null,null,null,null,null,null,""]
[null,null,null,null,null,null,""]
[null,null,null,null,null,null,""]
[null,null,null,null,null,null,""]
[null,null,null,null,null,null,""]
[null,null,null,null,null,null,""]
[null,null,null,null,null,null,""]
[null,null,null,null,null,null,""]
[null,null,null,null,null,null,""]
[null,null,null,null,null,null,""]
[null,null,null,null,null,null,{"$f":"IF(T751=\"\",\"\",IF(T751=14,\"PREJUVENIL\",IF(OR(T751=15,T751=16),\"JUVENIL\",IF(T751>=17,\"MAYORES\",IF(OR(T751=13,D751=\"31/05/2004\"),\"Check FN\",\"n/a\")))))","v":""}]
[null,null,null,null,null,null,""]
[null,null,null,null,null,null,""]
[null,null,null,null,null,null,""]
[null,null,null,null,null,null,""]
[null,null,null,null,null,null,""]
[null,null,null,null,null,null,""]
[null,null,null,null,null,null,""]
[null,null,null,null,null,null,""]
[null,null,null,null,null,null,""]
[null,null,null,null,null,null,""]
[null,null,null,null,null,null,""]
[null,null,null,null,null,null,""]
[null,null,null,null,null,null,""]
[null,null,null,null,null,null,""]
[null,null,null,null,null,null,""]
[null,null,null,null,null,null,""]
[null,null,null,null,null,null,""]
[null,null,null,null,null,null,""]
[null,null,null,null,null,null,""]
[null,null,null,null,null,null,""]
[null,null,null,null,null,null,""]
[null,null,null,null,null,null,""]
[null,null,null,null,null,null,""]
[null,null,null,null,null,null,""]
[null,null,null,null,null,null,""]
[null,null,null,null,null,null,""]
[null,null,null,null,null,null,""]
[null,null,null,null,null,null,""]
[null,null,null,null,null,null,""]
[null,null,null,null,null,null,""]
[null,null,null,null,null,null,""]
[null,null,null,null,null,null,""]
[null,null,null,null,null,null,""]
[null,null,null,null,null,null,""]
[null,null,null,null,null,null,""]
[null,null,null,null,null,null,""]
[null,null,null,null,null,null,""]
[null,null,null,null,null,null,""]
[null,null,null,null,null,null,""]
[null,null,null,null,null,null,""]
[null,null,null,null,null,null,""]
[null,null,null,null,null,null,""]
[null,null,null,null,null,null,""]
[null,null,null,null,null,null,""]
[null,null,null,null,null,null,""]
[null,null,null,null,null,null,""]
[null,null,null,null,null,null,""]
[null,null,null,null,null,null,""]
[null,null,null,null,null,null,""]
[null,null,null,null,null,null,""]
[null,null,null,null,null,null,""]
[null,null,null,null,null,null,""]
[null,null,null,null,null,null,""]
[null,null,null,null,null,null,""]
[null,null,null,null,null,null,""]
[null,null,null,null,null,null,""]
[null,null,null,null,null,null,""]
[null,null,null,null,null,null,""]
[null,null,null,null,null,null,""]
[null,null,null,null,null,null,""]
[null,null,null,null,null,null,""]
[null,null,null,null,null,null,""]
[null,null,null,null,null,null,""]
[null,null,null,null,null,null,{"$f":"IF(T815=\"\",\"\",IF(T815=14,\"PREJUVENIL\",IF(OR(T815=15,T815=16),\"JUVENIL\",IF(T815>=17,\"MAYORES\",IF(OR(T815=13,D815=\"31/05/2004\"),\"Check FN\",\"n/a\")))))","v":""}]
[null,null,null,null,null,null,""]
[null,null,null,null,null,null,""]
[null,null,null,null,null,null,""]
[null,null,null,null,null,null,""]
[null,null,null,null,null,null,""]
[null,null,null,null,null,null,""]
[null,null,null,null,null,null,""]
[null,null,null,null,null,null,""]
[null,null,null,null,null,null,""]
[null,null,null,null,null,null,""]
[null,null,null,null,null,null,""]
[null,null,null,null,null,null,""]
[null,null,null,null,null,null,""]
[null,null,null,null,null,null,""]
[null,null,null,null,null,null,""]
[null,null,null,null,null,null,""]
[null,null,null,null,null,null,""]
[null,null,null,null,null,null,""]
[null,null,null,null,null,null,""]
[null,null,null,null,null,null,""]
[null,null,null,null,null,null,""]
[null,null,null,null,null,null,""]
[null,null,null,null,null,null,""]
[null,null,null,null,null,null,""]
[null,null,null,null,null,null,""]
[null,null,null,null,null,null,""]
[null,null,null,null,null,null,""]
[null,null,null,null,null,null,""]
[null,null,null,null,null,null,""]
[null,null,null,null,null,null,""]
[null,null,null,null,null,null,""]
[null,null,null,null,null,null,""]
[null,null,null,null,null,null,""]
[null,null,null,null,null,null,""]
[null,null,null,null,null,null,""]
[null,null,null,null,null,null,""]
[null,null,null,null,null,null,""]
[null,null,null,null,null,null,""]
[null,null,null,null,null,null,""]
[null,null,null,null,null,null,""]
[null,null,null,null,null,null,""]
[null,null,null,null,null,null,""]
[null,null,null,null,null,null,""]
[null,null,null,null,null,null,""]
[null,null,null,null,null,null,""]
[null,null,null,null,null,null,""]
[null,null,null,null,null,null,""]
[null,null,null,null,null,null,""]
[null,null,null,null,null,null,""]
[null,null,null,null,null,null,""]
[null,null,null,null,null,null,""]
[null,null,null,null,null,null,""]
[null,null,null,null,null,null,""]
[null,null,null,null,null,null,""]
[null,null,null,null,null,null,""]
[null,null,null,null,null,null,""]
[null,null,null,null,null,null,""]
[null,null,null,null,null,null,""]
[null,null,null,null,null,null,""]
[null,null,null,null,null,null,""]
[null,null,null,null,null,null,""]
[null,null,null,null,null,null,""]
[null,null,null,null,null,null,""]
[null,null,null,null,null,null,{"$f":"IF(T879=\"\",\"\",IF(T879=14,\"PREJUVENIL\",IF(OR(T879=15,T879=16),\"JUVENIL\",IF(T879>=17,\"MAYORES\",IF(OR(T879=13,D879=\"31/05/2004\"),\"Check FN\",\"n/a\")))))","v":""}]
[null,null,null,null,null,null,""]
[null,null,null,null,null,null,""]
[null,null,null,null,null,null,""]
[null,null,null,null,null,null,""]
[null,null,null,null,null,null,""]
[null,null,null,null,null,null,""]
[null,null,null,null,null,null,""]
[null,null,null,null,null,null,""]
[null,null,null,null,null,null,""]
[null,null,null,null,null,null,""]
[null,null,null,null,null,null,""]
[null,null,null,null,null,null,""]
[null,null,null,null,null,null,""]
[null,null,null,null,null,null,""]
[null,null,null,null,null,null,""]
[null,null,null,null,null,null,""]
[null,null,null,null,null,null,""]
[null,null,null,null,null,null,""]
[null,null,null,null,null,null,""]
[null,null,null,null,null,null,""]
[null,null,null,null,null,null,""]
[null,null,null,null,null,null,""]
[null,null,null,null,null,null,""]
[null,null,null,null,null,null,""]
[null,null,null,null,null,null,""]
[null,null,null,null,null,null,""]
[null,null,null,null,null,null,""]
[null,null,null,null,null,null,""]
[null,null,null,null,null,null,""]
[null,null,null,null,null,null,""]
[null,null,null,null,null,null,""]
[null,null,null,null,null,null,""]
[null,null,null,null,null,null,""]
[null,null,null,null,null,null,""]
[null,null,null,null,null,null,""]
[null,null,null,null,null,null,""]
[null,null,null,null,null,null,""]
[null,null,null,null,null,null,""]
[null,null,null,null,null,null,""]
[null,null,null,null,null,null,""]
[null,null,null,null,null,null,""]
[null,null,null,null,null,null,""]
[null,null,null,null,null,null,""]
[null,null,null,null,null,null,""]
[null,null,null,null,null,null,""]
[null,null,null,null,null,null,""]
[null,null,null,null,null,null,""]
[null,null,null,null,null,null,""]
[null,null,null,null,null,null,""]
[null,null,null,null,null,null,""]
[null,null,null,null,null,null,""]
[null,null,null,null,null,null,""]
[null,null,null,null,null,null,""]
[null,null,null,null,null,null,""]
[null,null,null,null,null,null,""]
[null,null,null,null,null,null,""]
[null,null,null,null,null,null,""]
[null,null,null,null,null,null,""]
[null,null,null,null,null,null,""]
[null,null,null,null,null,null,""]
[null,null,null,null,null,null,""]
[null,null,null,null,null,null,""]
[null,null,null,null,null,null,""]
[null,null,null,null,null,null,{"$f":"IF(T943=\"\",\"\",IF(T943=14,\"PREJUVENIL\",IF(OR(T943=15,T943=16),\"JUVENIL\",IF(T943>=17,\"MAYORES\",IF(OR(T943=13,D943=\"31/05/2004\"),\"Check FN\",\"n/a\")))))","v":""}]
[null,null,null,null,null,null,""]
[null,null,null,null,null,null,""]
[null,null,null,null,null,null,""]
[null,null,null,null,null,null,""]
[null,null,null,null,null,null,""]
[null,null,null,null,null,null,""]
[null,null,null,null,null,null,""]
[null,null,null,null,null,null,""]
[null,null,null,null,null,null,""]
[null,null,null,null,null,null,""]
[null,null,null,null,null,null,""]
[null,null,null,null,null,null,""]
[null,null,null,null,null,null,""]
[null,null,null,null,null,null,""]
[null,null,null,null,null,null,""]
[null,null,null,null,null,null,""]
[null,null,null,null,null,null,""]
[null,null,null,null,null,null,""]
[null,null,null,null,null,null,""]
[null,null,null,null,null,null,""]
[null,null,null,null,null,null,""]
[null,null,null,null,null,null,""]
[null,null,null,null,null,null,""]
[null,null,null,null,null,null,""]
[null,null,null,null,null,null,""]
[null,null,null,null,null,null,""]
[null,null,null,null,null,null,""]
[null,null,null,null,null,null,""]
[null,null,null,null,null,null,""]
[null,null,null,null,null,null,""]
[null,null,null,null,null,null,""]
[null,null,null,null,null,null,""]
[null,null,null,null,null,null,""]
[null,null,null,null,null,null,""]
[null,null,null,null,null,null,""]
[null,null,null,null,null,null,""]
[null,null,null,null,null,null,""]
[null,null,null,null,null,null,""]
[null,null,null,null,null,null,""]
[null,null,null,null,null,null,""]
[null,null,null,null,null,null,""]
[null,null,null,null,null,null,""]
[null,null,null,null,null,null,""]
[null,null,null,null,null,null,""]
[null,null,null,null,null,null,""]
[null,null,null,null,null,null,""]
[null,null,null,null,null,null,""]
[null,null,null,null,null,null,""]
[null,null,null,null,null,null,""]
[null,null,null,null,null,null,""]
[null,null,null,null,null,null,""]
[null,null,null,null,null,null,""]
[null,null,null,null,null,null,""]
[null,null,null,null,null,null,""]
[null,null,null,null,null,null,""]
[null,null,null,null,null,null,""]
[null,null,null,null,null,null,""]
[null,null,null,null,null,null,""]
[null,null,null,null,null,null,""]
[null,null,null,null,null,null,""]
[null,null,null,null,null,null,""]
[null,null,null,null,null,null,""]
[null,null,null,null,null,null,""]
[null,null,null,null,null,null,{"$f":"IF(T1007=\"\",\"\",IF(T1007=14,\"PREJUVENIL\",IF(OR(T1007=15,T1007=16),\"JUVENIL\",IF(T1007>=17,\"MAYORES\",IF(OR(T1007=13,D1007=\"31/05/2004\"),\"Check FN\",\"n/a\")))))","v":""}]
[null,null,null,null,null,null,""]
[null,null,null,null,null,null,""]
[null,null,null,null,null,null,""]
[null,null,null,null,null,null,""]
[null,null,null,null,null,null,""]
[null,null,null,null,null,null,""]
[null,null,null,null,null,null,""]
[null,null,null,null,null,null,""]
[null,null,null,null,null,null,""]
[null,null,null,null,null,null,""]
[null,null,null,null,null,null,""]
[null,null,null,null,null,null,""]
[null,null,null,null,null,null,""]
[null,null,null,null,null,null,""]
[null,null,null,null,null,null,""]
[null,null,null,null,null,null,""]
[null,null,null,null,null,null,""]
[null,null,null,null,null,null,""]
[null,null,null,null,null,null,""]
[null,null,null,null,null,null,""]
[null,null,null,null,null,null,""]
[null,null,null,null,null,null,""]
[null,null,null,null,null,null,""]
[null,null,null,null,null,null,""]
[null,null,null,null,null,null,""]
[null,null,null,null,null,null,""]
[null,null,null,null,null,null,""]
[null,null,null,null,null,null,""]
[null,null,null,null,null,null,""]
[null,null,null,null,null,null,""]
[null,null,null,null,null,null,""]
[null,null,null,null,null,null,""]
[null,null,null,null,null,null,""]
[null,null,null,null,null,null,""]
[null,null,null,null,null,null,""]
[null,null,null,null,null,null,""]
[null,null,null,null,null,null,""]
[null,null,null,null,null,null,""]
[null,null,null,null,null,null,""]
[null,null,null,null,null,null,""]
[null,null,null,null,null,null,""]
[null,null,null,null,null,null,""]
[null,null,null,null,null,null,""]
[null,null,null,null,null,null,""]
[null,null,null,null,null,null,""]
[null,null,null,null,null,null,""]
[null,null,null,null,null,null,""]
[null,null,null,null,null,null,""]
[null,null,null,null,null,null,""]
[null,null,null,null,null,null,""]
[null,null,null,null,null,null,""]
[null,null,null,null,null,null,""]
[null,null,null,null,null,null,""]
[null,null,null,null,null,null,""]
[null,null,null,null,null,null,""]
[null,null,null,null,null,null,""]
[null,null,null,null,null,null,""]
[null,null,null,null,null,null,""]
[null,null,null,null,null,null,""]
[null,null,null,null,null,null,""]
[null,null,null,null,null,null,""]
[null,null,null,null,null,null,""]
[null,null,null,null,null,null,""]
[null,null,null,null,null,null,{"$f":"IF(T1071=\"\",\"\",IF(T1071=14,\"PREJUVENIL\",IF(OR(T1071=15,T1071=16),\"JUVENIL\",IF(T1071>=17,\"MAYORES\",IF(OR(T1071=13,D1071=\"31/05/2004\"),\"Check FN\",\"n/a\")))))","v":""}]
[null,null,null,null,null,null,""]
[null,null,null,null,null,null,""]
[null,null,null,null,null,null,""]
[null,null,null,null,null,null,""]
[null,null,null,null,null,null,""]
[null,null,null,null,null,null,""]
[null,null,null,null,null,null,""]
[null,null,null,null,null,null,""]
[null,null,null,null,null,null,""]
[null,null,null,null,null,null,""]
[null,null,null,null,null,null,""]
[null,null,null,null,null,null,""]
[null,null,null,null,null,null,""]
[null,null,null,null,null,null,""]
[null,null,null,null,null,null,""]
[null,null,null,null,null,null,""]
[null,null,null,null,null,null,""]
[null,null,null,null,null,null,""]
[null,null,null,null,null,null,""]
[null,null,null,null,null,null,""]
[null,null,null,null,null,null,""]
[null,null,null,null,null,null,""]
[null,null,null,null,null,null,""]
[null,null,null,null,null,null,""]
[null,null,null,null,null,null,""]
[null,null,null,null,null,null,""]
[null,null,null,null,null,null,""]
[null,null,null,null,null,null,""]
[null,null,null,null,null,null,""]
[null,null,null,null,null,null,""]
[null,null,null,null,null,null,""]
[null,null,null,null,null,null,""]
[null,null,null,null,null,null,""]
[null,null,null,null,null,null,""]
[null,null,null,null,null,null,""]
[null,null,null,null,null,null,""]
[null,null,null,null,null,null,""]
[null,null,null,null,null,null,""]
[null,null,null,null,null,null,""]
[null,null,null,null,null,null,""]
[null,null,null,null,null,null,""]
[null,null,null,null,null,null,""]
[null,null,null,null,null,null,""]
[null,null,null,null,null,null,""]
[null,null,null,null,null,null,""]
[null,null,null,null,null,null,""]
[null,null,null,null,null,null,""]
[null,null,null,null,null,null,""]
[null,null,null,null,null,null,""]
[null,null,null,null,null,null,""]
[null,null,null,null,null,null,""]
[null,null,null,null,null,null,""]
[null,null,null,null,null,null,""]
[null,null,null,null,null,null,""]
[null,null,null,null,null,null,""]
[null,null,null,null,null,null,""]
[null,null,null,null,null,null,""]
[null,null,null,null,null,null,""]
[null,null,null,null,null,null,""]
[null,null,null,null,null,null,""]
[null,null,null,null,null,null,""]
[null,null,null,null,null,null,""]
[null,null,null,null,null,null,""]
[null,null,null,null,null,null,{"$f":"IF(T1135=\"\",\"\",IF(T1135=14,\"PREJUVENIL\",IF(OR(T1135=15,T1135=16),\"JUVENIL\",IF(T1135>=17,\"MAYORES\",IF(OR(T1135=13,D1135=\"31/05/2004\"),\"Check FN\",\"n/a\")))))","v":""}]
[null,null,null,null,null,null,""]
[null,null,null,null,null,null,""]
[null,null,null,null,null,null,""]
[null,null,null,null,null,null,""]
[null,null,null,null,null,null,""]
[null,null,null,null,null,null,""]
[null,null,null,null,null,null,""]
[null,null,null,null,null,null,""]
[null,null,null,null,null,null,""]
[null,null,null,null,null,null,""]
[null,null,null,null,null,null,""]
[null,null,null,null,null,null,""]
[null,null,null,null,null,null,""]
[null,null,null,null,null,null,""]
[null,null,null,null,null,null,""]
[null,null,null,null,null,null,""]
[null,null,null,null,null,null,""]
[null,null,null,null,null,null,""]
[null,null,null,null,null,null,""]
[null,null,null,null,null,null,""]
[null,null,null,null,null,null,""]
[null,null,null,null,null,null,""]
[null,null,null,null,null,null,""]
[null,null,null,null,null,null,""]
[null,null,null,null,null,null,""]
[null,null,null,null,null,null,""]
[null,null,null,null,null,null,""]
[null,null,null,null,null,null,""]
[null,null,null,null,null,null,""]
[null,null,null,null,null,null,""]
[null,null,null,null,null,null,""]
[null,null,null,null,null,null,""]
[null,null,null,null,null,null,""]
[null,null,null,null,null,null,""]
[null,null,null,null,null,null,""]
[null,null,null,null,null,null,""]
[null,null,null,null,null,null,""]
[null,null,null,null,null,null,""]
[null,null,null,null,null,null,""]
[null,null,null,null,null,null,""]
[null,null,null,null,null,null,""]
[null,null,null,null,null,null,""]
[null,null,null,null,null,null,""]
[null,null,null,null,null,null,""]
[null,null,null,null,null,null,""]
[null,null,null,null,null,null,""]
[null,null,null,null,null,null,""]
[null,null,null,null,null,null,""]
[null,null,null,null,null,null,""]
[null,null,null,null,null,null,""]
[null,null,null,null,null,null,""]
[null,null,null,null,null,null,""]
[null,null,null,null,null,null,""]
[null,null,null,null,null,null,""]
[null,null,null,null,null,null,""]
[null,null,null,null,null,null,""]
[null,null,null,null,null,null,""]
[null,null,null,null,null,null,""]
[null,null,null,null,null,null,""]
[null,null,null,null,null,null,""]
[null,null,null,null,null,null,""]
[null,null,null,null,null,null,""]
[null,null,null,null,null,null,""]
[null,null,null,null,null,null,{"$f":"IF(T1199=\"\",\"\",IF(T1199=14,\"PREJUVENIL\",IF(OR(T1199=15,T1199=16),\"JUVENIL\",IF(T1199>=17,\"MAYORES\",IF(OR(T1199=13,D1199=\"31/05/2004\"),\"Check FN\",\"n/a\")))))","v":""}]
[null,null,null,null,null,null,""]
[null,null,null,null,null,null,""]
[null,null,null,null,null,null,""]
[null,null,null,null,null,null,""]
[null,null,null,null,null,null,""]
[null,null,null,null,null,null,""]
[null,null,null,null,null,null,""]
[null,null,null,null,null,null,""]
[null,null,null,null,null,null,""]
[null,null,null,null,null,null,""]
[null,null,null,null,null,null,""]
[null,null,null,null,null,null,""]
[null,null,null,null,null,null,""]
[null,null,null,null,null,null,""]
[null,null,null,null,null,null,""]
[null,null,null,null,null,null,""]
[null,null,null,null,null,null,""]
[null,null,null,null,null,null,""]
[null,null,null,null,null,null,""]
[null,null,null,null,null,null,""]
[null,null,null,null,null,null,""]
[null,null,null,null,null,null,""]
[null,null,null,null,null,null,""]
[null,null,null,null,null,null,""]
[null,null,null,null,null,null,""]
[null,null,null,null,null,null,""]
[null,null,null,null,null,null,""]
[null,null,null,null,null,null,""]
[null,null,null,null,null,null,""]
[null,null,null,null,null,null,""]
[null,null,null,null,null,null,""]
[null,null,null,null,null,null,""]
[null,null,null,null,null,null,""]
[null,null,null,null,null,null,""]
[null,null,null,null,null,null,""]
[null,null,null,null,null,null,""]
[null,null,null,null,null,null,""]
[null,null,null,null,null,null,""]
[null,null,null,null,null,null,""]
[null,null,null,null,null,null,""]
[null,null,null,null,null,null,""]
[null,null,null,null,null,null,""]
[null,null,null,null,null,null,""]
[null,null,null,null,null,null,""]
[null,null,null,null,null,null,""]
[null,null,null,null,null,null,""]
[null,null,null,null,null,null,""]
[null,null,null,null,null,null,""]
[null,null,null,null,null,null,""]
[null,null,null,null,null,null,""]
[null,null,null,null,null,null,""]
[null,null,null,null,null,null,""]
[null,null,null,null,null,null,""]
[null,null,null,null,null,null,""]
[null,null,null,null,null,null,""]
[null,null,null,null,null,null,""]
[null,null,null,null,null,null,""]
[null,null,null,null,null,null,""]
[null,null,null,null,null,null,""]
[null,null,null,null,null,null,""]
[null,null,null,null,null,null,""]
[null,null,null,null,null,null,""]
[null,null,null,null,null,null,""]
[null,null,null,null,null,null,{"$f":"IF(T1263=\"\",\"\",IF(T1263=14,\"PREJUVENIL\",IF(OR(T1263=15,T1263=16),\"JUVENIL\",IF(T1263>=17,\"MAYORES\",IF(OR(T1263=13,D1263=\"31/05/2004\"),\"Check FN\",\"n/a\")))))","v":""}]
[null,null,null,null,null,null,""]
[null,null,null,null,null,null,""]
[null,null,null,null,null,null,""]
[null,null,null,null,null,null,""]
[null,null,null,null,null,null,""]
[null,null,null,null,null,null,""]
[null,null,null,null,null,null,""]
[null,null,null,null,null,null,""]
[null,null,null,null,null,null,""]
[null,null,null,null,null,null,""]
[null,null,null,null,null,null,""]
[null,null,null,null,null,null,""]
[null,null,null,null,null,null,""]
[null,null,null,null,null,null,""]
[null,null,null,null,null,null,""]
[null,null,null,null,null,null,""]
[null,null,null,null,null,null,""]
[null,null,null,null,null,null,""]
[null,null,null,null,null,null,""]
[null,null,null,null,null,null,""]
[null,null,null,null,null,null,""]
[null,null,null,null,null,null,""]
[null,null,null,null,null,null,""]
[null,null,null,null,null,null,""]
[null,null,null,null,null,null,""]
[null,null,null,null,null,null,""]
[null,null,null,null,null,null,""]
[null,null,null,null,null,null,""]
[null,null,null,null,null,null,""]
[null,null,null,null,null,null,""]
[null,null,null,null,null,null,""]
[null,null,null,null,null,null,""]
[null,null,null,null,null,null,""]
[null,null,null,null,null,null,""]
[null,null,null,null,null,null,""]
[null,null,null,null,null,null,""]
[null,null,null,null,null,null,""]
[null,null,null,null,null,null,""]
[null,null,null,null,null,null,""]
[null,null,null,null,null,null,""]
[null,null,null,null,null,null,""]
[null,null,null,null,null,null,""]
[null,null,null,null,null,null,""]
[null,null,null,null,null,null,""]
[null,null,null,null,null,null,""]
[null,null,null,null,null,null,""]
[null,null,null,null,null,null,""]
[null,null,null,null,null,null,""]
[null,null,null,null,null,null,""]
[null,null,null,null,null,null,""]
[null,null,null,null,null,null,""]
[null,null,null,null,null,null,""]
[null,null,null,null,null,null,""]
[null,null,null,null,null,null,""]
[null,null,null,null,null,null,""]
[null,null,null,null,null,null,""]
[null,null,null,null,null,null,""]
[null,null,null,null,null,null,""]
[null,null,null,null,null,null,""]
[null,null,null,null,null,null,""]
[null,null,null,null,null,null,""]
[null,null,null,null,null,null,""]
[null,null,null,null,null,null,""]
[null,null,null,null,null,null,{"$f":"IF(T1327=\"\",\"\",IF(T1327=14,\"PREJUVENIL\",IF(OR(T1327=15,T1327=16),\"JUVENIL\",IF(T1327>=17,\"MAYORES\",IF(OR(T1327=13,D1327=\"31/05/2004\"),\"Check FN\",\"n/a\")))))","v":""}]
[null,null,null,null,null,null,""]
[null,null,null,null,null,null,""]
[null,null,null,null,null,null,""]
[null,null,null,null,null,null,""]
[null,null,null,null,null,null,""]
[null,null,null,null,null,null,""]
[null,null,null,null,null,null,""]
[null,null,null,null,null,null,""]
[null,null,null,null,null,null,""]
[null,null,null,null,null,null,""]
[null,null,null,null,null,null,""]
[null,null,null,null,null,null,""]
[null,null,null,null,null,null,""]
[null,null,null,null,null,null,""]
[null,null,null,null,null,null,""]
[null,null,null,null,null,null,""]
[null,null,null,null,null,null,""]
[null,null,null,null,null,null,""]
[null,null,null,null,null,null,""]
[null,null,null,null,null,null,""]
[null,null,null,null,null,null,""]
[null,null,null,null,null,null,""]
[null,null,null,null,null,null,""]
[null,null,null,null,null,null,""]
[null,null,null,null,null,null,""]
[null,null,null,null,null,null,""]
[null,null,null,null,null,null,""]
[null,null,null,null,null,null,""]
[null,null,null,null,null,null,""]
[null,null,null,null,null,null,""]
[null,null,null,null,null,null,""]
[null,null,null,null,null,null,""]
[null,null,null,null,null,null,""]
[null,null,null,null,null,null,""]
[null,null,null,null,null,null,""]
[null,null,null,null,null,null,""]
[null,null,null,null,null,null,""]
[null,null,null,null,null,null,""]
[null,null,null,null,null,null,""]
[null,null,null,null,null,null,""]
[null,null,null,null,null,null,""]
[null,null,null,null,null,null,""]
[null,null,null,null,null,null,""]
[null,null,null,null,null,null,""]
[null,null,null,null,null,null,""]
[null,null,null,null,null,null,""]
[null,null,null,null,null,null,""]
[null,null,null,null,null,null,""]
[null,null,null,null,null,null,""]
[null,null,null,null,null,null,""]
[null,null,null,null,null,null,""]
[null,null,null,null,null,null,""]
[null,null,null,null,null,null,""]
[null,null,null,null,null,null,""]
[null,null,null,null,null,null,""]
[null,null,null,null,null,null,""]
[null,null,null,null,null,null,""]
[null,null,null,null,null,null,""]
[null,null,null,null,null,null,""]
[null,null,null,null,null,null,""]
[null,null,null,null,null,null,""]
[null,null,null,null,null,null,""]
[null,null,null,null,null,null,""]
[null,null,null,null,null,null,{"$f":"IF(T1391=\"\",\"\",IF(T1391=14,\"PREJUVENIL\",IF(OR(T1391=15,T1391=16),\"JUVENIL\",IF(T1391>=17,\"MAYORES\",IF(OR(T1391=13,D1391=\"31/05/2004\"),\"Check FN\",\"n/a\")))))","v":""}]
[null,null,null,null,null,null,""]
[null,null,null,null,null,null,""]
[null,null,null,null,null,null,""]
[null,null,null,null,null,null,""]
[null,null,null,null,null,null,""]
[null,null,null,null,null,null,""]
[null,null,null,null,null,null,""]
[null,null,null,null,null,null,""]
[null,null,null,null,null,null,""]
[null,null,null,null,null,null,""]
[null,null,null,null,null,null,""]
[null,null,null,null,null,null,""]
[null,null,null,null,null,null,""]
[null,null,null,null,null,null,""]
[null,null,null,null,null,null,""]
[null,null,null,null,null,null,""]
[null,null,null,null,null,null,""]
[null,null,null,null,null,null,""]
[null,null,null,null,null,null,""]
[null,null,null,null,null,null,""]
[null,null,null,null,null,null,""]
[null,null,null,null,null,null,""]
[null,null,null,null,null,null,""]
[null,null,null,null,null,null,""]
[null,null,null,null,null,null,""]
[null,null,null,null,null,null,""]
[null,null,null,null,null,null,""]
[null,null,null,null,null,null,""]
[null,null,null,null,null,null,""]
[null,null,null,null,null,null,""]
[null,null,null,null,null,null,""]
[null,null,null,null,null,null,""]
[null,null,null,null,null,null,""]
[null,null,null,null,null,null,""]
[null,null,null,null,null,null,""]
[null,null,null,null,null,null,""]
[null,null,null,null,null,null,""]
[null,null,null,null,null,null,""]
[null,null,null,null,null,null,""]
[null,null,null,null,null,null,""]
[null,null,null,null,null,null,""]
[null,null,null,null,null,null,""]
[null,null,null,null,null,null,""]
[null,null,null,null,null,null,""]
[null,null,null,null,null,null,""]
[null,null,null,null,null,null,""]
[null,null,null,null,null,null,""]
[null,null,null,null,null,null,""]
[null,null,null,null,null,null,""]
[null,null,null,null,null,null,""]
[null,null,null,null,null,null,""]
[null,null,null,null,null,null,""]
[null,null,null,null,null,null,""]
[null,null,null,null,null,null,""]
[null,null,null,null,null,null,""]
[null,null,null,null,null,null,""]
[null,null,null,null,null,null,""]
[null,null,null,null,null,null,""]
[null,null,null,null,null,null,""]
[null,null,null,null,null,null,""]
[null,null,null,null,null,null,""]
[null,null,null,null,null,null,""]
[null,null,null,null,null,null,""]
[null,null,null,null,null,null,{"$f":"IF(T1455=\"\",\"\",IF(T1455=14,\"PREJUVENIL\",IF(OR(T1455=15,T1455=16),\"JUVENIL\",IF(T1455>=17,\"MAYORES\",IF(OR(T1455=13,D1455=\"31/05/2004\"),\"Check FN\",\"n/a\")))))","v":""}]
[null,null,null,null,null,null,""]
[null,null,null,null,null,null,""]
[null,null,null,null,null,null,""]
[null,null,null,null,null,null,""]
[null,null,null,null,null,null,""]
[null,null,null,null,null,null,""]
[null,null,null,null,null,null,""]
[null,null,null,null,null,null,""]
[null,null,null,null,null,null,""]
[null,null,null,null,null,null,""]
[null,null,null,null,null,null,""]
[null,null,null,null,null,null,""]
[null,null,null,null,null,null,""]
[null,null,null,null,null,null,""]
[null,null,null,null,null,null,""]
[null,null,null,null,null,null,""]
[null,null,null,null,null,null,""]
[null,null,null,null,null,null,""]
[null,null,null,null,null,null,""]
[null,null,null,null,null,null,""]
[null,null,null,null,null,null,""]
[null,null,null,null,null,null,""]
[null,null,null,null,null,null,""]
[null,null,null,null,null,null,""]
[null,null,null,null,null,null,""]
[null,null,null,null,null,null,""]
[null,null,null,null,null,null,""]
[null,null,null,null,null,null,""]
[null,null,null,null,null,null,""]
[null,null,null,null,null,null,""]
[null,null,null,null,null,null,""]
[null,null,null,null,null,null,""]
[null,null,null,null,null,null,""]
[null,null,null,null,null,null,""]
[null,null,null,null,null,null,""]
[null,null,null,null,null,null,""]
[null,null,null,null,null,null,""]
[null,null,null,null,null,null,""]
[null,null,null,null,null,null,""]
[null,null,null,null,null,null,""]
[null,null,null,null,null,null,""]
[null,null,null,null,null,null,""]
[null,null,null,null,null,null,""]
[null,null,null,null,null,null,""]
[null,null,null,null,null,null,""]
[null,null,null,null,null,null,""]
[null,null,null,null,null,null,""]
[null,null,null,null,null,null,""]
[null,null,null,null,null,null,""]
[null,null,null,null,null,null,""]
[null,null,null,null,null,null,""]
[null,null,null,null,null,null,""]
[null,null,null,null,null,null,""]
[null,null,null,null,null,null,""]
[null,null,null,null,null,null,""]
[null,null,null,null,null,null,""]
[null,null,null,null,null,null,""]
[null,null,null,null,null,null,""]
[null,null,null,null,null,null,""]
[null,null,null,null,null,null,""]
[null,null,null,null,null,null,""]
[null,null,null,null,null,null,""]
[null,null,null,null,null,null,""]
[null,null,null,null,null,null,{"$f":"IF(T1519=\"\",\"\",IF(T1519=14,\"PREJUVENIL\",IF(OR(T1519=15,T1519=16),\"JUVENIL\",IF(T1519>=17,\"MAYORES\",IF(OR(T1519=13,D1519=\"31/05/2004\"),\"Check FN\",\"n/a\")))))","v":""}]
[null,null,null,null,null,null,""]
[null,null,null,null,null,null,""]
[null,null,null,null,null,null,""]
[null,null,null,null,null,null,""]
[null,null,null,null,null,null,""]
[null,null,null,null,null,null,""]
[null,null,null,null,null,null,""]
[null,null,null,null,null,null,""]
[null,null,null,null,null,null,""]
[null,null,null,null,null,null,""]
[null,null,null,null,null,null,""]
[null,null,null,null,null,null,""]
[null,null,null,null,null,null,""]
[null,null,null,null,null,null,""]
[null,null,null,null,null,null,""]
[null,null,null,null,null,null,""]
[null,null,null,null,null,null,""]
[null,null,null,null,null,null,""]
[null,null,null,null,null,null,""]
[null,null,null,null,null,null,""]
[null,null,null,null,null,null,""]
[null,null,null,null,null,null,""]
[null,null,null,null,null,null,""]
[null,null,null,null,null,null,""]
[null,null,null,null,null,null,""]
[null,null,null,null,null,null,""]
[null,null,null,null,null,null,""]
[null,null,null,null,null,null,""]
[null,null,null,null,null,null,""]
[null,null,null,null,null,null,""]
[null,null,null,null,null,null,""]
[null,null,null,null,null,null,""]
[null,null,null,null,null,null,""]
[null,null,null,null,null,null,""]
[null,null,null,null,null,null,""]
[null,null,null,null,null,null,""]
[null,null,null,null,null,null,""]
[null,null,null,null,null,null,""]
[null,null,null,null,null,null,""]
[null,null,null,null,null,null,""]
[null,null,null,null,null,null,""]
[null,null,null,null,null,null,""]
[null,null,null,null,null,null,""]
[null,null,null,null,null,null,""]
[null,null,null,null,null,null,""]
[null,null,null,null,null,null,""]
[null,null,null,null,null,null,""]
[null,null,null,null,null,null,""]
[null,null,null,null,null,null,""]
[null,null,null,null,null,null,""]
[null,null,null,null,null,null,""]
[null,null,null,null,null,null,""]
[null,null,null,null,null,null,""]
[null,null,null,null,null,null,""]
[null,null,null,null,null,null,""]
[null,null,null,null,null,null,""]
[null,null,null,null,null,null,""]
[null,null,null,null,null,null,""]
[null,null,null,null,null,null,""]
[null,null,null,null,null,null,""]
[null,null,null,null,null,null,""]
[null,null,null,null,null,null,""]
[null,null,null,null,null,null,""]
[null,null,null,null,null,null,{"$f":"IF(T1583=\"\",\"\",IF(T1583=14,\"PREJUVENIL\",IF(OR(T1583=15,T1583=16),\"JUVENIL\",IF(T1583>=17,\"MAYORES\",IF(OR(T1583=13,D1583=\"31/05/2004\"),\"Check FN\",\"n/a\")))))","v":""}]
[null,null,null,null,null,null,""]
[null,null,null,null,null,null,""]
[null,null,null,null,null,null,""]
[null,null,null,null,null,null,""]
[null,null,null,null,null,null,""]
[null,null,null,null,null,null,""]
[null,null,null,null,null,null,""]
[null,null,null,null,null,null,""]
[null,null,null,null,null,null,""]
[null,null,null,null,null,null,""]
[null,null,null,null,null,null,""]
[null,null,null,null,null,null,""]
[null,null,null,null,null,null,""]
[null,null,null,null,null,null,""]
[null,null,null,null,null,null,""]
[null,null,null,null,null,null,""]
[null,null,null,null,null,null,""]
[null,null,null,null,null,null,""]
[null,null,null,null,null,null,""]
[null,null,null,null,null,null,""]
[null,null,null,null,null,null,""]
[null,null,null,null,null,null,""]
[null,null,null,null,null,null,""]
[null,null,null,null,null,null,""]
[null,null,null,null,null,null,""]
[null,null,null,null,null,null,""]
[null,null,null,null,null,null,""]
[null,null,null,null,null,null,""]
[null,null,null,null,null,null,""]
[null,null,null,null,null,null,""]
[null,null,null,null,null,null,""]
[null,null,null,null,null,null,""]
[null,null,null,null,null,null,""]
[null,null,null,null,null,null,""]
[null,null,null,null,null,null,""]
[null,null,null,null,null,null,""]
[null,null,null,null,null,null,""]
[null,null,null,null,null,null,""]
[null,null,null,null,null,null,""]
[null,null,null,null,null,null,""]
[null,null,null,null,null,null,""]
[null,null,null,null,null,null,""]
[null,null,null,null,null,null,""]
[null,null,null,null,null,null,""]
[null,null,null,null,null,null,""]
[null,null,null,null,null,null,""]
[null,null,null,null,null,null,""]
[null,null,null,null,null,null,""]
[null,null,null,null,null,null,""]
[null,null,null,null,null,null,""]
[null,null,null,null,null,null,""]
[null,null,null,null,null,null,""]
[null,null,null,null,null,null,""]
[null,null,null,null,null,null,""]
[null,null,null,null,null,null,""]
[null,null,null,null,null,null,""]
[null,null,null,null,null,null,""]
[null,null,null,null,null,null,""]
[null,null,null,null,null,null,""]
[null,null,null,null,null,null,""]
[null,null,null,null,null,null,""]
[null,null,null,null,null,null,""]
[null,null,null,null,null,null,""]
[null,null,null,null,null,null,{"$f":"IF(T1647=\"\",\"\",IF(T1647=14,\"PREJUVENIL\",IF(OR(T1647=15,T1647=16),\"JUVENIL\",IF(T1647>=17,\"MAYORES\",IF(OR(T1647=13,D1647=\"31/05/2004\"),\"Check FN\",\"n/a\")))))","v":""}]
[null,null,null,null,null,null,""]
[null,null,null,null,null,null,""]
[null,null,null,null,null,null,""]
[null,null,null,null,null,null,""]
[null,null,null,null,null,null,""]
[null,null,null,null,null,null,""]
[null,null,null,null,null,null,""]
[null,null,null,null,null,null,""]
[null,null,null,null,null,null,""]
[null,null,null,null,null,null,""]
[null,null,null,null,null,null,""]
[null,null,null,null,null,null,""]
[null,null,null,null,null,null,""]
[null,null,null,null,null,null,""]
[null,null,null,null,null,null,""]
[null,null,null,null,null,null,""]
[null,null,null,null,null,null,""]
[null,null,null,null,null,null,""]
[null,null,null,null,null,null,""]
[null,null,null,null,null,null,""]
[null,null,null,null,null,null,""]
[null,null,null,null,null,null,""]
[null,null,null,null,null,null,""]
[null,null,null,null,null,null,""]
[null,null,null,null,null,null,""]
[null,null,null,null,null,null,""]
[null,null,null,null,null,null,""]
[null,null,null,null,null,null,""]
[null,null,null,null,null,null,""]
[null,null,null,null,null,null,""]
[null,null,null,null,null,null,""]
[null,null,null,null,null,null,""]
[null,null,null,null,null,null,""]
[null,null,null,null,null,null,""]
[null,null,null,null,null,null,""]
[null,null,null,null,null,null,""]
[null,null,null,null,null,null,""]
[null,null,null,null,null,null,""]
[null,null,null,null,null,null,""]
[null,null,null,null,null,null,""]
[null,null,null,null,null,null,""]
[null,null,null,null,null,null,""]
[null,null,null,null,null,null,""]
[null,null,null,null,null,null,""]
[null,null,null,null,null,null,""]
[null,null,null,null,null,null,""]
[null,null,null,null,null,null,""]
[null,null,null,null,null,null,""]
[null,null,null,null,null,null,""]
[null,null,null,null,null,null,""]
[null,null,null,null,null,null,""]
[null,null,null,null,null,null,""]
[null,null,null,null,null,null,""]
[null,null,null,null,null,null,""]
[null,null,null,null,null,null,""]
[null,null,null,null,null,null,""]
[null,null,null,null,null,null,""]
[null,null,null,null,null,null,""]
[null,null,null,null,null,null,""]
[null,null,null,null,null,null,""]
[null,null,null,null,null,null,""]
[null,null,null,null,null,null,""]
[null,null,null,null,null,null,""]
[null,null,null,null,null,null,{"$f":"IF(T1711=\"\",\"\",IF(T1711=14,\"PREJUVENIL\",IF(OR(T1711=15,T1711=16),\"JUVENIL\",IF(T1711>=17,\"MAYORES\",IF(OR(T1711=13,D1711=\"31/05/2004\"),\"Check FN\",\"n/a\")))))","v":""}]
[null,null,null,null,null,null,""]
[null,null,null,null,null,null,""]
[null,null,null,null,null,null,""]
[null,null,null,null,null,null,""]
[null,null,null,null,null,null,""]
[null,null,null,null,null,null,""]
[null,null,null,null,null,null,""]
[null,null,null,null,null,null,""]
[null,null,null,null,null,null,""]
[null,null,null,null,null,null,""]
[null,null,null,null,null,null,""]
[null,null,null,null,null,null,""]
[null,null,null,null,null,null,""]
[null,null,null,null,null,null,""]
[null,null,null,null,null,null,""]
[null,null,null,null,null,null,""]
[null,null,null,null,null,null,""]
[null,null,null,null,null,null,""]
[null,null,null,null,null,null,""]
[null,null,null,null,null,null,""]
[null,null,null,null,null,null,""]
[null,null,null,null,null,null,""]
[null,null,null,null,null,null,""]
[null,null,null,null,null,null,""]
[null,null,null,null,null,null,""]
[null,null,null,null,null,null,""]
[null,null,null,null,null,null,""]
[null,null,null,null,null,null,""]
[null,null,null,null,null,null,""]
[null,null,null,null,null,null,""]
[null,null,null,null,null,null,""]
[null,null,null,null,null,null,""]
[null,null,null,null,null,null,""]
[null,null,null,null,null,null,""]
[null,null,null,null,null,null,""]
[null,null,null,null,null,null,""]
[null,null,null,null,null,null,""]
[null,null,null,null,null,null,""]
[null,null,null,null,null,null,""]
[null,null,null,null,null,null,""]
[null,null,null,null,null,null,""]
[null,null,null,null,null,null,""]
[null,null,null,null,null,null,""]
[null,null,null,null,null,null,""]
[null,null,null,null,null,null,""]
[null,null,null,null,null,null,""]
[null,null,null,null,null,null,""]
[null,null,null,null,null,null,""]
[null,null,null,null,null,null,""]
[null,null,null,null,null,null,""]
[null,null,null,null,null,null,""]
[null,null,null,null,null,null,""]
[null,null,null,null,null,null,""]
[null,null,null,null,null,null,""]
[null,null,null,null,null,null,""]
[null,null,null,null,null,null,""]
[null,null,null,null,null,null,""]
[null,null,null,null,null,null,""]
[null,null,null,null,null,null,""]
[null,null,null,null,null,null,""]
[null,null,null,null,null,null,""]
[null,null,null,null,null,null,""]
[null,null,null,null,null,null,""]
[null,null,null,null,null,null,{"$f":"IF(T1775=\"\",\"\",IF(T1775=14,\"PREJUVENIL\",IF(OR(T1775=15,T1775=16),\"JUVENIL\",IF(T1775>=17,\"MAYORES\",IF(OR(T1775=13,D1775=\"31/05/2004\"),\"Check FN\",\"n/a\")))))","v":""}]
[null,null,null,null,null,null,""]
[null,null,null,null,null,null,""]
[null,null,null,null,null,null,""]
[null,null,null,null,null,null,""]
[null,null,null,null,null,null,""]
[null,null,null,null,null,null,""]
[null,null,null,null,null,null,""]
[null,null,null,null,null,null,""]
[null,null,null,null,null,null,""]
[null,null,null,null,null,null,""]
[null,null,null,null,null,null,""]
[null,null,null,null,null,null,""]
[null,null,null,null,null,null,""]
[null,null,null,null,null,null,""]
[null,null,null,null,null,null,""]
[null,null,null,null,null,null,""]
[null,null,null,null,null,null,""]
[null,null,null,null,null,null,""]
[null,null,null,null,null,null,""]
[null,null,null,null,null,null,""]
[null,null,null,null,null,null,""]
[null,null,null,null,null,null,""]
[null,null,null,null,null,null,""]
[null,null,null,null,null,null,""]
[null,null,null,null,null,null,""]
[null,null,null,null,null,null,""]
[null,null,null,null,null,null,""]
[null,null,null,null,null,null,""]
[null,null,null,null,null,null,""]
[null,null,null,null,null,null,""]
[null,null,null,null,null,null,""]
[null,null,null,null,null,null,""]
[null,null,null,null,null,null,""]
[null,null,null,null,null,null,""]
[null,null,null,null,null,null,""]
[null,null,null,null,null,null,""]
[null,null,null,null,null,null,""]
[null,null,null,null,null,null,""]
[null,null,null,null,null,null,""]
[null,null,null,null,null,null,""]
[null,null,null,null,null,null,""]
[null,null,null,null,null,null,""]
[null,null,null,null,null,null,""]
[null,null,null,null,null,null,""]
[null,null,null,null,null,null,""]
[null,null,null,null,null,null,""]
[null,null,null,null,null,null,""]
[null,null,null,null,null,null,""]
[null,null,null,null,null,null,""]
[null,null,null,null,null,null,""]
[null,null,null,null,null,null,""]

{"sheet":"PLANILLA#2 (26-50)","index":3,"n_rows":43,"n_cols":20,"rows_kept":43,"cut":false,"hidden":false,"merged":[[5,6,6,6],[5,7,6,7],[5,8,5,12],[5,13,5,17],[5,1,6,1],[5,2,6,2],[5,4,5,5],[3,1,3,2],[3,3,3,4],[3,6,3,8],[3,11,3,12],[3,13,3,14],[3,9,3,10],[4,1,4,2],[4,3,4,4],[4,6,4,8],[4,11,4,12],[4,13,4,14],[4,9,4,10],[1,15,1,17],[2,15,2,17],[3,15,3,17],[4,15,4,17],[2,13,2,14],[1,13,1,14],[0,5,0,12],[0,13,0,14],[1,9,1,10],[2,9,2,10],[1,1,1,2],[1,3,1,4],[1,6,1,8],[1,11,1,12],[2,11,2,12],[2,1,2,2],[2,3,2,4],[2,6,2,8]]}
[null,null,null,null,"Imagen",{"$f":"'PLANILLA#1 (1-25)'!F1","v":"Federación Colombiana De Patinaje - Planilla Única De Inscripción - Mayores"},null,null,null,null,null,null,null,{"$f":"'PLANILLA#1 (1-25)'!N1","v":"Temporada 2023-2024"}]
[null,"Nombre Del Evento",null,{"$f":"'PLANILLA#1 (1-25)'!D2:E2","v":"Sexta Válida Nacional Puntubale "},null,"Sede Evento",{"$f":"'PLANILLA#1 (1-25)'!G2:I2","v":"Manizales "},null,null,"Liga",null,{"$f":"'PLANILLA#1 (1-25)'!L2:M2","v":"Caldas"},null,"Fecha Evento",null,{"$f":"'PLANILLA#1 (1-25)'!P2","v":"Del 24 Al 28 De Abril De 2024"}]
[null,"Nombre Club/Liga/Nacion",null,{"$f":"'PLANILLA#1 (1-25)'!D3:E3","v":0},null,"Liga Pertenece",{"$f":"'PLANILLA#1 (1-25)'!G3:I3","v":0},null,null,"Dirección",null,{"$f":"'PLANILLA#1 (1-25)'!L3:M3","v":0},null,"Teléfono",null,{"$f":"'PLANILLA#1 (1-25)'!P3","v":0}]
[null,"Nombre Presidente",null,{"$f":"'PLANILLA#1 (1-25)'!D4:E4","v":0},null,"Cédula Presidente",{"$f":"'PLANILLA#1 (1-25)'!G4:I4","v":""},null,null,"Delegado",null,{"$f":"'PLANILLA#1 (1-25)'!L4:M4","v":0},null,"Cédula De C.",null,{"$f":"'PLANILLA#1 (1-25)'!P4","v":0}]
[null,"Médico",null,{"$f":"'PLANILLA#1 (1-25)'!D5:E5","v":0},null,"Tel / Cel",{"$f":"'PLANILLA#1 (1-25)'!G5:I5","v":0},null,null,"Ténico",null,{"$f":"'PLANILLA#1 (1-25)'!L5:M5","v":0},null,"Asistente",null,{"$f":"'PLANILLA#1 (1-25)'!P5","v":0}]
[null,"NRO","NOMBRES Y APELLIDOS","FECHA NAC.","DOCUMENTO IDENTIDAD",null,"CATEGORIA","RAMA",{"$f":"'PLANILLA#1 (1-25)'!I7","v":"Pruebas De Velocidad Individual Y Grupal"},null,null,null,null,{"$f":"'PLANILLA#1 (1-25)'!N7","v":"Pruebas De Fondo"},null,null,null,null,null,"EDAD AL"]
[null,null,null,"DD/MM/AA","TIPO","NÚMERO",null,null,{"$f":"'PLANILLA#1 (1-25)'!I8","v":"200 Metros Meta Contra Meta Pista"},{"$f":"'PLANILLA#1 (1-25)'!J8","v":"500 M + D Pista "},{"$f":"'PLANILLA#1 (1-25)'!K8","v":"1.000 Metros Sprint "},{"$f":"'PLANILLA#1 (1-25)'!L8","v":"100 Metros Carriles Circuito"},{"$f":"'PLANILLA#1 (1-25)'!M8","v":"Vuelta Al Cirucito "},{"$f":"'PLANILLA#1 (1-25)'!N8","v":"5.000 Metros Puntos Pista "},{"$f":"'PLANILLA#1 (1-25)'!O8","v":"Eliminación Pista 10.000 Metros"},{"$f":"'PLANILLA#1 (1-25)'!P8","v":"Eliminación Circuito 15.000 Metros"},{"$f":"'PLANILLA#1 (1-25)'!Q8","v":"Puntos Circuito 10.000 Metros"},{"$f":"'PLANILLA#1 (1-25)'!R8","v":"No Aplica "},null,"2023-07-01"]
[null,26,null,null,null,null,{"$f":"IF(T8=\"\",\"\",IF(T8=14,\"PREJUVENIL\",IF(OR(T8=15,T8=16,T8=17),\"JUVENIL\",IF(T8>=18,\"MAYORES\",\"Check FN\"))))","v":""},null,null,null,null,null,null,null,null,null,null,null,null,{"$f":"IF(D8=\"\",\"\",DATEDIF(D8,$T$7,\"y\"))","v":""}]
[null,27,null,null,null,null,{"$f":"IF(T9=\"\",\"\",IF(T9=14,\"PREJUVENIL\",IF(OR(T9=15,T9=16,T9=17),\"JUVENIL\",IF(T9>=18,\"MAYORES\",\"Check FN\"))))","v":""},null,null,null,null,null,null,null,null,null,null,null,null,{"$f":"IF(D9=\"\",\"\",DATEDIF(D9,$T$7,\"y\"))","v":""}]
[null,28,null,null,null,null,"",null,null,null,null,null,null,null,null,null,null,null,null,""]
[null,29,null,null,null,null,"",null,null,null,null,null,null,null,null,null,null,null,null,""]
[null,30,null,null,null,null,"",null,null,null,null,null,null,null,null,null,null,null,null,""]
[null,31,null,null,null,null,"",null,null,null,null,null,null,null,null,null,null,null,null,""]
[null,32,null,null,null,null,"",null,null,null,null,null,null,null,null,null,null,null,null,""]
[null,33,null,null,null,null,"",null,null,null,null,null,null,null,null,null,null,null,null,""]
[null,34,null,null,null,null,"",null,null,null,null,null,null,null,null,null,null,null,null,""]
[null,35,null,null,null,null,"",null,null,null,null,null,null,null,null,null,null,null,null,""]
[null,36,null,null,null,null,"",null,null,null,null,null,null,null,null,null,null,null,null,""]
[null,37,null,null,null,null,"",null,null,null,null,null,null,null,null,null,null,null,null,""]
[null,38,null,null,null,null,"",null,null,null,null,null,null,null,null,null,null,null,null,""]
[null,39,null,null,null,null,"",null,null,null,null,null,null,null,null,null,null,null,null,""]
[null,40,null,null,null,null,"",null,null,null,null,null,null,null,null,null,null,null,null,""]
[null,41,null,null,null,null,"",null,null,null,null,null,null,null,null,null,null,null,null,""]
[null,42,null,null,null,null,"",null,null,null,null,null,null,null,null,null,null,null,null,""]
[null,43,null,null,null,null,"",null,null,null,null,null,null,null,null,null,null,null,null,""]
[null,44,null,null,null,null,"",null,null,null,null,null,null,null,null,null,null,null,null,""]
[null,45,null,null,null,null,"",null,null,null,null,null,null,null,null,null,null,null,null,""]
[null,46,null,null,null,null,"",null,null,null,null,null,null,null,null,null,null,null,null,""]
[null,47,null,null,null,null,"",null,null,null,null,null,null,null,null,null,null,null,null,""]
[null,48,null,null,null,null,"",null,null,null,null,null,null,null,null,null,null,null,null,""]
[null,49,null,null,null,null,"",null,null,null,null,null,null,null,null,null,null,null,null,""]
[null,50,null,null,null,null,"",null,null,null,null,null,null,null,null,null,null,null,null,""]
[]
[]
[]
[]
[null,null,null,"FIRMA DELEGADO DEL CLUB"]
[]
[]
[]
[]
[]
[null,null,null,"VOBO.  COMISIÓN NACIONAL",null,null,null,null,null,null,null,"VOBO. FEDERACIÓN COLOMBIANA DE PATINAJE"]

{"sheet":"BDATOS","index":4,"n_rows":53,"n_cols":22,"rows_kept":53,"cut":false,"hidden":false,"merged":[]}
["NRO","NOMBRES Y APELLIDOS","DD/MM/AA","TIPO","NUMERO","CATEGORIA","RAMA",{"$f":"'PLANILLA#1 (1-25)'!I8","v":"200 Metros Meta Contra Meta Pista"},{"$f":"'PLANILLA#1 (1-25)'!J8","v":"500 M + D Pista "},{"$f":"'PLANILLA#1 (1-25)'!K8","v":"1.000 Metros Sprint "},{"$f":"'PLANILLA#1 (1-25)'!L8","v":"100 Metros Carriles Circuito"},{"$f":"'PLANILLA#1 (1-25)'!M8","v":"Vuelta Al Cirucito "},{"$f":"'PLANILLA#1 (1-25)'!N8","v":"5.000 Metros Puntos Pista "},{"$f":"'PLANILLA#1 (1-25)'!O8","v":"Eliminación Pista 10.000 Metros"},{"$f":"'PLANILLA#1 (1-25)'!P8","v":"Eliminación Circuito 15.000 Metros"},{"$f":"'PLANILLA#1 (1-25)'!Q8","v":"Puntos Circuito 10.000 Metros"},{"$f":"'PLANILLA#1 (1-25)'!R8","v":"No Aplica "},null,"CLUB","LIGA "," DELEGADO","ENTRENADOR "]
[]
[{"$f":"'PLANILLA#1 (1-25)'!B9","v":1},{"$f":"IF('PLANILLA#1 (1-25)'!C9=\"\",\"\",'PLANILLA#1 (1-25)'!C9)","v":""},{"$f":"IF('PLANILLA#1 (1-25)'!D9=\"\",\"\",'PLANILLA#1 (1-25)'!D9)","v":""},{"$f":"IF('PLANILLA#1 (1-25)'!E9=\"\",\"\",'PLANILLA#1 (1-25)'!E9)","v":""},{"$f":"IF('PLANILLA#1 (1-25)'!F9=\"\",\"\",'PLANILLA#1 (1-25)'!F9)","v":""},{"$f":"IF('PLANILLA#1 (1-25)'!G9=\"\",\"\",'PLANILLA#1 (1-25)'!G9)","v":""},{"$f":"IF('PLANILLA#1 (1-25)'!H9=\"\",\"\",'PLANILLA#1 (1-25)'!H9)","v":""},{"$f":"'PLANILLA#1 (1-25)'!I9","v":0},{"$f":"'PLANILLA#1 (1-25)'!J9","v":0},{"$f":"'PLANILLA#1 (1-25)'!K9","v":0},{"$f":"'PLANILLA#1 (1-25)'!L9","v":0},{"$f":"'PLANILLA#1 (1-25)'!M9","v":0},{"$f":"'PLANILLA#1 (1-25)'!N9","v":0},{"$f":"'PLANILLA#1 (1-25)'!O9","v":0},{"$f":"'PLANILLA#1 (1-25)'!P9","v":0},{"$f":"'PLANILLA#1 (1-25)'!Q9","v":0},{"$f":"'PLANILLA#1 (1-25)'!R9","v":0},null,{"$f":"'PLANILLA#1 (1-25)'!D3","v":0},{"$f":"'PLANILLA#1 (1-25)'!G3","v":0},{"$f":"'PLANILLA#1 (1-25)'!L4","v":0},{"$f":"'PLANILLA#1 (1-25)'!L5","v":0}]
[{"$f":"'PLANILLA#1 (1-25)'!B10","v":2},{"$f":"IF('PLANILLA#1 (1-25)'!C10=\"\",\"\",'PLANILLA#1 (1-25)'!C10)","v":""},{"$f":"IF('PLANILLA#1 (1-25)'!D10=\"\",\"\",'PLANILLA#1 (1-25)'!D10)","v":""},{"$f":"IF('PLANILLA#1 (1-25)'!E10=\"\",\"\",'PLANILLA#1 (1-25)'!E10)","v":""},{"$f":"IF('PLANILLA#1 (1-25)'!F10=\"\",\"\",'PLANILLA#1 (1-25)'!F10)","v":""},{"$f":"IF('PLANILLA#1 (1-25)'!G10=\"\",\"\",'PLANILLA#1 (1-25)'!G10)","v":""},{"$f":"IF('PLANILLA#1 (1-25)'!H10=\"\",\"\",'PLANILLA#1 (1-25)'!H10)","v":""},{"$f":"'PLANILLA#1 (1-25)'!I10","v":0},{"$f":"'PLANILLA#1 (1-25)'!J10","v":0},{"$f":"'PLANILLA#1 (1-25)'!K10","v":0},{"$f":"'PLANILLA#1 (1-25)'!L10","v":0},{"$f":"'PLANILLA#1 (1-25)'!M10","v":0},{"$f":"'PLANILLA#1 (1-25)'!N10","v":0},{"$f":"'PLANILLA#1 (1-25)'!O10","v":0},{"$f":"'PLANILLA#1 (1-25)'!P10","v":0},{"$f":"'PLANILLA#1 (1-25)'!Q10","v":0},{"$f":"'PLANILLA#1 (1-25)'!R10","v":0},null,{"$f":"S3","v":0},{"$f":"T3","v":0},{"$f":"U3","v":0},{"$f":"V3","v":0}]
[{"$f":"'PLANILLA#1 (1-25)'!B11","v":3},{"$f":"IF('PLANILLA#1 (1-25)'!C11=\"\",\"\",'PLANILLA#1 (1-25)'!C11)","v":""},{"$f":"IF('PLANILLA#1 (1-25)'!D11=\"\",\"\",'PLANILLA#1 (1-25)'!D11)","v":""},{"$f":"IF('PLANILLA#1 (1-25)'!E11=\"\",\"\",'PLANILLA#1 (1-25)'!E11)","v":""},{"$f":"IF('PLANILLA#1 (1-25)'!F11=\"\",\"\",'PLANILLA#1 (1-25)'!F11)","v":""},{"$f":"IF('PLANILLA#1 (1-25)'!G11=\"\",\"\",'PLANILLA#1 (1-25)'!G11)","v":""},{"$f":"IF('PLANILLA#1 (1-25)'!H11=\"\",\"\",'PLANILLA#1 (1-25)'!H11)","v":""},{"$f":"'PLANILLA#1 (1-25)'!I11","v":0},{"$f":"'PLANILLA#1 (1-25)'!J11","v":0},{"$f":"'PLANILLA#1 (1-25)'!K11","v":0},{"$f":"'PLANILLA#1 (1-25)'!L11","v":0},{"$f":"'PLANILLA#1 (1-25)'!M11","v":0},{"$f":"'PLANILLA#1 (1-25)'!N11","v":0},{"$f":"'PLANILLA#1 (1-25)'!O11","v":0},{"$f":"'PLANILLA#1 (1-25)'!P11","v":0},{"$f":"'PLANILLA#1 (1-25)'!Q11","v":0},{"$f":"'PLANILLA#1 (1-25)'!R11","v":0},null,{"$f":"S4","v":0},{"$f":"T4","v":0},{"$f":"U4","v":0},{"$f":"V4","v":0}]
[{"$f":"'PLANILLA#1 (1-25)'!B12","v":4},{"$f":"IF('PLANILLA#1 (1-25)'!C12=\"\",\"\",'PLANILLA#1 (1-25)'!C12)","v":""},{"$f":"IF('PLANILLA#1 (1-25)'!D12=\"\",\"\",'PLANILLA#1 (1-25)'!D12)","v":""},{"$f":"IF('PLANILLA#1 (1-25)'!E12=\"\",\"\",'PLANILLA#1 (1-25)'!E12)","v":""},{"$f":"IF('PLANILLA#1 (1-25)'!F12=\"\",\"\",'PLANILLA#1 (1-25)'!F12)","v":""},{"$f":"IF('PLANILLA#1 (1-25)'!G12=\"\",\"\",'PLANILLA#1 (1-25)'!G12)","v":""},{"$f":"IF('PLANILLA#1 (1-25)'!H12=\"\",\"\",'PLANILLA#1 (1-25)'!H12)","v":""},{"$f":"'PLANILLA#1 (1-25)'!I12","v":0},{"$f":"'PLANILLA#1 (1-25)'!J12","v":0},{"$f":"'PLANILLA#1 (1-25)'!K12","v":0},{"$f":"'PLANILLA#1 (1-25)'!L12","v":0},{"$f":"'PLANILLA#1 (1-25)'!M12","v":0},{"$f":"'PLANILLA#1 (1-25)'!N12","v":0},{"$f":"'PLANILLA#1 (1-25)'!O12","v":0},{"$f":"'PLANILLA#1 (1-25)'!P12","v":0},{"$f":"'PLANILLA#1 (1-25)'!Q12","v":0},{"$f":"'PLANILLA#1 (1-25)'!R12","v":0},null,0,0,0,0]
[{"$f":"'PLANILLA#1 (1-25)'!B13","v":5},{"$f":"IF('PLANILLA#1 (1-25)'!C13=\"\",\"\",'PLANILLA#1 (1-25)'!C13)","v":""},{"$f":"IF('PLANILLA#1 (1-25)'!D13=\"\",\"\",'PLANILLA#1 (1-25)'!D13)","v":""},{"$f":"IF('PLANILLA#1 (1-25)'!E13=\"\",\"\",'PLANILLA#1 (1-25)'!E13)","v":""},{"$f":"IF('PLANILLA#1 (1-25)'!F13=\"\",\"\",'PLANILLA#1 (1-25)'!F13)","v":""},{"$f":"IF('PLANILLA#1 (1-25)'!G13=\"\",\"\",'PLANILLA#1 (1-25)'!G13)","v":""},{"$f":"IF('PLANILLA#1 (1-25)'!H13=\"\",\"\",'PLANILLA#1 (1-25)'!H13)","v":""},{"$f":"'PLANILLA#1 (1-25)'!I13","v":0},{"$f":"'PLANILLA#1 (1-25)'!J13","v":0},{"$f":"'PLANILLA#1 (1-25)'!K13","v":0},{"$f":"'PLANILLA#1 (1-25)'!L13","v":0},{"$f":"'PLANILLA#1 (1-25)'!M13","v":0},{"$f":"'PLANILLA#1 (1-25)'!N13","v":0},{"$f":"'PLANILLA#1 (1-25)'!O13","v":0},{"$f":"'PLANILLA#1 (1-25)'!P13","v":0},{"$f":"'PLANILLA#1 (1-25)'!Q13","v":0},{"$f":"'PLANILLA#1 (1-25)'!R13","v":0},null,0,0,0,0]
[{"$f":"'PLANILLA#1 (1-25)'!B14","v":6},{"$f":"IF('PLANILLA#1 (1-25)'!C14=\"\",\"\",'PLANILLA#1 (1-25)'!C14)","v":""},{"$f":"IF('PLANILLA#1 (1-25)'!D14=\"\",\"\",'PLANILLA#1 (1-25)'!D14)","v":""},{"$f":"IF('PLANILLA#1 (1-25)'!E14=\"\",\"\",'PLANILLA#1 (1-25)'!E14)","v":""},{"$f":"IF('PLANILLA#1 (1-25)'!F14=\"\",\"\",'PLANILLA#1 (1-25)'!F14)","v":""},{"$f":"IF('PLANILLA#1 (1-25)'!G14=\"\",\"\",'PLANILLA#1 (1-25)'!G14)","v":""},{"$f":"IF('PLANILLA#1 (1-25)'!H14=\"\",\"\",'PLANILLA#1 (1-25)'!H14)","v":""},{"$f":"'PLANILLA#1 (1-25)'!I14","v":0},{"$f":"'PLANILLA#1 (1-25)'!J14","v":0},{"$f":"'PLANILLA#1 (1-25)'!K14","v":0},{"$f":"'PLANILLA#1 (1-25)'!L14","v":0},{"$f":"'PLANILLA#1 (1-25)'!M14","v":0},{"$f":"'PLANILLA#1 (1-25)'!N14","v":0},{"$f":"'PLANILLA#1 (1-25)'!O14","v":0},{"$f":"'PLANILLA#1 (1-25)'!P14","v":0},{"$f":"'PLANILLA#1 (1-25)'!Q14","v":0},{"$f":"'PLANILLA#1 (1-25)'!R14","v":0},null,0,0,0,0]
[{"$f":"'PLANILLA#1 (1-25)'!B15","v":7},{"$f":"IF('PLANILLA#1 (1-25)'!C15=\"\",\"\",'PLANILLA#1 (1-25)'!C15)","v":""},{"$f":"IF('PLANILLA#1 (1-25)'!D15=\"\",\"\",'PLANILLA#1 (1-25)'!D15)","v":""},{"$f":"IF('PLANILLA#1 (1-25)'!E15=\"\",\"\",'PLANILLA#1 (1-25)'!E15)","v":""},{"$f":"IF('PLANILLA#1 (1-25)'!F15=\"\",\"\",'PLANILLA#1 (1-25)'!F15)","v":""},{"$f":"IF('PLANILLA#1 (1-25)'!G15=\"\",\"\",'PLANILLA#1 (1-25)'!G15)","v":""},{"$f":"IF('PLANILLA#1 (1-25)'!H15=\"\",\"\",'PLANILLA#1 (1-25)'!H15)","v":""},{"$f":"'PLANILLA#1 (1-25)'!I15","v":0},{"$f":"'PLANILLA#1 (1-25)'!J15","v":0},{"$f":"'PLANILLA#1 (1-25)'!K15","v":0},{"$f":"'PLANILLA#1 (1-25)'!L15","v":0},{"$f":"'PLANILLA#1 (1-25)'!M15","v":0},{"$f":"'PLANILLA#1 (1-25)'!N15","v":0},{"$f":"'PLANILLA#1 (1-25)'!O15","v":0},{"$f":"'PLANILLA#1 (1-25)'!P15","v":0},{"$f":"'PLANILLA#1 (1-25)'!Q15","v":0},{"$f":"'PLANILLA#1 (1-25)'!R15","v":0},null,0,0,0,0]
[{"$f":"'PLANILLA#1 (1-25)'!B16","v":8},{"$f":"IF('PLANILLA#1 (1-25)'!C16=\"\",\"\",'PLANILLA#1 (1-25)'!C16)","v":""},{"$f":"IF('PLANILLA#1 (1-25)'!D16=\"\",\"\",'PLANILLA#1 (1-25)'!D16)","v":""},{"$f":"IF('PLANILLA#1 (1-25)'!E16=\"\",\"\",'PLANILLA#1 (1-25)'!E16)","v":""},{"$f":"IF('PLANILLA#1 (1-25)'!F16=\"\",\"\",'PLANILLA#1 (1-25)'!F16)","v":""},{"$f":"IF('PLANILLA#1 (1-25)'!G16=\"\",\"\",'PLANILLA#1 (1-25)'!G16)","v":""},{"$f":"IF('PLANILLA#1 (1-25)'!H16=\"\",\"\",'PLANILLA#1 (1-25)'!H16)","v":""},{"$f":"'PLANILLA#1 (1-25)'!I16","v":0},{"$f":"'PLANILLA#1 (1-25)'!J16","v":0},{"$f":"'PLANILLA#1 (1-25)'!K16","v":0},{"$f":"'PLANILLA#1 (1-25)'!L16","v":0},{"$f":"'PLANILLA#1 (1-25)'!M16","v":0},{"$f":"'PLANILLA#1 (1-25)'!N16","v":0},{"$f":"'PLANILLA#1 (1-25)'!O16","v":0},{"$f":"'PLANILLA#1 (1-25)'!P16","v":0},{"$f":"'PLANILLA#1 (1-25)'!Q16","v":0},{"$f":"'PLANILLA#1 (1-25)'!R16","v":0},null,0,0,0,0]
[{"$f":"'PLANILLA#1 (1-25)'!B17","v":9},{"$f":"IF('PLANILLA#1 (1-25)'!C17=\"\",\"\",'PLANILLA#1 (1-25)'!C17)","v":""},{"$f":"IF('PLANILLA#1 (1-25)'!D17=\"\",\"\",'PLANILLA#1 (1-25)'!D17)","v":""},{"$f":"IF('PLANILLA#1 (1-25)'!E17=\"\",\"\",'PLANILLA#1 (1-25)'!E17)","v":""},{"$f":"IF('PLANILLA#1 (1-25)'!F17=\"\",\"\",'PLANILLA#1 (1-25)'!F17)","v":""},{"$f":"IF('PLANILLA#1 (1-25)'!G17=\"\",\"\",'PLANILLA#1 (1-25)'!G17)","v":""},{"$f":"IF('PLANILLA#1 (1-25)'!H17=\"\",\"\",'PLANILLA#1 (1-25)'!H17)","v":""},{"$f":"'PLANILLA#1 (1-25)'!I17","v":0},{"$f":"'PLANILLA#1 (1-25)'!J17","v":0},{"$f":"'PLANILLA#1 (1-25)'!K17","v":0},{"$f":"'PLANILLA#1 (1-25)'!L17","v":0},{"$f":"'PLANILLA#1 (1-25)'!M17","v":0},{"$f":"'PLANILLA#1 (1-25)'!N17","v":0},{"$f":"'PLANILLA#1 (1-25)'!O17","v":0},{"$f":"'PLANILLA#1 (1-25)'!P17","v":0},{"$f":"'PLANILLA#1 (1-25)'!Q17","v":0},{"$f":"'PLANILLA#1 (1-25)'!R17","v":0},null,0,0,0,0]
[{"$f":"'PLANILLA#1 (1-25)'!B18","v":10},{"$f":"IF('PLANILLA#1 (1-25)'!C18=\"\",\"\",'PLANILLA#1 (1-25)'!C18)","v":""},{"$f":"IF('PLANILLA#1 (1-25)'!D18=\"\",\"\",'PLANILLA#1 (1-25)'!D18)","v":""},{"$f":"IF('PLANILLA#1 (1-25)'!E18=\"\",\"\",'PLANILLA#1 (1-25)'!E18)","v":""},{"$f":"IF('PLANILLA#1 (1-25)'!F18=\"\",\"\",'PLANILLA#1 (1-25)'!F18)","v":""},{"$f":"IF('PLANILLA#1 (1-25)'!G18=\"\",\"\",'PLANILLA#1 (1-25)'!G18)","v":""},{"$f":"IF('PLANILLA#1 (1-25)'!H18=\"\",\"\",'PLANILLA#1 (1-25)'!H18)","v":""},{"$f":"'PLANILLA#1 (1-25)'!I18","v":0},{"$f":"'PLANILLA#1 (1-25)'!J18","v":0},{"$f":"'PLANILLA#1 (1-25)'!K18","v":0},{"$f":"'PLANILLA#1 (1-25)'!L18","v":0},{"$f":"'PLANILLA#1 (1-25)'!M18","v":0},{"$f":"'PLANILLA#1 (1-25)'!N18","v":0},{"$f":"'PLANILLA#1 (1-25)'!O18","v":0},{"$f":"'PLANILLA#1 (1-25)'!P18","v":0},{"$f":"'PLANILLA#1 (1-25)'!Q18","v":0},{"$f":"'PLANILLA#1 (1-25)'!R18","v":0},null,0,0,0,0]
[{"$f":"'PLANILLA#1 (1-25)'!B19","v":11},{"$f":"IF('PLANILLA#1 (1-25)'!C19=\"\",\"\",'PLANILLA#1 (1-25)'!C19)","v":""},{"$f":"IF('PLANILLA#1 (1-25)'!D19=\"\",\"\",'PLANILLA#1 (1-25)'!D19)","v":""},{"$f":"IF('PLANILLA#1 (1-25)'!E19=\"\",\"\",'PLANILLA#1 (1-25)'!E19)","v":""},{"$f":"IF('PLANILLA#1 (1-25)'!F19=\"\",\"\",'PLANILLA#1 (1-25)'!F19)","v":""},{"$f":"IF('PLANILLA#1 (1-25)'!G19=\"\",\"\",'PLANILLA#1 (1-25)'!G19)","v":""},{"$f":"IF('PLANILLA#1 (1-25)'!H19=\"\",\"\",'PLANILLA#1 (1-25)'!H19)","v":""},{"$f":"'PLANILLA#1 (1-25)'!I19","v":0},{"$f":"'PLANILLA#1 (1-25)'!J19","v":0},{"$f":"'PLANILLA#1 (1-25)'!K19","v":0},{"$f":"'PLANILLA#1 (1-25)'!L19","v":0},{"$f":"'PLANILLA#1 (1-25)'!M19","v":0},{"$f":"'PLANILLA#1 (1-25)'!N19","v":0},{"$f":"'PLANILLA#1 (1-25)'!O19","v":0},{"$f":"'PLANILLA#1 (1-25)'!P19","v":0},{"$f":"'PLANILLA#1 (1-25)'!Q19","v":0},{"$f":"'PLANILLA#1 (1-25)'!R19","v":0},null,0,0,0,0]
[{"$f":"'PLANILLA#1 (1-25)'!B20","v":12},{"$f":"IF('PLANILLA#1 (1-25)'!C20=\"\",\"\",'PLANILLA#1 (1-25)'!C20)","v":""},{"$f":"IF('PLANILLA#1 (1-25)'!D20=\"\",\"\",'PLANILLA#1 (1-25)'!D20)","v":""},{"$f":"IF('PLANILLA#1 (1-25)'!E20=\"\",\"\",'PLANILLA#1 (1-25)'!E20)","v":""},{"$f":"IF('PLANILLA#1 (1-25)'!F20=\"\",\"\",'PLANILLA#1 (1-25)'!F20)","v":""},{"$f":"IF('PLANILLA#1 (1-25)'!G20=\"\",\"\",'PLANILLA#1 (1-25)'!G20)","v":""},{"$f":"IF('PLANILLA#1 (1-25)'!H20=\"\",\"\",'PLANILLA#1 (1-25)'!H20)","v":""},{"$f":"'PLANILLA#1 (1-25)'!I20","v":0},{"$f":"'PLANILLA#1 (1-25)'!J20","v":0},{"$f":"'PLANILLA#1 (1-25)'!K20","v":0},{"$f":"'PLANILLA#1 (1-25)'!L20","v":0},{"$f":"'PLANILLA#1 (1-25)'!M20","v":0},{"$f":"'PLANILLA#1 (1-25)'!N20","v":0},{"$f":"'PLANILLA#1 (1-25)'!O20","v":0},{"$f":"'PLANILLA#1 (1-25)'!P20","v":0},{"$f":"'PLANILLA#1 (1-25)'!Q20","v":0},{"$f":"'PLANILLA#1 (1-25)'!R20","v":0},null,0,0,0,0]
[{"$f":"'PLANILLA#1 (1-25)'!B21","v":13},{"$f":"IF('PLANILLA#1 (1-25)'!C21=\"\",\"\",'PLANILLA#1 (1-25)'!C21)","v":""},{"$f":"IF('PLANILLA#1 (1-25)'!D21=\"\",\"\",'PLANILLA#1 (1-25)'!D21)","v":""},{"$f":"IF('PLANILLA#1 (1-25)'!E21=\"\",\"\",'PLANILLA#1 (1-25)'!E21)","v":""},{"$f":"IF('PLANILLA#1 (1-25)'!F21=\"\",\"\",'PLANILLA#1 (1-25)'!F21)","v":""},{"$f":"IF('PLANILLA#1 (1-25)'!G21=\"\",\"\",'PLANILLA#1 (1-25)'!G21)","v":""},{"$f":"IF('PLANILLA#1 (1-25)'!H21=\"\",\"\",'PLANILLA#1 (1-25)'!H21)","v":""},{"$f":"'PLANILLA#1 (1-25)'!I21","v":0},{"$f":"'PLANILLA#1 (1-25)'!J21","v":0},{"$f":"'PLANILLA#1 (1-25)'!K21","v":0},{"$f":"'PLANILLA#1 (1-25)'!L21","v":0},{"$f":"'PLANILLA#1 (1-25)'!M21","v":0},{"$f":"'PLANILLA#1 (1-25)'!N21","v":0},{"$f":"'PLANILLA#1 (1-25)'!O21","v":0},{"$f":"'PLANILLA#1 (1-25)'!P21","v":0},{"$f":"'PLANILLA#1 (1-25)'!Q21","v":0},{"$f":"'PLANILLA#1 (1-25)'!R21","v":0},null,0,0,0,0]
[{"$f":"'PLANILLA#1 (1-25)'!B22","v":14},{"$f":"IF('PLANILLA#1 (1-25)'!C22=\"\",\"\",'PLANILLA#1 (1-25)'!C22)","v":""},{"$f":"IF('PLANILLA#1 (1-25)'!D22=\"\",\"\",'PLANILLA#1 (1-25)'!D22)","v":""},{"$f":"IF('PLANILLA#1 (1-25)'!E22=\"\",\"\",'PLANILLA#1 (1-25)'!E22)","v":""},{"$f":"IF('PLANILLA#1 (1-25)'!F22=\"\",\"\",'PLANILLA#1 (1-25)'!F22)","v":""},{"$f":"IF('PLANILLA#1 (1-25)'!G22=\"\",\"\",'PLANILLA#1 (1-25)'!G22)","v":""},{"$f":"IF('PLANILLA#1 (1-25)'!H22=\"\",\"\",'PLANILLA#1 (1-25)'!H22)","v":""},{"$f":"'PLANILLA#1 (1-25)'!I22","v":0},{"$f":"'PLANILLA#1 (1-25)'!J22","v":0},{"$f":"'PLANILLA#1 (1-25)'!K22","v":0},{"$f":"'PLANILLA#1 (1-25)'!L22","v":0},{"$f":"'PLANILLA#1 (1-25)'!M22","v":0},{"$f":"'PLANILLA#1 (1-25)'!N22","v":0},{"$f":"'PLANILLA#1 (1-25)'!O22","v":0},{"$f":"'PLANILLA#1 (1-25)'!P22","v":0},{"$f":"'PLANILLA#1 (1-25)'!Q22","v":0},{"$f":"'PLANILLA#1 (1-25)'!R22","v":0},null,0,0,0,0]
[{"$f":"'PLANILLA#1 (1-25)'!B23","v":15},{"$f":"IF('PLANILLA#1 (1-25)'!C23=\"\",\"\",'PLANILLA#1 (1-25)'!C23)","v":""},{"$f":"IF('PLANILLA#1 (1-25)'!D23=\"\",\"\",'PLANILLA#1 (1-25)'!D23)","v":""},{"$f":"IF('PLANILLA#1 (1-25)'!E23=\"\",\"\",'PLANILLA#1 (1-25)'!E23)","v":""},{"$f":"IF('PLANILLA#1 (1-25)'!F23=\"\",\"\",'PLANILLA#1 (1-25)'!F23)","v":""},{"$f":"IF('PLANILLA#1 (1-25)'!G23=\"\",\"\",'PLANILLA#1 (1-25)'!G23)","v":""},{"$f":"IF('PLANILLA#1 (1-25)'!H23=\"\",\"\",'PLANILLA#1 (1-25)'!H23)","v":""},{"$f":"'PLANILLA#1 (1-25)'!I23","v":0},{"$f":"'PLANILLA#1 (1-25)'!J23","v":0},{"$f":"'PLANILLA#1 (1-25)'!K23","v":0},{"$f":"'PLANILLA#1 (1-25)'!L23","v":0},{"$f":"'PLANILLA#1 (1-25)'!M23","v":0},{"$f":"'PLANILLA#1 (1-25)'!N23","v":0},{"$f":"'PLANILLA#1 (1-25)'!O23","v":0},{"$f":"'PLANILLA#1 (1-25)'!P23","v":0},{"$f":"'PLANILLA#1 (1-25)'!Q23","v":0},{"$f":"'PLANILLA#1 (1-25)'!R23","v":0},null,0,0,0,0]
[{"$f":"'PLANILLA#1 (1-25)'!B24","v":16},{"$f":"IF('PLANILLA#1 (1-25)'!C24=\"\",\"\",'PLANILLA#1 (1-25)'!C24)","v":""},{"$f":"IF('PLANILLA#1 (1-25)'!D24=\"\",\"\",'PLANILLA#1 (1-25)'!D24)","v":""},{"$f":"IF('PLANILLA#1 (1-25)'!E24=\"\",\"\",'PLANILLA#1 (1-25)'!E24)","v":""},{"$f":"IF('PLANILLA#1 (1-25)'!F24=\"\",\"\",'PLANILLA#1 (1-25)'!F24)","v":""},{"$f":"IF('PLANILLA#1 (1-25)'!G24=\"\",\"\",'PLANILLA#1 (1-25)'!G24)","v":""},{"$f":"IF('PLANILLA#1 (1-25)'!H24=\"\",\"\",'PLANILLA#1 (1-25)'!H24)","v":""},{"$f":"'PLANILLA#1 (1-25)'!I24","v":0},{"$f":"'PLANILLA#1 (1-25)'!J24","v":0},{"$f":"'PLANILLA#1 (1-25)'!K24","v":0},{"$f":"'PLANILLA#1 (1-25)'!L24","v":0},{"$f":"'PLANILLA#1 (1-25)'!M24","v":0},{"$f":"'PLANILLA#1 (1-25)'!N24","v":0},{"$f":"'PLANILLA#1 (1-25)'!O24","v":0},{"$f":"'PLANILLA#1 (1-25)'!P24","v":0},{"$f":"'PLANILLA#1 (1-25)'!Q24","v":0},{"$f":"'PLANILLA#1 (1-25)'!R24","v":0},null,0,0,0,0]
[{"$f":"'PLANILLA#1 (1-25)'!B25","v":17},{"$f":"IF('PLANILLA#1 (1-25)'!C25=\"\",\"\",'PLANILLA#1 (1-25)'!C25)","v":""},{"$f":"IF('PLANILLA#1 (1-25)'!D25=\"\",\"\",'PLANILLA#1 (1-25)'!D25)","v":""},{"$f":"IF('PLANILLA#1 (1-25)'!E25=\"\",\"\",'PLANILLA#1 (1-25)'!E25)","v":""},{"$f":"IF('PLANILLA#1 (1-25)'!F25=\"\",\"\",'PLANILLA#1 (1-25)'!F25)","v":""},{"$f":"IF('PLANILLA#1 (1-25)'!G25=\"\",\"\",'PLANILLA#1 (1-25)'!G25)","v":""},{"$f":"IF('PLANILLA#1 (1-25)'!H25=\"\",\"\",'PLANILLA#1 (1-25)'!H25)","v":""},{"$f":"'PLANILLA#1 (1-25)'!I25","v":0},{"$f":"'PLANILLA#1 (1-25)'!J25","v":0},{"$f":"'PLANILLA#1 (1-25)'!K25","v":0},{"$f":"'PLANILLA#1 (1-25)'!L25","v":0},{"$f":"'PLANILLA#1 (1-25)'!M25","v":0},{"$f":"'PLANILLA#1 (1-25)'!N25","v":0},{"$f":"'PLANILLA#1 (1-25)'!O25","v":0},{"$f":"'PLANILLA#1 (1-25)'!P25","v":0},{"$f":"'PLANILLA#1 (1-25)'!Q25","v":0},{"$f":"'PLANILLA#1 (1-25)'!R25","v":0},null,0,0,0,0]
[{"$f":"'PLANILLA#1 (1-25)'!B26","v":18},{"$f":"IF('PLANILLA#1 (1-25)'!C26=\"\",\"\",'PLANILLA#1 (1-25)'!C26)","v":""},{"$f":"IF('PLANILLA#1 (1-25)'!D26=\"\",\"\",'PLANILLA#1 (1-25)'!D26)","v":""},{"$f":"IF('PLANILLA#1 (1-25)'!E26=\"\",\"\",'PLANILLA#1 (1-25)'!E26)","v":""},{"$f":"IF('PLANILLA#1 (1-25)'!F26=\"\",\"\",'PLANILLA#1 (1-25)'!F26)","v":""},{"$f":"IF('PLANILLA#1 (1-25)'!G26=\"\",\"\",'PLANILLA#1 (1-25)'!G26)","v":""},{"$f":"IF('PLANILLA#1 (1-25)'!H26=\"\",\"\",'PLANILLA#1 (1-25)'!H26)","v":""},{"$f":"'PLANILLA#1 (1-25)'!I26","v":0},{"$f":"'PLANILLA#1 (1-25)'!J26","v":0},{"$f":"'PLANILLA#1 (1-25)'!K26","v":0},{"$f":"'PLANILLA#1 (1-25)'!L26","v":0},{"$f":"'PLANILLA#1 (1-25)'!M26","v":0},{"$f":"'PLANILLA#1 (1-25)'!N26","v":0},{"$f":"'PLANILLA#1 (1-25)'!O26","v":0},{"$f":"'PLANILLA#1 (1-25)'!P26","v":0},{"$f":"'PLANILLA#1 (1-25)'!Q26","v":0},{"$f":"'PLANILLA#1 (1-25)'!R26","v":0},null,0,0,0,0]
[{"$f":"'PLANILLA#1 (1-25)'!B27","v":19},{"$f":"IF('PLANILLA#1 (1-25)'!C27=\"\",\"\",'PLANILLA#1 (1-25)'!C27)","v":""},{"$f":"IF('PLANILLA#1 (1-25)'!D27=\"\",\"\",'PLANILLA#1 (1-25)'!D27)","v":""},{"$f":"IF('PLANILLA#1 (1-25)'!E27=\"\",\"\",'PLANILLA#1 (1-25)'!E27)","v":""},{"$f":"IF('PLANILLA#1 (1-25)'!F27=\"\",\"\",'PLANILLA#1 (1-25)'!F27)","v":""},{"$f":"IF('PLANILLA#1 (1-25)'!G27=\"\",\"\",'PLANILLA#1 (1-25)'!G27)","v":""},{"$f":"IF('PLANILLA#1 (1-25)'!H27=\"\",\"\",'PLANILLA#1 (1-25)'!H27)","v":""},{"$f":"'PLANILLA#1 (1-25)'!I27","v":0},{"$f":"'PLANILLA#1 (1-25)'!J27","v":0},{"$f":"'PLANILLA#1 (1-25)'!K27","v":0},{"$f":"'PLANILLA#1 (1-25)'!L27","v":0},{"$f":"'PLANILLA#1 (1-25)'!M27","v":0},{"$f":"'PLANILLA#1 (1-25)'!N27","v":0},{"$f":"'PLANILLA#1 (1-25)'!O27","v":0},{"$f":"'PLANILLA#1 (1-25)'!P27","v":0},{"$f":"'PLANILLA#1 (1-25)'!Q27","v":0},{"$f":"'PLANILLA#1 (1-25)'!R27","v":0},null,0,0,0,0]
[{"$f":"'PLANILLA#1 (1-25)'!B28","v":20},{"$f":"IF('PLANILLA#1 (1-25)'!C28=\"\",\"\",'PLANILLA#1 (1-25)'!C28)","v":""},{"$f":"IF('PLANILLA#1 (1-25)'!D28=\"\",\"\",'PLANILLA#1 (1-25)'!D28)","v":""},{"$f":"IF('PLANILLA#1 (1-25)'!E28=\"\",\"\",'PLANILLA#1 (1-25)'!E28)","v":""},{"$f":"IF('PLANILLA#1 (1-25)'!F28=\"\",\"\",'PLANILLA#1 (1-25)'!F28)","v":""},{"$f":"IF('PLANILLA#1 (1-25)'!G28=\"\",\"\",'PLANILLA#1 (1-25)'!G28)","v":""},{"$f":"IF('PLANILLA#1 (1-25)'!H28=\"\",\"\",'PLANILLA#1 (1-25)'!H28)","v":""},{"$f":"'PLANILLA#1 (1-25)'!I28","v":0},{"$f":"'PLANILLA#1 (1-25)'!J28","v":0},{"$f":"'PLANILLA#1 (1-25)'!K28","v":0},{"$f":"'PLANILLA#1 (1-25)'!L28","v":0},{"$f":"'PLANILLA#1 (1-25)'!M28","v":0},{"$f":"'PLANILLA#1 (1-25)'!N28","v":0},{"$f":"'PLANILLA#1 (1-25)'!O28","v":0},{"$f":"'PLANILLA#1 (1-25)'!P28","v":0},{"$f":"'PLANILLA#1 (1-25)'!Q28","v":0},{"$f":"'PLANILLA#1 (1-25)'!R28","v":0},null,0,0,0,0]
[{"$f":"'PLANILLA#1 (1-25)'!B29","v":21},{"$f":"IF('PLANILLA#1 (1-25)'!C29=\"\",\"\",'PLANILLA#1 (1-25)'!C29)","v":""},{"$f":"IF('PLANILLA#1 (1-25)'!D29=\"\",\"\",'PLANILLA#1 (1-25)'!D29)","v":""},{"$f":"IF('PLANILLA#1 (1-25)'!E29=\"\",\"\",'PLANILLA#1 (1-25)'!E29)","v":""},{"$f":"IF('PLANILLA#1 (1-25)'!F29=\"\",\"\",'PLANILLA#1 (1-25)'!F29)","v":""},{"$f":"IF('PLANILLA#1 (1-25)'!G29=\"\",\"\",'PLANILLA#1 (1-25)'!G29)","v":""},{"$f":"IF('PLANILLA#1 (1-25)'!H29=\"\",\"\",'PLANILLA#1 (1-25)'!H29)","v":""},{"$f":"'PLANILLA#1 (1-25)'!I29","v":0},{"$f":"'PLANILLA#1 (1-25)'!J29","v":0},{"$f":"'PLANILLA#1 (1-25)'!K29","v":0},{"$f":"'PLANILLA#1 (1-25)'!L29","v":0},{"$f":"'PLANILLA#1 (1-25)'!M29","v":0},{"$f":"'PLANILLA#1 (1-25)'!N29","v":0},{"$f":"'PLANILLA#1 (1-25)'!O29","v":0},{"$f":"'PLANILLA#1 (1-25)'!P29","v":0},{"$f":"'PLANILLA#1 (1-25)'!Q29","v":0},{"$f":"'PLANILLA#1 (1-25)'!R29","v":0},null,0,0,0,0]
[{"$f":"'PLANILLA#1 (1-25)'!B30","v":22},{"$f":"IF('PLANILLA#1 (1-25)'!C30=\"\",\"\",'PLANILLA#1 (1-25)'!C30)","v":""},{"$f":"IF('PLANILLA#1 (1-25)'!D30=\"\",\"\",'PLANILLA#1 (1-25)'!D30)","v":""},{"$f":"IF('PLANILLA#1 (1-25)'!E30=\"\",\"\",'PLANILLA#1 (1-25)'!E30)","v":""},{"$f":"IF('PLANILLA#1 (1-25)'!F30=\"\",\"\",'PLANILLA#1 (1-25)'!F30)","v":""},{"$f":"IF('PLANILLA#1 (1-25)'!G30=\"\",\"\",'PLANILLA#1 (1-25)'!G30)","v":""},{"$f":"IF('PLANILLA#1 (1-25)'!H30=\"\",\"\",'PLANILLA#1 (1-25)'!H30)","v":""},{"$f":"'PLANILLA#1 (1-25)'!I30","v":0},{"$f":"'PLANILLA#1 (1-25)'!J30","v":0},{"$f":"'PLANILLA#1 (1-25)'!K30","v":0},{"$f":"'PLANILLA#1 (1-25)'!L30","v":0},{"$f":"'PLANILLA#1 (1-25)'!M30","v":0},{"$f":"'PLANILLA#1 (1-25)'!N30","v":0},{"$f":"'PLANILLA#1 (1-25)'!O30","v":0},{"$f":"'PLANILLA#1 (1-25)'!P30","v":0},{"$f":"'PLANILLA#1 (1-25)'!Q30","v":0},{"$f":"'PLANILLA#1 (1-25)'!R30","v":0},null,0,0,0,0]
[{"$f":"'PLANILLA#1 (1-25)'!B31","v":23},{"$f":"IF('PLANILLA#1 (1-25)'!C31=\"\",\"\",'PLANILLA#1 (1-25)'!C31)","v":""},{"$f":"IF('PLANILLA#1 (1-25)'!D31=\"\",\"\",'PLANILLA#1 (1-25)'!D31)","v":""},{"$f":"IF('PLANILLA#1 (1-25)'!E31=\"\",\"\",'PLANILLA#1 (1-25)'!E31)","v":""},{"$f":"IF('PLANILLA#1 (1-25)'!F31=\"\",\"\",'PLANILLA#1 (1-25)'!F31)","v":""},{"$f":"IF('PLANILLA#1 (1-25)'!G31=\"\",\"\",'PLANILLA#1 (1-25)'!G31)","v":""},{"$f":"IF('PLANILLA#1 (1-25)'!H31=\"\",\"\",'PLANILLA#1 (1-25)'!H31)","v":""},{"$f":"'PLANILLA#1 (1-25)'!I31","v":0},{"$f":"'PLANILLA#1 (1-25)'!J31","v":0},{"$f":"'PLANILLA#1 (1-25)'!K31","v":0},{"$f":"'PLANILLA#1 (1-25)'!L31","v":0},{"$f":"'PLANILLA#1 (1-25)'!M31","v":0},{"$f":"'PLANILLA#1 (1-25)'!N31","v":0},{"$f":"'PLANILLA#1 (1-25)'!O31","v":0},{"$f":"'PLANILLA#1 (1-25)'!P31","v":0},{"$f":"'PLANILLA#1 (1-25)'!Q31","v":0},{"$f":"'PLANILLA#1 (1-25)'!R31","v":0},null,0,0,0,0]
[{"$f":"'PLANILLA#1 (1-25)'!B32","v":24},{"$f":"IF('PLANILLA#1 (1-25)'!C32=\"\",\"\",'PLANILLA#1 (1-25)'!C32)","v":""},{"$f":"IF('PLANILLA#1 (1-25)'!D32=\"\",\"\",'PLANILLA#1 (1-25)'!D32)","v":""},{"$f":"IF('PLANILLA#1 (1-25)'!E32=\"\",\"\",'PLANILLA#1 (1-25)'!E32)","v":""},{"$f":"IF('PLANILLA#1 (1-25)'!F32=\"\",\"\",'PLANILLA#1 (1-25)'!F32)","v":""},{"$f":"IF('PLANILLA#1 (1-25)'!G32=\"\",\"\",'PLANILLA#1 (1-25)'!G32)","v":""},{"$f":"IF('PLANILLA#1 (1-25)'!H32=\"\",\"\",'PLANILLA#1 (1-25)'!H32)","v":""},{"$f":"'PLANILLA#1 (1-25)'!I32","v":0},{"$f":"'PLANILLA#1 (1-25)'!J32","v":0},{"$f":"'PLANILLA#1 (1-25)'!K32","v":0},{"$f":"'PLANILLA#1 (1-25)'!L32","v":0},{"$f":"'PLANILLA#1 (1-25)'!M32","v":0},{"$f":"'PLANILLA#1 (1-25)'!N32","v":0},{"$f":"'PLANILLA#1 (1-25)'!O32","v":0},{"$f":"'PLANILLA#1 (1-25)'!P32","v":0},{"$f":"'PLANILLA#1 (1-25)'!Q32","v":0},{"$f":"'PLANILLA#1 (1-25)'!R32","v":0},null,0,0,0,0]
[{"$f":"'PLANILLA#1 (1-25)'!B33","v":25},{"$f":"IF('PLANILLA#1 (1-25)'!C33=\"\",\"\",'PLANILLA#1 (1-25)'!C33)","v":""},{"$f":"IF('PLANILLA#1 (1-25)'!D33=\"\",\"\",'PLANILLA#1 (1-25)'!D33)","v":""},{"$f":"IF('PLANILLA#1 (1-25)'!E33=\"\",\"\",'PLANILLA#1 (1-25)'!E33)","v":""},{"$f":"IF('PLANILLA#1 (1-25)'!F33=\"\",\"\",'PLANILLA#1 (1-25)'!F33)","v":""},{"$f":"IF('PLANILLA#1 (1-25)'!G33=\"\",\"\",'PLANILLA#1 (1-25)'!G33)","v":""},{"$f":"IF('PLANILLA#1 (1-25)'!H33=\"\",\"\",'PLANILLA#1 (1-25)'!H33)","v":""},{"$f":"'PLANILLA#1 (1-25)'!I33","v":0},{"$f":"'PLANILLA#1 (1-25)'!J33","v":0},{"$f":"'PLANILLA#1 (1-25)'!K33","v":0},{"$f":"'PLANILLA#1 (1-25)'!L33","v":0},{"$f":"'PLANILLA#1 (1-25)'!M33","v":0},{"$f":"'PLANILLA#1 (1-25)'!N33","v":0},{"$f":"'PLANILLA#1 (1-25)'!O33","v":0},{"$f":"'PLANILLA#1 (1-25)'!P33","v":0},{"$f":"'PLANILLA#1 (1-25)'!Q33","v":0},{"$f":"'PLANILLA#1 (1-25)'!R33","v":0},null,0,0,0,0]
[{"$f":"'PLANILLA#2 (26-50)'!B8","v":26},{"$f":"IF('PLANILLA#2 (26-50)'!C8=\"\",\"\",'PLANILLA#2 (26-50)'!C8)","v":""},{"$f":"IF('PLANILLA#2 (26-50)'!D8=\"\",\"\",'PLANILLA#2 (26-50)'!D8)","v":""},{"$f":"IF('PLANILLA#2 (26-50)'!E8=\"\",\"\",'PLANILLA#2 (26-50)'!E8)","v":""},{"$f":"IF('PLANILLA#2 (26-50)'!F8=\"\",\"\",'PLANILLA#2 (26-50)'!F8)","v":""},{"$f":"IF('PLANILLA#2 (26-50)'!G8=\"\",\"\",'PLANILLA#2 (26-50)'!G8)","v":""},{"$f":"IF('PLANILLA#2 (26-50)'!H8=\"\",\"\",'PLANILLA#2 (26-50)'!H8)","v":""},{"$f":"'PLANILLA#2 (26-50)'!I8","v":0},{"$f":"'PLANILLA#2 (26-50)'!J8","v":0},{"$f":"'PLANILLA#2 (26-50)'!K8","v":0},{"$f":"'PLANILLA#2 (26-50)'!L8","v":0},{"$f":"'PLANILLA#2 (26-50)'!M8","v":0},{"$f":"'PLANILLA#2 (26-50)'!N8","v":0},{"$f":"'PLANILLA#2 (26-50)'!O8","v":0},{"$f":"'PLANILLA#2 (26-50)'!P8","v":0},{"$f":"'PLANILLA#2 (26-50)'!Q8","v":0},{"$f":"'PLANILLA#2 (26-50)'!R8","v":0},null,0,0,0,0]
[{"$f":"'PLANILLA#2 (26-50)'!B9","v":27},{"$f":"IF('PLANILLA#2 (26-50)'!C9=\"\",\"\",'PLANILLA#2 (26-50)'!C9)","v":""},{"$f":"IF('PLANILLA#2 (26-50)'!D9=\"\",\"\",'PLANILLA#2 (26-50)'!D9)","v":""},{"$f":"IF('PLANILLA#2 (26-50)'!E9=\"\",\"\",'PLANILLA#2 (26-50)'!E9)","v":""},{"$f":"IF('PLANILLA#2 (26-50)'!F9=\"\",\"\",'PLANILLA#2 (26-50)'!F9)","v":""},{"$f":"IF('PLANILLA#2 (26-50)'!G9=\"\",\"\",'PLANILLA#2 (26-50)'!G9)","v":""},{"$f":"IF('PLANILLA#2 (26-50)'!H9=\"\",\"\",'PLANILLA#2 (26-50)'!H9)","v":""},{"$f":"'PLANILLA#2 (26-50)'!I9","v":0},{"$f":"'PLANILLA#2 (26-50)'!J9","v":0},{"$f":"'PLANILLA#2 (26-50)'!K9","v":0},{"$f":"'PLANILLA#2 (26-50)'!L9","v":0},{"$f":"'PLANILLA#2 (26-50)'!M9","v":0},{"$f":"'PLANILLA#2 (26-50)'!N9","v":0},{"$f":"'PLANILLA#2 (26-50)'!O9","v":0},{"$f":"'PLANILLA#2 (26-50)'!P9","v":0},{"$f":"'PLANILLA#2 (26-50)'!Q9","v":0},{"$f":"'PLANILLA#2 (26-50)'!R9","v":0},null,0,0,0,0]
[{"$f":"'PLANILLA#2 (26-50)'!B10","v":28},{"$f":"IF('PLANILLA#2 (26-50)'!C10=\"\",\"\",'PLANILLA#2 (26-50)'!C10)","v":""},{"$f":"IF('PLANILLA#2 (26-50)'!D10=\"\",\"\",'PLANILLA#2 (26-50)'!D10)","v":""},{"$f":"IF('PLANILLA#2 (26-50)'!E10=\"\",\"\",'PLANILLA#2 (26-50)'!E10)","v":""},{"$f":"IF('PLANILLA#2 (26-50)'!F10=\"\",\"\",'PLANILLA#2 (26-50)'!F10)","v":""},{"$f":"IF('PLANILLA#2 (26-50)'!G10=\"\",\"\",'PLANILLA#2 (26-50)'!G10)","v":""},{"$f":"IF('PLANILLA#2 (26-50)'!H10=\"\",\"\",'PLANILLA#2 (26-50)'!H10)","v":""},{"$f":"'PLANILLA#2 (26-50)'!I10","v":0},{"$f":"'PLANILLA#2 (26-50)'!J10","v":0},{"$f":"'PLANILLA#2 (26-50)'!K10","v":0},{"$f":"'PLANILLA#2 (26-50)'!L10","v":0},{"$f":"'PLANILLA#2 (26-50)'!M10","v":0},{"$f":"'PLANILLA#2 (26-50)'!N10","v":0},{"$f":"'PLANILLA#2 (26-50)'!O10","v":0},{"$f":"'PLANILLA#2 (26-50)'!P10","v":0},{"$f":"'PLANILLA#2 (26-50)'!Q10","v":0},{"$f":"'PLANILLA#2 (26-50)'!R10","v":0},null,0,0,0,0]
[{"$f":"'PLANILLA#2 (26-50)'!B11","v":29},{"$f":"IF('PLANILLA#2 (26-50)'!C11=\"\",\"\",'PLANILLA#2 (26-50)'!C11)","v":""},{"$f":"IF('PLANILLA#2 (26-50)'!D11=\"\",\"\",'PLANILLA#2 (26-50)'!D11)","v":""},{"$f":"IF('PLANILLA#2 (26-50)'!E11=\"\",\"\",'PLANILLA#2 (26-50)'!E11)","v":""},{"$f":"IF('PLANILLA#2 (26-50)'!F11=\"\",\"\",'PLANILLA#2 (26-50)'!F11)","v":""},{"$f":"IF('PLANILLA#2 (26-50)'!G11=\"\",\"\",'PLANILLA#2 (26-50)'!G11)","v":""},{"$f":"IF('PLANILLA#2 (26-50)'!H11=\"\",\"\",'PLANILLA#2 (26-50)'!H11)","v":""},{"$f":"'PLANILLA#2 (26-50)'!I11","v":0},{"$f":"'PLANILLA#2 (26-50)'!J11","v":0},{"$f":"'PLANILLA#2 (26-50)'!K11","v":0},{"$f":"'PLANILLA#2 (26-50)'!L11","v":0},{"$f":"'PLANILLA#2 (26-50)'!M11","v":0},{"$f":"'PLANILLA#2 (26-50)'!N11","v":0},{"$f":"'PLANILLA#2 (26-50)'!O11","v":0},{"$f":"'PLANILLA#2 (26-50)'!P11","v":0},{"$f":"'PLANILLA#2 (26-50)'!Q11","v":0},{"$f":"'PLANILLA#2 (26-50)'!R11","v":0},null,0,0,0,0]
[{"$f":"'PLANILLA#2 (26-50)'!B12","v":30},{"$f":"IF('PLANILLA#2 (26-50)'!C12=\"\",\"\",'PLANILLA#2 (26-50)'!C12)","v":""},{"$f":"IF('PLANILLA#2 (26-50)'!D12=\"\",\"\",'PLANILLA#2 (26-50)'!D12)","v":""},{"$f":"IF('PLANILLA#2 (26-50)'!E12=\"\",\"\",'PLANILLA#2 (26-50)'!E12)","v":""},{"$f":"IF('PLANILLA#2 (26-50)'!F12=\"\",\"\",'PLANILLA#2 (26-50)'!F12)","v":""},{"$f":"IF('PLANILLA#2 (26-50)'!G12=\"\",\"\",'PLANILLA#2 (26-50)'!G12)","v":""},{"$f":"IF('PLANILLA#2 (26-50)'!H12=\"\",\"\",'PLANILLA#2 (26-50)'!H12)","v":""},{"$f":"'PLANILLA#2 (26-50)'!I12","v":0},{"$f":"'PLANILLA#2 (26-50)'!J12","v":0},{"$f":"'PLANILLA#2 (26-50)'!K12","v":0},{"$f":"'PLANILLA#2 (26-50)'!L12","v":0},{"$f":"'PLANILLA#2 (26-50)'!M12","v":0},{"$f":"'PLANILLA#2 (26-50)'!N12","v":0},{"$f":"'PLANILLA#2 (26-50)'!O12","v":0},{"$f":"'PLANILLA#2 (26-50)'!P12","v":0},{"$f":"'PLANILLA#2 (26-50)'!Q12","v":0},{"$f":"'PLANILLA#2 (26-50)'!R12","v":0},null,0,0,0,0]
[{"$f":"'PLANILLA#2 (26-50)'!B13","v":31},{"$f":"IF('PLANILLA#2 (26-50)'!C13=\"\",\"\",'PLANILLA#2 (26-50)'!C13)","v":""},{"$f":"IF('PLANILLA#2 (26-50)'!D13=\"\",\"\",'PLANILLA#2 (26-50)'!D13)","v":""},{"$f":"IF('PLANILLA#2 (26-50)'!E13=\"\",\"\",'PLANILLA#2 (26-50)'!E13)","v":""},{"$f":"IF('PLANILLA#2 (26-50)'!F13=\"\",\"\",'PLANILLA#2 (26-50)'!F13)","v":""},{"$f":"IF('PLANILLA#2 (26-50)'!G13=\"\",\"\",'PLANILLA#2 (26-50)'!G13)","v":""},{"$f":"IF('PLANILLA#2 (26-50)'!H13=\"\",\"\",'PLANILLA#2 (26-50)'!H13)","v":""},{"$f":"'PLANILLA#2 (26-50)'!I13","v":0},{"$f":"'PLANILLA#2 (26-50)'!J13","v":0},{"$f":"'PLANILLA#2 (26-50)'!K13","v":0},{"$f":"'PLANILLA#2 (26-50)'!L13","v":0},{"$f":"'PLANILLA#2 (26-50)'!M13","v":0},{"$f":"'PLANILLA#2 (26-50)'!N13","v":0},{"$f":"'PLANILLA#2 (26-50)'!O13","v":0},{"$f":"'PLANILLA#2 (26-50)'!P13","v":0},{"$f":"'PLANILLA#2 (26-50)'!Q13","v":0},{"$f":"'PLANILLA#2 (26-50)'!R13","v":0},null,0,0,0,0]
[{"$f":"'PLANILLA#2 (26-50)'!B14","v":32},{"$f":"IF('PLANILLA#2 (26-50)'!C14=\"\",\"\",'PLANILLA#2 (26-50)'!C14)","v":""},{"$f":"IF('PLANILLA#2 (26-50)'!D14=\"\",\"\",'PLANILLA#2 (26-50)'!D14)","v":""},{"$f":"IF('PLANILLA#2 (26-50)'!E14=\"\",\"\",'PLANILLA#2 (26-50)'!E14)","v":""},{"$f":"IF('PLANILLA#2 (26-50)'!F14=\"\",\"\",'PLANILLA#2 (26-50)'!F14)","v":""},{"$f":"IF('PLANILLA#2 (26-50)'!G14=\"\",\"\",'PLANILLA#2 (26-50)'!G14)","v":""},{"$f":"IF('PLANILLA#2 (26-50)'!H14=\"\",\"\",'PLANILLA#2 (26-50)'!H14)","v":""},{"$f":"'PLANILLA#2 (26-50)'!I14","v":0},{"$f":"'PLANILLA#2 (26-50)'!J14","v":0},{"$f":"'PLANILLA#2 (26-50)'!K14","v":0},{"$f":"'PLANILLA#2 (26-50)'!L14","v":0},{"$f":"'PLANILLA#2 (26-50)'!M14","v":0},{"$f":"'PLANILLA#2 (26-50)'!N14","v":0},{"$f":"'PLANILLA#2 (26-50)'!O14","v":0},{"$f":"'PLANILLA#2 (26-50)'!P14","v":0},{"$f":"'PLANILLA#2 (26-50)'!Q14","v":0},{"$f":"'PLANILLA#2 (26-50)'!R14","v":0},null,0,0,0,0]
[{"$f":"'PLANILLA#2 (26-50)'!B15","v":33},{"$f":"IF('PLANILLA#2 (26-50)'!C15=\"\",\"\",'PLANILLA#2 (26-50)'!C15)","v":""},{"$f":"IF('PLANILLA#2 (26-50)'!D15=\"\",\"\",'PLANILLA#2 (26-50)'!D15)","v":""},{"$f":"IF('PLANILLA#2 (26-50)'!E15=\"\",\"\",'PLANILLA#2 (26-50)'!E15)","v":""},{"$f":"IF('PLANILLA#2 (26-50)'!F15=\"\",\"\",'PLANILLA#2 (26-50)'!F15)","v":""},{"$f":"IF('PLANILLA#2 (26-50)'!G15=\"\",\"\",'PLANILLA#2 (26-50)'!G15)","v":""},{"$f":"IF('PLANILLA#2 (26-50)'!H15=\"\",\"\",'PLANILLA#2 (26-50)'!H15)","v":""},{"$f":"'PLANILLA#2 (26-50)'!I15","v":0},{"$f":"'PLANILLA#2 (26-50)'!J15","v":0},{"$f":"'PLANILLA#2 (26-50)'!K15","v":0},{"$f":"'PLANILLA#2 (26-50)'!L15","v":0},{"$f":"'PLANILLA#2 (26-50)'!M15","v":0},{"$f":"'PLANILLA#2 (26-50)'!N15","v":0},{"$f":"'PLANILLA#2 (26-50)'!O15","v":0},{"$f":"'PLANILLA#2 (26-50)'!P15","v":0},{"$f":"'PLANILLA#2 (26-50)'!Q15","v":0},{"$f":"'PLANILLA#2 (26-50)'!R15","v":0},null,0,0,0,0]
[{"$f":"'PLANILLA#2 (26-50)'!B16","v":34},{"$f":"IF('PLANILLA#2 (26-50)'!C16=\"\",\"\",'PLANILLA#2 (26-50)'!C16)","v":""},{"$f":"IF('PLANILLA#2 (26-50)'!D16=\"\",\"\",'PLANILLA#2 (26-50)'!D16)","v":""},{"$f":"IF('PLANILLA#2 (26-50)'!E16=\"\",\"\",'PLANILLA#2 (26-50)'!E16)","v":""},{"$f":"IF('PLANILLA#2 (26-50)'!F16=\"\",\"\",'PLANILLA#2 (26-50)'!F16)","v":""},{"$f":"IF('PLANILLA#2 (26-50)'!G16=\"\",\"\",'PLANILLA#2 (26-50)'!G16)","v":""},{"$f":"IF('PLANILLA#2 (26-50)'!H16=\"\",\"\",'PLANILLA#2 (26-50)'!H16)","v":""},{"$f":"'PLANILLA#2 (26-50)'!I16","v":0},{"$f":"'PLANILLA#2 (26-50)'!J16","v":0},{"$f":"'PLANILLA#2 (26-50)'!K16","v":0},{"$f":"'PLANILLA#2 (26-50)'!L16","v":0},{"$f":"'PLANILLA#2 (26-50)'!M16","v":0},{"$f":"'PLANILLA#2 (26-50)'!N16","v":0},{"$f":"'PLANILLA#2 (26-50)'!O16","v":0},{"$f":"'PLANILLA#2 (26-50)'!P16","v":0},{"$f":"'PLANILLA#2 (26-50)'!Q16","v":0},{"$f":"'PLANILLA#2 (26-50)'!R16","v":0},null,0,0,0,0]
[{"$f":"'PLANILLA#2 (26-50)'!B17","v":35},{"$f":"IF('PLANILLA#2 (26-50)'!C17=\"\",\"\",'PLANILLA#2 (26-50)'!C17)","v":""},{"$f":"IF('PLANILLA#2 (26-50)'!D17=\"\",\"\",'PLANILLA#2 (26-50)'!D17)","v":""},{"$f":"IF('PLANILLA#2 (26-50)'!E17=\"\",\"\",'PLANILLA#2 (26-50)'!E17)","v":""},{"$f":"IF('PLANILLA#2 (26-50)'!F17=\"\",\"\",'PLANILLA#2 (26-50)'!F17)","v":""},{"$f":"IF('PLANILLA#2 (26-50)'!G17=\"\",\"\",'PLANILLA#2 (26-50)'!G17)","v":""},{"$f":"IF('PLANILLA#2 (26-50)'!H17=\"\",\"\",'PLANILLA#2 (26-50)'!H17)","v":""},{"$f":"'PLANILLA#2 (26-50)'!I17","v":0},{"$f":"'PLANILLA#2 (26-50)'!J17","v":0},{"$f":"'PLANILLA#2 (26-50)'!K17","v":0},{"$f":"'PLANILLA#2 (26-50)'!L17","v":0},{"$f":"'PLANILLA#2 (26-50)'!M17","v":0},{"$f":"'PLANILLA#2 (26-50)'!N17","v":0},{"$f":"'PLANILLA#2 (26-50)'!O17","v":0},{"$f":"'PLANILLA#2 (26-50)'!P17","v":0},{"$f":"'PLANILLA#2 (26-50)'!Q17","v":0},{"$f":"'PLANILLA#2 (26-50)'!R17","v":0},null,0,0,0,0]
[{"$f":"'PLANILLA#2 (26-50)'!B18","v":36},{"$f":"IF('PLANILLA#2 (26-50)'!C18=\"\",\"\",'PLANILLA#2 (26-50)'!C18)","v":""},{"$f":"IF('PLANILLA#2 (26-50)'!D18=\"\",\"\",'PLANILLA#2 (26-50)'!D18)","v":""},{"$f":"IF('PLANILLA#2 (26-50)'!E18=\"\",\"\",'PLANILLA#2 (26-50)'!E18)","v":""},{"$f":"IF('PLANILLA#2 (26-50)'!F18=\"\",\"\",'PLANILLA#2 (26-50)'!F18)","v":""},{"$f":"IF('PLANILLA#2 (26-50)'!G18=\"\",\"\",'PLANILLA#2 (26-50)'!G18)","v":""},{"$f":"IF('PLANILLA#2 (26-50)'!H18=\"\",\"\",'PLANILLA#2 (26-50)'!H18)","v":""},{"$f":"'PLANILLA#2 (26-50)'!I18","v":0},{"$f":"'PLANILLA#2 (26-50)'!J18","v":0},{"$f":"'PLANILLA#2 (26-50)'!K18","v":0},{"$f":"'PLANILLA#2 (26-50)'!L18","v":0},{"$f":"'PLANILLA#2 (26-50)'!M18","v":0},{"$f":"'PLANILLA#2 (26-50)'!N18","v":0},{"$f":"'PLANILLA#2 (26-50)'!O18","v":0},{"$f":"'PLANILLA#2 (26-50)'!P18","v":0},{"$f":"'PLANILLA#2 (26-50)'!Q18","v":0},{"$f":"'PLANILLA#2 (26-50)'!R18","v":0},null,0,0,0,0]
[{"$f":"'PLANILLA#2 (26-50)'!B19","v":37},{"$f":"IF('PLANILLA#2 (26-50)'!C19=\"\",\"\",'PLANILLA#2 (26-50)'!C19)","v":""},{"$f":"IF('PLANILLA#2 (26-50)'!D19=\"\",\"\",'PLANILLA#2 (26-50)'!D19)","v":""},{"$f":"IF('PLANILLA#2 (26-50)'!E19=\"\",\"\",'PLANILLA#2 (26-50)'!E19)","v":""},{"$f":"IF('PLANILLA#2 (26-50)'!F19=\"\",\"\",'PLANILLA#2 (26-50)'!F19)","v":""},{"$f":"IF('PLANILLA#2 (26-50)'!G19=\"\",\"\",'PLANILLA#2 (26-50)'!G19)","v":""},{"$f":"IF('PLANILLA#2 (26-50)'!H19=\"\",\"\",'PLANILLA#2 (26-50)'!H19)","v":""},{"$f":"'PLANILLA#2 (26-50)'!I19","v":0},{"$f":"'PLANILLA#2 (26-50)'!J19","v":0},{"$f":"'PLANILLA#2 (26-50)'!K19","v":0},{"$f":"'PLANILLA#2 (26-50)'!L19","v":0},{"$f":"'PLANILLA#2 (26-50)'!M19","v":0},{"$f":"'PLANILLA#2 (26-50)'!N19","v":0},{"$f":"'PLANILLA#2 (26-50)'!O19","v":0},{"$f":"'PLANILLA#2 (26-50)'!P19","v":0},{"$f":"'PLANILLA#2 (26-50)'!Q19","v":0},{"$f":"'PLANILLA#2 (26-50)'!R19","v":0},null,0,0,0,0]
[{"$f":"'PLANILLA#2 (26-50)'!B20","v":38},{"$f":"IF('PLANILLA#2 (26-50)'!C20=\"\",\"\",'PLANILLA#2 (26-50)'!C20)","v":""},{"$f":"IF('PLANILLA#2 (26-50)'!D20=\"\",\"\",'PLANILLA#2 (26-50)'!D20)","v":""},{"$f":"IF('PLANILLA#2 (26-50)'!E20=\"\",\"\",'PLANILLA#2 (26-50)'!E20)","v":""},{"$f":"IF('PLANILLA#2 (26-50)'!F20=\"\",\"\",'PLANILLA#2 (26-50)'!F20)","v":""},{"$f":"IF('PLANILLA#2 (26-50)'!G20=\"\",\"\",'PLANILLA#2 (26-50)'!G20)","v":""},{"$f":"IF('PLANILLA#2 (26-50)'!H20=\"\",\"\",'PLANILLA#2 (26-50)'!H20)","v":""},{"$f":"'PLANILLA#2 (26-50)'!I20","v":0},{"$f":"'PLANILLA#2 (26-50)'!J20","v":0},{"$f":"'PLANILLA#2 (26-50)'!K20","v":0},{"$f":"'PLANILLA#2 (26-50)'!L20","v":0},{"$f":"'PLANILLA#2 (26-50)'!M20","v":0},{"$f":"'PLANILLA#2 (26-50)'!N20","v":0},{"$f":"'PLANILLA#2 (26-50)'!O20","v":0},{"$f":"'PLANILLA#2 (26-50)'!P20","v":0},{"$f":"'PLANILLA#2 (26-50)'!Q20","v":0},{"$f":"'PLANILLA#2 (26-50)'!R20","v":0},null,0,0,0,0]
[{"$f":"'PLANILLA#2 (26-50)'!B21","v":39},{"$f":"IF('PLANILLA#2 (26-50)'!C21=\"\",\"\",'PLANILLA#2 (26-50)'!C21)","v":""},{"$f":"IF('PLANILLA#2 (26-50)'!D21=\"\",\"\",'PLANILLA#2 (26-50)'!D21)","v":""},{"$f":"IF('PLANILLA#2 (26-50)'!E21=\"\",\"\",'PLANILLA#2 (26-50)'!E21)","v":""},{"$f":"IF('PLANILLA#2 (26-50)'!F21=\"\",\"\",'PLANILLA#2 (26-50)'!F21)","v":""},{"$f":"IF('PLANILLA#2 (26-50)'!G21=\"\",\"\",'PLANILLA#2 (26-50)'!G21)","v":""},{"$f":"IF('PLANILLA#2 (26-50)'!H21=\"\",\"\",'PLANILLA#2 (26-50)'!H21)","v":""},{"$f":"'PLANILLA#2 (26-50)'!I21","v":0},{"$f":"'PLANILLA#2 (26-50)'!J21","v":0},{"$f":"'PLANILLA#2 (26-50)'!K21","v":0},{"$f":"'PLANILLA#2 (26-50)'!L21","v":0},{"$f":"'PLANILLA#2 (26-50)'!M21","v":0},{"$f":"'PLANILLA#2 (26-50)'!N21","v":0},{"$f":"'PLANILLA#2 (26-50)'!O21","v":0},{"$f":"'PLANILLA#2 (26-50)'!P21","v":0},{"$f":"'PLANILLA#2 (26-50)'!Q21","v":0},{"$f":"'PLANILLA#2 (26-50)'!R21","v":0},null,0,0,0,0]
[{"$f":"'PLANILLA#2 (26-50)'!B22","v":40},{"$f":"IF('PLANILLA#2 (26-50)'!C22=\"\",\"\",'PLANILLA#2 (26-50)'!C22)","v":""},{"$f":"IF('PLANILLA#2 (26-50)'!D22=\"\",\"\",'PLANILLA#2 (26-50)'!D22)","v":""},{"$f":"IF('PLANILLA#2 (26-50)'!E22=\"\",\"\",'PLANILLA#2 (26-50)'!E22)","v":""},{"$f":"IF('PLANILLA#2 (26-50)'!F22=\"\",\"\",'PLANILLA#2 (26-50)'!F22)","v":""},{"$f":"IF('PLANILLA#2 (26-50)'!G22=\"\",\"\",'PLANILLA#2 (26-50)'!G22)","v":""},{"$f":"IF('PLANILLA#2 (26-50)'!H22=\"\",\"\",'PLANILLA#2 (26-50)'!H22)","v":""},{"$f":"'PLANILLA#2 (26-50)'!I22","v":0},{"$f":"'PLANILLA#2 (26-50)'!J22","v":0},{"$f":"'PLANILLA#2 (26-50)'!K22","v":0},{"$f":"'PLANILLA#2 (26-50)'!L22","v":0},{"$f":"'PLANILLA#2 (26-50)'!M22","v":0},{"$f":"'PLANILLA#2 (26-50)'!N22","v":0},{"$f":"'PLANILLA#2 (26-50)'!O22","v":0},{"$f":"'PLANILLA#2 (26-50)'!P22","v":0},{"$f":"'PLANILLA#2 (26-50)'!Q22","v":0},{"$f":"'PLANILLA#2 (26-50)'!R22","v":0},null,0,0,0,0]
[{"$f":"'PLANILLA#2 (26-50)'!B23","v":41},{"$f":"IF('PLANILLA#2 (26-50)'!C23=\"\",\"\",'PLANILLA#2 (26-50)'!C23)","v":""},{"$f":"IF('PLANILLA#2 (26-50)'!D23=\"\",\"\",'PLANILLA#2 (26-50)'!D23)","v":""},{"$f":"IF('PLANILLA#2 (26-50)'!E23=\"\",\"\",'PLANILLA#2 (26-50)'!E23)","v":""},{"$f":"IF('PLANILLA#2 (26-50)'!F23=\"\",\"\",'PLANILLA#2 (26-50)'!F23)","v":""},{"$f":"IF('PLANILLA#2 (26-50)'!G23=\"\",\"\",'PLANILLA#2 (26-50)'!G23)","v":""},{"$f":"IF('PLANILLA#2 (26-50)'!H23=\"\",\"\",'PLANILLA#2 (26-50)'!H23)","v":""},{"$f":"'PLANILLA#2 (26-50)'!I23","v":0},{"$f":"'PLANILLA#2 (26-50)'!J23","v":0},{"$f":"'PLANILLA#2 (26-50)'!K23","v":0},{"$f":"'PLANILLA#2 (26-50)'!L23","v":0},{"$f":"'PLANILLA#2 (26-50)'!M23","v":0},{"$f":"'PLANILLA#2 (26-50)'!N23","v":0},{"$f":"'PLANILLA#2 (26-50)'!O23","v":0},{"$f":"'PLANILLA#2 (26-50)'!P23","v":0},{"$f":"'PLANILLA#2 (26-50)'!Q23","v":0},{"$f":"'PLANILLA#2 (26-50)'!R23","v":0},null,0,0,0,0]
[{"$f":"'PLANILLA#2 (26-50)'!B24","v":42},{"$f":"IF('PLANILLA#2 (26-50)'!C24=\"\",\"\",'PLANILLA#2 (26-50)'!C24)","v":""},{"$f":"IF('PLANILLA#2 (26-50)'!D24=\"\",\"\",'PLANILLA#2 (26-50)'!D24)","v":""},{"$f":"IF('PLANILLA#2 (26-50)'!E24=\"\",\"\",'PLANILLA#2 (26-50)'!E24)","v":""},{"$f":"IF('PLANILLA#2 (26-50)'!F24=\"\",\"\",'PLANILLA#2 (26-50)'!F24)","v":""},{"$f":"IF('PLANILLA#2 (26-50)'!G24=\"\",\"\",'PLANILLA#2 (26-50)'!G24)","v":""},{"$f":"IF('PLANILLA#2 (26-50)'!H24=\"\",\"\",'PLANILLA#2 (26-50)'!H24)","v":""},{"$f":"'PLANILLA#2 (26-50)'!I24","v":0},{"$f":"'PLANILLA#2 (26-50)'!J24","v":0},{"$f":"'PLANILLA#2 (26-50)'!K24","v":0},{"$f":"'PLANILLA#2 (26-50)'!L24","v":0},{"$f":"'PLANILLA#2 (26-50)'!M24","v":0},{"$f":"'PLANILLA#2 (26-50)'!N24","v":0},{"$f":"'PLANILLA#2 (26-50)'!O24","v":0},{"$f":"'PLANILLA#2 (26-50)'!P24","v":0},{"$f":"'PLANILLA#2 (26-50)'!Q24","v":0},{"$f":"'PLANILLA#2 (26-50)'!R24","v":0},null,0,0,0,0]
[{"$f":"'PLANILLA#2 (26-50)'!B25","v":43},{"$f":"IF('PLANILLA#2 (26-50)'!C25=\"\",\"\",'PLANILLA#2 (26-50)'!C25)","v":""},{"$f":"IF('PLANILLA#2 (26-50)'!D25=\"\",\"\",'PLANILLA#2 (26-50)'!D25)","v":""},{"$f":"IF('PLANILLA#2 (26-50)'!E25=\"\",\"\",'PLANILLA#2 (26-50)'!E25)","v":""},{"$f":"IF('PLANILLA#2 (26-50)'!F25=\"\",\"\",'PLANILLA#2 (26-50)'!F25)","v":""},{"$f":"IF('PLANILLA#2 (26-50)'!G25=\"\",\"\",'PLANILLA#2 (26-50)'!G25)","v":""},{"$f":"IF('PLANILLA#2 (26-50)'!H25=\"\",\"\",'PLANILLA#2 (26-50)'!H25)","v":""},{"$f":"'PLANILLA#2 (26-50)'!I25","v":0},{"$f":"'PLANILLA#2 (26-50)'!J25","v":0},{"$f":"'PLANILLA#2 (26-50)'!K25","v":0},{"$f":"'PLANILLA#2 (26-50)'!L25","v":0},{"$f":"'PLANILLA#2 (26-50)'!M25","v":0},{"$f":"'PLANILLA#2 (26-50)'!N25","v":0},{"$f":"'PLANILLA#2 (26-50)'!O25","v":0},{"$f":"'PLANILLA#2 (26-50)'!P25","v":0},{"$f":"'PLANILLA#2 (26-50)'!Q25","v":0},{"$f":"'PLANILLA#2 (26-50)'!R25","v":0},null,0,0,0,0]
[{"$f":"'PLANILLA#2 (26-50)'!B26","v":44},{"$f":"IF('PLANILLA#2 (26-50)'!C26=\"\",\"\",'PLANILLA#2 (26-50)'!C26)","v":""},{"$f":"IF('PLANILLA#2 (26-50)'!D26=\"\",\"\",'PLANILLA#2 (26-50)'!D26)","v":""},{"$f":"IF('PLANILLA#2 (26-50)'!E26=\"\",\"\",'PLANILLA#2 (26-50)'!E26)","v":""},{"$f":"IF('PLANILLA#2 (26-50)'!F26=\"\",\"\",'PLANILLA#2 (26-50)'!F26)","v":""},{"$f":"IF('PLANILLA#2 (26-50)'!G26=\"\",\"\",'PLANILLA#2 (26-50)'!G26)","v":""},{"$f":"IF('PLANILLA#2 (26-50)'!H26=\"\",\"\",'PLANILLA#2 (26-50)'!H26)","v":""},{"$f":"'PLANILLA#2 (26-50)'!I26","v":0},{"$f":"'PLANILLA#2 (26-50)'!J26","v":0},{"$f":"'PLANILLA#2 (26-50)'!K26","v":0},{"$f":"'PLANILLA#2 (26-50)'!L26","v":0},{"$f":"'PLANILLA#2 (26-50)'!M26","v":0},{"$f":"'PLANILLA#2 (26-50)'!N26","v":0},{"$f":"'PLANILLA#2 (26-50)'!O26","v":0},{"$f":"'PLANILLA#2 (26-50)'!P26","v":0},{"$f":"'PLANILLA#2 (26-50)'!Q26","v":0},{"$f":"'PLANILLA#2 (26-50)'!R26","v":0},null,0,0,0,0]
[{"$f":"'PLANILLA#2 (26-50)'!B27","v":45},{"$f":"IF('PLANILLA#2 (26-50)'!C27=\"\",\"\",'PLANILLA#2 (26-50)'!C27)","v":""},{"$f":"IF('PLANILLA#2 (26-50)'!D27=\"\",\"\",'PLANILLA#2 (26-50)'!D27)","v":""},{"$f":"IF('PLANILLA#2 (26-50)'!E27=\"\",\"\",'PLANILLA#2 (26-50)'!E27)","v":""},{"$f":"IF('PLANILLA#2 (26-50)'!F27=\"\",\"\",'PLANILLA#2 (26-50)'!F27)","v":""},{"$f":"IF('PLANILLA#2 (26-50)'!G27=\"\",\"\",'PLANILLA#2 (26-50)'!G27)","v":""},{"$f":"IF('PLANILLA#2 (26-50)'!H27=\"\",\"\",'PLANILLA#2 (26-50)'!H27)","v":""},{"$f":"'PLANILLA#2 (26-50)'!I27","v":0},{"$f":"'PLANILLA#2 (26-50)'!J27","v":0},{"$f":"'PLANILLA#2 (26-50)'!K27","v":0},{"$f":"'PLANILLA#2 (26-50)'!L27","v":0},{"$f":"'PLANILLA#2 (26-50)'!M27","v":0},{"$f":"'PLANILLA#2 (26-50)'!N27","v":0},{"$f":"'PLANILLA#2 (26-50)'!O27","v":0},{"$f":"'PLANILLA#2 (26-50)'!P27","v":0},{"$f":"'PLANILLA#2 (26-50)'!Q27","v":0},{"$f":"'PLANILLA#2 (26-50)'!R27","v":0},null,0,0,0,0]
[{"$f":"'PLANILLA#2 (26-50)'!B28","v":46},{"$f":"IF('PLANILLA#2 (26-50)'!C28=\"\",\"\",'PLANILLA#2 (26-50)'!C28)","v":""},{"$f":"IF('PLANILLA#2 (26-50)'!D28=\"\",\"\",'PLANILLA#2 (26-50)'!D28)","v":""},{"$f":"IF('PLANILLA#2 (26-50)'!E28=\"\",\"\",'PLANILLA#2 (26-50)'!E28)","v":""},{"$f":"IF('PLANILLA#2 (26-50)'!F28=\"\",\"\",'PLANILLA#2 (26-50)'!F28)","v":""},{"$f":"IF('PLANILLA#2 (26-50)'!G28=\"\",\"\",'PLANILLA#2 (26-50)'!G28)","v":""},{"$f":"IF('PLANILLA#2 (26-50)'!H28=\"\",\"\",'PLANILLA#2 (26-50)'!H28)","v":""},{"$f":"'PLANILLA#2 (26-50)'!I28","v":0},{"$f":"'PLANILLA#2 (26-50)'!J28","v":0},{"$f":"'PLANILLA#2 (26-50)'!K28","v":0},{"$f":"'PLANILLA#2 (26-50)'!L28","v":0},{"$f":"'PLANILLA#2 (26-50)'!M28","v":0},{"$f":"'PLANILLA#2 (26-50)'!N28","v":0},{"$f":"'PLANILLA#2 (26-50)'!O28","v":0},{"$f":"'PLANILLA#2 (26-50)'!P28","v":0},{"$f":"'PLANILLA#2 (26-50)'!Q28","v":0},{"$f":"'PLANILLA#2 (26-50)'!R28","v":0},null,0,0,0,0]
[{"$f":"'PLANILLA#2 (26-50)'!B29","v":47},{"$f":"IF('PLANILLA#2 (26-50)'!C29=\"\",\"\",'PLANILLA#2 (26-50)'!C29)","v":""},{"$f":"IF('PLANILLA#2 (26-50)'!D29=\"\",\"\",'PLANILLA#2 (26-50)'!D29)","v":""},{"$f":"IF('PLANILLA#2 (26-50)'!E29=\"\",\"\",'PLANILLA#2 (26-50)'!E29)","v":""},{"$f":"IF('PLANILLA#2 (26-50)'!F29=\"\",\"\",'PLANILLA#2 (26-50)'!F29)","v":""},{"$f":"IF('PLANILLA#2 (26-50)'!G29=\"\",\"\",'PLANILLA#2 (26-50)'!G29)","v":""},{"$f":"IF('PLANILLA#2 (26-50)'!H29=\"\",\"\",'PLANILLA#2 (26-50)'!H29)","v":""},{"$f":"'PLANILLA#2 (26-50)'!I29","v":0},{"$f":"'PLANILLA#2 (26-50)'!J29","v":0},{"$f":"'PLANILLA#2 (26-50)'!K29","v":0},{"$f":"'PLANILLA#2 (26-50)'!L29","v":0},{"$f":"'PLANILLA#2 (26-50)'!M29","v":0},{"$f":"'PLANILLA#2 (26-50)'!N29","v":0},{"$f":"'PLANILLA#2 (26-50)'!O29","v":0},{"$f":"'PLANILLA#2 (26-50)'!P29","v":0},{"$f":"'PLANILLA#2 (26-50)'!Q29","v":0},{"$f":"'PLANILLA#2 (26-50)'!R29","v":0},null,0,0,0,0]
[{"$f":"'PLANILLA#2 (26-50)'!B30","v":48},{"$f":"IF('PLANILLA#2 (26-50)'!C30=\"\",\"\",'PLANILLA#2 (26-50)'!C30)","v":""},{"$f":"IF('PLANILLA#2 (26-50)'!D30=\"\",\"\",'PLANILLA#2 (26-50)'!D30)","v":""},{"$f":"IF('PLANILLA#2 (26-50)'!E30=\"\",\"\",'PLANILLA#2 (26-50)'!E30)","v":""},{"$f":"IF('PLANILLA#2 (26-50)'!F30=\"\",\"\",'PLANILLA#2 (26-50)'!F30)","v":""},{"$f":"IF('PLANILLA#2 (26-50)'!G30=\"\",\"\",'PLANILLA#2 (26-50)'!G30)","v":""},{"$f":"IF('PLANILLA#2 (26-50)'!H30=\"\",\"\",'PLANILLA#2 (26-50)'!H30)","v":""},{"$f":"'PLANILLA#2 (26-50)'!I30","v":0},{"$f":"'PLANILLA#2 (26-50)'!J30","v":0},{"$f":"'PLANILLA#2 (26-50)'!K30","v":0},{"$f":"'PLANILLA#2 (26-50)'!L30","v":0},{"$f":"'PLANILLA#2 (26-50)'!M30","v":0},{"$f":"'PLANILLA#2 (26-50)'!N30","v":0},{"$f":"'PLANILLA#2 (26-50)'!O30","v":0},{"$f":"'PLANILLA#2 (26-50)'!P30","v":0},{"$f":"'PLANILLA#2 (26-50)'!Q30","v":0},{"$f":"'PLANILLA#2 (26-50)'!R30","v":0},null,0,0,0,0]
[{"$f":"'PLANILLA#2 (26-50)'!B31","v":49},{"$f":"IF('PLANILLA#2 (26-50)'!C31=\"\",\"\",'PLANILLA#2 (26-50)'!C31)","v":""},{"$f":"IF('PLANILLA#2 (26-50)'!D31=\"\",\"\",'PLANILLA#2 (26-50)'!D31)","v":""},{"$f":"IF('PLANILLA#2 (26-50)'!E31=\"\",\"\",'PLANILLA#2 (26-50)'!E31)","v":""},{"$f":"IF('PLANILLA#2 (26-50)'!F31=\"\",\"\",'PLANILLA#2 (26-50)'!F31)","v":""},{"$f":"IF('PLANILLA#2 (26-50)'!G31=\"\",\"\",'PLANILLA#2 (26-50)'!G31)","v":""},{"$f":"IF('PLANILLA#2 (26-50)'!H31=\"\",\"\",'PLANILLA#2 (26-50)'!H31)","v":""},{"$f":"'PLANILLA#2 (26-50)'!I31","v":0},{"$f":"'PLANILLA#2 (26-50)'!J31","v":0},{"$f":"'PLANILLA#2 (26-50)'!K31","v":0},{"$f":"'PLANILLA#2 (26-50)'!L31","v":0},{"$f":"'PLANILLA#2 (26-50)'!M31","v":0},{"$f":"'PLANILLA#2 (26-50)'!N31","v":0},{"$f":"'PLANILLA#2 (26-50)'!O31","v":0},{"$f":"'PLANILLA#2 (26-50)'!P31","v":0},{"$f":"'PLANILLA#2 (26-50)'!Q31","v":0},{"$f":"'PLANILLA#2 (26-50)'!R31","v":0},null,0,0,0,0]
[{"$f":"'PLANILLA#2 (26-50)'!B32","v":50},{"$f":"IF('PLANILLA#2 (26-50)'!C32=\"\",\"\",'PLANILLA#2 (26-50)'!C32)","v":""},{"$f":"IF('PLANILLA#2 (26-50)'!D32=\"\",\"\",'PLANILLA#2 (26-50)'!D32)","v":""},{"$f":"IF('PLANILLA#2 (26-50)'!E32=\"\",\"\",'PLANILLA#2 (26-50)'!E32)","v":""},{"$f":"IF('PLANILLA#2 (26-50)'!F32=\"\",\"\",'PLANILLA#2 (26-50)'!F32)","v":""},{"$f":"IF('PLANILLA#2 (26-50)'!G32=\"\",\"\",'PLANILLA#2 (26-50)'!G32)","v":""},{"$f":"IF('PLANILLA#2 (26-50)'!H32=\"\",\"\",'PLANILLA#2 (26-50)'!H32)","v":""},{"$f":"'PLANILLA#2 (26-50)'!I32","v":0},{"$f":"'PLANILLA#2 (26-50)'!J32","v":0},{"$f":"'PLANILLA#2 (26-50)'!K32","v":0},{"$f":"'PLANILLA#2 (26-50)'!L32","v":0},{"$f":"'PLANILLA#2 (26-50)'!M32","v":0},{"$f":"'PLANILLA#2 (26-50)'!N32","v":0},{"$f":"'PLANILLA#2 (26-50)'!O32","v":0},{"$f":"'PLANILLA#2 (26-50)'!P32","v":0},{"$f":"'PLANILLA#2 (26-50)'!Q32","v":0},{"$f":"'PLANILLA#2 (26-50)'!R32","v":0},null,0,0,0,0]
[{"$f":"'PLANILLA#1 (1-25)'!B59","v":0}]

{"sheet":"LIGAS","index":5,"n_rows":27,"n_cols":2,"rows_kept":27,"cut":false,"hidden":true,"merged":[]}
[]
["Antioquía",1]
["Arauca",2]
["Atlántico ",3]
["Bogotá",4]
["Bolívar",5]
["Boyacá",6]
["Caldas",7]
["Caquetá",8]
["Casanare ",9]
["Cauca ",10]
["Cesar ",11]
["Córdoba",12]
["Cundinamarca",13]
["Huila ",14]
["La Guajira",15]
["Magdalena",16]
["Meta ",17]
["Nariño",18]
["N. De Santander",19]
["Putumayo",20]
["Quindío",21]
["Risaralda",22]
["Santander",23]
["Sucre",24]
["Tolima",25]
["Valle ",26]

{"sheet":"CLUBES","index":6,"n_rows":268,"n_cols":2,"rows_kept":268,"cut":false,"hidden":true,"merged":[]}
[null,"Nombre "]
[0]
[1,"A vivas "]
[2,"A vivas Rendimiento"]
[3,"Acacias Elite "]
[4,"Acb"]
[5,"Activo Guamal "]
[6,"Aguila Sport"]
[7,"Aguilas Del Cafe"]
[8,"Alc Club"]
[9,"Alianza Club"]
[10,"Altavista "]
[11,"Ap Skate"]
[12,"Arena Geisingen "]
[13,"Ases Del Patin"]
[14,"Astros Colombia"]
[15,"Ay Sport Lara"]
[16,"Azores"]
[17,"Bacatá Dc"]
[18,"Bahia Skate Santa Marta"]
[19,"Barquisimeto Skates Club"]
[20,"Berenice Moreno Patinclub"]
[21,"Bogota Elite D.C"]
[22,"Boosted Chile"]
[23,"Botero Sport"]
[24,"C.M.B.Cartagena"]
[25,"C.P.F Fusagasuga"]
[26,"Cafeteros Chinchina"]
[27,"Campeones"]
[28,"Cardenales Patín Club"]
[29,"Champion' Club"]
[30,"Champions Elite Vlc"]
[31,"Chorros Line"]
[32,"Citius Cota"]
[33,"Ciudad Pereira"]
[34,"Cobos Dc"]
[35,"Codecar"]
[36,"Comfasucre"]
[37,"Compensar"]
[38,"Concord Skate"]
[39,"Copatín"]
[40,"Coqui Speed Skating Team"]
[41,"Cordopatin"]
[42,"Corporación Drc"]
[43,"Corporacion Lmt"]
[44,"Correcaminos Neiva"]
[45,"Correpatin Santader"]
[46,"Coyote In Line"]
[47,"C-Patin La Ceja"]
[48,"Cristalina Skating"]
[49,"Cristo Rey R Dominicana"]
[50,"Cyclones De Córdoba"]
[51,"Cyclones Valle"]
[52,"Deportivo Correcaminos"]
[53,"Deportivo Ljm Skate"]
[54,"Deportivo Metropolitano Bogotá"]
[55,"Deportivo Midas"]
[56,"Deportivo Morichal"]
[57,"Deportivo Pasto"]
[58,"Deportivo Pro Skate "]
[59,"Deportivo Sbm"]
[60,"Deportivo Skate Elite"]
[61,"Deportivo Tayrona"]
[62,"Diamantes Del Patin"]
[63,"Diamond"]
[64,"Dsa Orgullo Opita"]
[65,"Dsa Orgullo Opita Neiva"]
[66,"Ecopatin"]
[67,"El Salvador"]
[68,"Elite Campeones "]
[69,"Elite Skate"]
[70,"Elite Skate Palmira"]
[71,"Embajadores Nobsa"]
[72,"Energy Af"]
[73,"Esfodeva"]
[74,"Estrellas Del Patin"]
[75,"Estrellas En Linea Del Milenio"]
[76,"Evolution Skate"]
[77,"Felinos Del Valle "]
[78,"Felinos Team"]
[79,"Fenix Elite"]
[80,"Fenix On Fire"]
[81,"Fenix Perla Del Otun"]
[82,"Fire Skate"]
[83,"First Skating Buga"]
[84,"Flash Star Ocaña"]
[85,"Flash Wheels"]
[86,"Fortaleza"]
[87,"Four Element Garzón "]
[88,"Fundación Salud Club"]
[89,"Gabriela Cavalieri"]
[90,"Gacelas Remedios"]
[91,"Gachancipa Skategach"]
[92,"Geminix"]
[93,"Génesis"]
[94,"Gente Nueva"]
[95,"Gold Skate"]
[96,"Gold Skaters"]
[97,"Golden Skate"]
[98,"Grandes Paisas"]
[99,"Guatapuri Skatin"]
[100,"Guepardos"]
[101,"Halcones De Santander"]
[102,"Halcones Dorados"]
[103,"Hormigueros F.N.R"]
[104,"Hot Wheels Skate"]
[105,"Huahuetenango Guatemala"]
[106,"Huellas Del Cauca"]
[107,"Hv Wayra"]
[108,"Ictp Buga "]
[109,"Ingruma Sobre Ruedas"]
[110,"Itami Speed Club"]
[111,"J.M.C. De Rionegro"]
[112,"J.P. Ara"]
[113,"Jaguar"]
[114,"Jalisco Elite Samurai"]
[115,"Jerry Gaviria"]
[116,"Jhc"]
[117,"Kayros "]
[118,"Lanceros"]
[119,"Las Panteras "]
[120,"Legionarios De Tunja"]
[121,"Leopardos Del Sur"]
[122,"Lince"]
[123,"Lion´s Skate Facatativa"]
[124,"Los Alcaravanes "]
[125,"Los Ponys"]
[126,"Los Titanes N.S."]
[127,"Lp Elite"]
[128,"Mads Rollera3 Peru"]
[129,"Mar Caribe"]
[130,"Marca Caribe"]
[131,"Mario Duran"]
[132,"Megarollers Pitalito"]
[133,"Mente Ganadora "]
[134,"Metropolitano Del Tolima"]
[135,"México"]
[136,"Milenium"]
[137,"Ml Sobre Ruedas Girardot"]
[138,"Mrc Tolima"]
[139,"Msc Skate Palmira"]
[140,"New Skate"]
[141,"Nomadas Del Caribe"]
[142,"Norte Patin"]
[143,"Obelisco"]
[144,"Ocaña Sobre Ruedas"]
[145,"Oikos"]
[146,"Olaya Skates"]
[147,"Olympus San Gil"]
[148,"Olympus San Gil "]
[149,"One Sport Arauca"]
[150,"Orion"]
[151,"Ostrich Skate"]
[152,"Pacal"]
[153,"Paen"]
[154,"Palmira Skate"]
[155,"Pamana"]
[156,"Panamericano"]
[157,"Panther Skate"]
[158,"Panther Skate Cota"]
[159,"Patin Club La Jagua"]
[160,"Patin Dorado Espinal"]
[161,"Patin Galeras"]
[162,"Patin K-Ribe Club. Pkc"]
[163,"Patin Nariño"]
[164,"Patinar Moniquirá"]
[165,"Patines Sobre Ruedas A.C"]
[166,"Patines Sobre Ruedas DF"]
[167,"Patriotas Bc"]
[168,"Patriotas En Linea"]
[169,"Pegasos Elite"]
[170,"Pequeños Correcaminos"]
[171,"Perla Del Sinu"]
[172,"Pili Patín "]
[173,"Power Skate"]
[174,"Power Wheels"]
[175,"Pro Skate Santander"]
[176,"Proelite Dm"]
[177,"Puerto Lopez Skating Club"]
[178,"Pumas Sobre Ruedas"]
[179,"Racing Skate Team"]
[180,"Real Juego Limpio"]
[181,"Real Skate Cauca"]
[182,"Relampago Valle"]
[183,"Renacer"]
[184,"Renesme Del Tolima"]
[185,"Rio De Oro Skating"]
[186,"Roller Skate Tolima"]
[187,"Royal Skate"]
[188,"Rpa"]
[189,"Rueda Patín "]
[190,"Ruedas De  Fuego Rdf - Uribia"]
[191,"Ruedas De Fuego Cesar"]
[192,"Ruedas De Fuego Nariño"]
[193,"Ruedas Del Norte"]
[194,"Salamandrás"]
[195,"Samaria"]
[196,"Samarios Club"]
[197,"Sampues Sobre Ruedas"]
[198,"San Gil Skate"]
[199,"San Silvestre"]
[200,"Semillas Del Meta"]
[201,"Semillas Team"]
[202,"Semillas Valle"]
[203,"Siles Skate"]
[204,"Sin Fronteras"]
[205,"Skate Boy"]
[206,"Skate Elite"]
[207,"Skate Life"]
[208,"Skate Line"]
[209,"Skate Line "]
[210,"Skate On"]
[211,"Skate Speed"]
[212,"Skate Wheels"]
[213,"Skaters Del Sur"]
[214,"Skaters Palmira"]
[215,"Skating Club 3R"]
[216,"Sliders"]
[217,"Soacha Elite"]
[218,"Soacha Elite Rendimiento"]
[219,"Sobre Ruedas Bogotá"]
[220,"Sobre Ruedas Santa Rosa Bolívar"]
[221,"Speed Cats"]
[222,"Speed Line"]
[223,"Speed Rider"]
[224,"Sport Life Acacias"]
[225,"Sports Stars"]
[226,"Star Line Girardot"]
[227,"Star Skate Caicedonia"]
[228,"Stars Bright"]
[229,"Stick Skate"]
[230,"Sueños Sobre Ruedas"]
[231,"Talento En Linea"]
[232,"Talentos Carmelitanos"]
[233,"Talentos De Antioquia"]
[234,"Talentos Del Valle"]
[235,"Team Ecuador"]
[236,"Team Elite"]
[237,"Team Elite Ecuador "]
[238,"Team Fenix"]
[239,"Team Pichicncha "]
[240,"Team Pichincha"]
[241,"Team Talento"]
[242,"Team Venezuela"]
[243,"Tequendama"]
[244,"Tequendama Ac"]
[245,"The Rolling Kingdoms"]
[246,"Titanes de Ocaña"]
[247,"Titanes del Valle"]
[248,"Titanes Elite "]
[249,"Titans Bogotá"]
[250,"Tornado Villamaría"]
[251,"Trueno"]
[252,"Tulua Sobre Ruedas"]
[253,"Universal Skating"]
[254,"Usa"]
[255,"Valledupar Skating"]
[256,"Valledupar Skating Junior"]
[257,"Valores Sobre Ruedas Magangué"]
[258,"Vencedores Patin Club"]
[259,"Venezuela"]
[260,"Warrior Team"]
[261,"Warriors Skate"]
[262,"Warriors Skate Tocancipa"]
[263,"Windsor Racing"]
[264,"Wolf Skates"]
[265,"Yarupatines"]
[266,"Yra"]

{"sheet":"RAMAS","index":7,"n_rows":3,"n_cols":1,"rows_kept":3,"cut":false,"hidden":true,"merged":[]}
[]
["D"]
["V"]